Workbook

Sheet Summary
A2: Operating and Construction Assumptions | H2: Financial Statistics
D4: Consturction Timing | H4: Equity IRR | J4: =Model!I194 -> 0.1437878504
H5: Project IRR | J5: =Model!I192 -> 0.1114185462
D6: Construction Cost
H7: PLCR | J7: =Model!I205 -> 3.54138709
D8: Revenues | H8: Min DSCR | J8: =Model!I199 -> 1.103690232
D10: Concession Length | H10: Debt/EBITDA | J10: =TRANSPOSE(Model!R206:W206) -> FALSE
J11: FALSE
D12: Revenue Senstivity | F12: =Model!G88 -> 1 | J12: 9.983699414
J13: 8.849033361
J14: 7.73035555
A15: Sources and Uses
B16: Construction Expenditures | F16: =Model!J94 -> 7926
B17: Interest During Construction | F17: =Model!J95 -> 1488.757383 | H17: Debt Repayment
B18: Fees | F18: =Model!J96 -> 0
B19: Working Capital | F19: =Model!J97 -> 0 | H19: Debt Tenor | J19: =Model!G55 -> 25
C20: Total | F20: =Model!J98 -> 9414.757383
B22: Original Junior Debt | F22: =Model!J100 -> 7262.757383
B23: Second Junior Debt Tranche | F23: =Model!J101 -> 0
B24: Senior Debt | F24: =Model!J102 -> 0
B25: Equity | F25: =Model!J103 -> 2152
C26: Total | F26: =Model!J104 -> 9414.757383

Sheet Model
I1: Delay | O1: Revenues
I3: Cost | O3: Concession
G5: IRR | H5: =I194 -> 0.1437878504
E6: Concession | G6: PLCR | L6: 1 | M6: =L6+1 -> 2 | N6: =M6+1 -> 3 | O6: 4 | P6: 5 | Q6: 6 | R6: 7 | S6: 8 | T6: 9 | U6: 10 | V6: 11 | W6: 12 | X6: 13 | Y6: 14 | Z6: 15 | AA6: 16 | AB6: 17 | AC6: 18 | AD6: 19 | AE6: 20 | AF6: 21 | AG6: 22 | AH6: 23 | AI6: 24 | AJ6: 25 | AK6: 26 | AL6: 27 | AM6: 28 | AN6: 29 | AO6: 30 | AP6: 31 | AQ6: 32 | AR6: 33 | AS6: 34 | AT6: 35 | AU6: 36 | AV6: 37 | AW6: 38 | AX6: 39 | AY6: 40 | AZ6: 41 | BA6: 42 | BB6: 43 | BC6: 44 | BD6: 45 | BE6: 46 | BF6: 47 | BG6: 48 | BH6: 49 | BI6: 50 | BJ6: 51 | BK6: 52 | BL6: 53 | BM6: 54 | BN6: 55 | BO6: 56 | BP6: 57 | BQ6: 58 | BR6: 59 | BS6: 60 | BT6: 61 | BU6: 62 | BV6: 63 | BW6: 64 | BX6: 65 | BY6: 66 | BZ6: =BY6+1 -> 67 | CA6: 68 | CB6: 69 | CC6: 70 | CD6: 71 | CE6: 72 | CF6: 73 | CG6: 74 | CH6: 75 | CI6: 76 | CJ6: 77 | CK6: 78 | CL6: 79 | CM6: 80 | CN6: 81 | CO6: 82 | CP6: 83 | CQ6: 84 | CR6: 85 | CS6: 86 | CT6: 87 | CU6: 88 | CV6: 89 | CW6: 90 | CX6: 91 | CY6: 92 | CZ6: 93 | DA6: 94 | DB6: 95 | DC6: 96 | DD6: =DC6+1 -> 97 | DE6: 98 | DF6: 99
E7: Period | L7: =G83 -> -7 | M7: =L7+1 -> -6 | N7: -5 | O7: -4 | P7: -3 | Q7: -2 | R7: -1 | S7: 0 | T7: 1 | U7: 2 | V7: 3 | W7: 4 | X7: 5 | Y7: 6 | Z7: 7 | AA7: 8 | AB7: 9 | AC7: 10 | AD7: 11 | AE7: 12 | AF7: 13 | AG7: 14 | AH7: 15 | AI7: 16 | AJ7: 17 | AK7: 18 | AL7: 19 | AM7: 20 | AN7: 21 | AO7: 22 | AP7: 23 | AQ7: 24 | AR7: 25 | AS7: 26 | AT7: 27 | AU7: 28 | AV7: 29 | AW7: 30 | AX7: 31 | AY7: 32 | AZ7: 33 | BA7: 34 | BB7: 35 | BC7: 36 | BD7: 37 | BE7: 38 | BF7: 39 | BG7: 40 | BH7: 41 | BI7: 42 | BJ7: 43 | BK7: 44 | BL7: 45 | BM7: 46 | BN7: 47 | BO7: 48 | BP7: 49 | BQ7: 50 | BR7: 51 | BS7: 52 | BT7: 53 | BU7: 54 | BV7: 55 | BW7: 56 | BX7: 57 | BY7: =BX7+1 -> 58 | BZ7: 59 | CA7: 60 | CB7: 61 | CC7: 62 | CD7: 63 | CE7: 64 | CF7: 65 | CG7: 66 | CH7: 67 | CI7: 68 | CJ7: 69 | CK7: 70 | CL7: 71 | CM7: =CL7+1 -> 72 | CN7: 73 | CO7: 74 | CP7: 75 | CQ7: 76 | CR7: 77 | CS7: 78 | CT7: 79 | CU7: 80 | CV7: 81 | CW7: 82 | CX7: 83 | CY7: 84 | CZ7: 85 | DA7: 86 | DB7: 87 | DC7: 88 | DD7: 89 | DE7: 90 | DF7: 91
E8: Construction | L8: =L7<1 -> TRUE | M8: =M7<1 -> TRUE | N8: TRUE | O8: TRUE | P8: TRUE | Q8: TRUE | R8: TRUE | S8: TRUE | T8: FALSE | U8: FALSE | V8: FALSE | W8: FALSE | X8: FALSE | Y8: FALSE | Z8: FALSE | AA8: FALSE | AB8: FALSE | AC8: FALSE | AD8: FALSE | AE8: FALSE | AF8: FALSE | AG8: FALSE | AH8: FALSE | AI8: FALSE | AJ8: FALSE | AK8: FALSE | AL8: FALSE | AM8: FALSE | AN8: FALSE | AO8: FALSE | AP8: FALSE | AQ8: FALSE | AR8: FALSE | AS8: FALSE | AT8: FALSE | AU8: FALSE | AV8: FALSE | AW8: FALSE | AX8: FALSE | AY8: FALSE | AZ8: FALSE | BA8: FALSE | BB8: FALSE | BC8: FALSE | BD8: FALSE | BE8: FALSE | BF8: FALSE | BG8: FALSE | BH8: FALSE | BI8: FALSE | BJ8: FALSE | BK8: FALSE | BL8: FALSE | BM8: FALSE | BN8: FALSE | BO8: FALSE | BP8: FALSE | BQ8: FALSE | BR8: FALSE | BS8: FALSE | BT8: FALSE | BU8: FALSE | BV8: FALSE | BW8: FALSE | BX8: FALSE | BY8: =BY7<1 -> FALSE | BZ8: FALSE | CA8: FALSE | CB8: FALSE | CC8: FALSE | CD8: FALSE | CE8: FALSE | CF8: FALSE | CG8: FALSE | CH8: FALSE | CI8: FALSE | CJ8: FALSE | CK8: FALSE | CL8: FALSE | CM8: FALSE | CN8: FALSE | CO8: FALSE | CP8: FALSE | CQ8: FALSE | CR8: FALSE | CS8: FALSE | CT8: FALSE | CU8: FALSE | CV8: FALSE | CW8: FALSE | CX8: FALSE | CY8: FALSE | CZ8: FALSE | DA8: FALSE | DB8: FALSE | DC8: FALSE | DD8: FALSE | DE8: FALSE | DF8: FALSE
E9: Operations | L9: =AND(L7>0,L6<=$G$45) -> FALSE | M9: =AND(M7>0,M6<=$G$45) -> FALSE | N9: FALSE | O9: FALSE | P9: FALSE | Q9: FALSE | R9: FALSE | S9: FALSE | T9: TRUE | U9: TRUE | V9: TRUE | W9: TRUE | X9: TRUE | Y9: TRUE | Z9: TRUE | AA9: TRUE | AB9: TRUE | AC9: TRUE | AD9: TRUE | AE9: TRUE | AF9: TRUE | AG9: TRUE | AH9: TRUE | AI9: TRUE | AJ9: TRUE | AK9: TRUE | AL9: TRUE | AM9: TRUE | AN9: TRUE | AO9: TRUE | AP9: TRUE | AQ9: TRUE | AR9: TRUE | AS9: TRUE | AT9: TRUE | AU9: TRUE | AV9: TRUE | AW9: TRUE | AX9: TRUE | AY9: TRUE | AZ9: TRUE | BA9: TRUE | BB9: TRUE | BC9: TRUE | BD9: TRUE | BE9: TRUE | BF9: TRUE | BG9: TRUE | BH9: TRUE | BI9: TRUE | BJ9: TRUE | BK9: TRUE | BL9: TRUE | BM9: TRUE | BN9: TRUE | BO9: TRUE | BP9: TRUE | BQ9: TRUE | BR9: TRUE | BS9: TRUE | BT9: TRUE | BU9: TRUE | BV9: TRUE | BW9: TRUE | BX9: TRUE | BY9: =AND(BY7>0,BY6<=$G$45) -> TRUE | BZ9: TRUE | CA9: TRUE | CB9: TRUE | CC9: TRUE | CD9: TRUE | CE9: TRUE | CF9: TRUE | CG9: TRUE | CH9: TRUE | CI9: TRUE | CJ9: TRUE | CK9: TRUE | CL9: TRUE | CM9: TRUE | CN9: TRUE | CO9: TRUE | CP9: TRUE | CQ9: TRUE | CR9: TRUE | CS9: TRUE | CT9: TRUE | CU9: TRUE | CV9: TRUE | CW9: TRUE | CX9: TRUE | CY9: TRUE | CZ9: TRUE | DA9: TRUE | DB9: TRUE | DC9: TRUE | DD9: TRUE | DE9: TRUE | DF9: TRUE
E10: Debt Repayment | L10: =AND(L7>0,L7<=$G$55) -> FALSE | M10: =AND(M7>0,M7<=$G$55) -> FALSE | N10: FALSE | O10: FALSE | P10: FALSE | Q10: FALSE | R10: FALSE | S10: FALSE | T10: TRUE | U10: TRUE | V10: TRUE | W10: TRUE | X10: TRUE | Y10: TRUE | Z10: TRUE | AA10: TRUE | AB10: TRUE | AC10: TRUE | AD10: TRUE | AE10: TRUE | AF10: TRUE | AG10: TRUE | AH10: TRUE | AI10: TRUE | AJ10: TRUE | AK10: TRUE | AL10: TRUE | AM10: TRUE | AN10: TRUE | AO10: TRUE | AP10: TRUE | AQ10: TRUE | AR10: TRUE | AS10: FALSE | AT10: FALSE | AU10: FALSE | AV10: FALSE | AW10: FALSE | AX10: FALSE | AY10: FALSE | AZ10: FALSE | BA10: FALSE | BB10: FALSE | BC10: FALSE | BD10: FALSE | BE10: FALSE | BF10: FALSE | BG10: FALSE | BH10: FALSE | BI10: FALSE | BJ10: FALSE | BK10: FALSE | BL10: FALSE | BM10: FALSE | BN10: FALSE | BO10: FALSE | BP10: FALSE | BQ10: FALSE | BR10: FALSE | BS10: FALSE | BT10: FALSE | BU10: FALSE | BV10: FALSE | BW10: FALSE | BX10: FALSE | BY10: =AND(BY7>0,BY7<=$G$55) -> FALSE | BZ10: FALSE | CA10: FALSE | CB10: FALSE | CC10: FALSE | CD10: FALSE | CE10: FALSE | CF10: FALSE | CG10: FALSE | CH10: FALSE | CI10: FALSE | CJ10: FALSE | CK10: FALSE | CL10: FALSE | CM10: FALSE | CN10: FALSE | CO10: FALSE | CP10: FALSE | CQ10: FALSE | CR10: FALSE | CS10: FALSE | CT10: FALSE | CU10: FALSE | CV10: FALSE | CW10: FALSE | CX10: FALSE | CY10: FALSE | CZ10: FALSE | DA10: FALSE | DB10: FALSE | DC10: FALSE | DD10: FALSE | DE10: FALSE | DF10: FALSE
E11: Total | H11: Units | K11: 1986 | L11: =K11+1 -> 1987 | M11: =L11+1 -> 1988 | N11: 1989 | O11: 1990 | P11: 1991 | Q11: 1992 | R11: 1993 | S11: 1994 | T11: 1995 | U11: 1996 | V11: 1997 | W11: 1998 | X11: 1999 | Y11: 2000 | Z11: 2001 | AA11: 2002 | AB11: 2003 | AC11: 2004 | AD11: 2005 | AE11: 2006 | AF11: 2007 | AG11: 2008 | AH11: 2009 | AI11: 2010 | AJ11: 2011 | AK11: 2012 | AL11: 2013 | AM11: 2014 | AN11: 2015 | AO11: 2016 | AP11: 2017 | AQ11: 2018 | AR11: 2019 | AS11: 2020 | AT11: 2021 | AU11: 2022 | AV11: 2023 | AW11: 2024 | AX11: 2025 | AY11: =AX11+1 -> 2026 | AZ11: 2027 | BA11: 2028 | BB11: 2029 | BC11: 2030 | BD11: 2031 | BE11: 2032 | BF11: 2033 | BG11: 2034 | BH11: 2035 | BI11: 2036 | BJ11: 2037 | BK11: 2038 | BL11: 2039 | BM11: 2040 | BN11: 2041 | BO11: 2042 | BP11: 2043 | BQ11: 2044 | BR11: 2045 | BS11: 2046 | BT11: 2047 | BU11: 2048 | BV11: 2049 | BW11: 2050 | BX11: 2051 | BY11: 2052 | BZ11: 2053 | CA11: 2054 | CB11: 2055 | CC11: 2056 | CD11: 2057 | CE11: 2058 | CF11: 2059 | CG11: 2060 | CH11: 2061 | CI11: 2062 | CJ11: 2063 | CK11: 2064 | CL11: 2065 | CM11: =CL11+1 -> 2066 | CN11: 2067 | CO11: 2068 | CP11: 2069 | CQ11: 2070 | CR11: 2071 | CS11: 2072 | CT11: 2073 | CU11: 2074 | CV11: 2075 | CW11: 2076 | CX11: 2077 | CY11: 2078 | CZ11: 2079 | DA11: 2080 | DB11: 2081 | DC11: 2082 | DD11: 2083 | DE11: 2084 | DF11: 2085
B13: Assumptions
C14: General Dates
D15: Construction Start | G15: 1987
D16: Commercial Operation | G16: =IF(G18=1,1992,1994) -> 1994
C18: S-Curve | G18: 2
D19: Original Forecast | L19: ='Sources and Uses of Funds'!E51 -> 0.1 | M19: ='Sources and Uses of Funds'!F51 -> 0.2125 | N19: ='Sources and Uses of Funds'!G51 -> 0.2125 | O19: ='Sources and Uses of Funds'!H51 -> 0.2125 | P19: ='Sources and Uses of Funds'!I51 -> 0.2125 | Q19: ='Sources and Uses of Funds'!J51 -> 0.05 | R19: ='Sources and Uses of Funds'!K51 -> 0 | S19: ='Sources and Uses of Funds'!L51 -> 0
D20: Actual Schedule | L20: ='Sources and Uses of Funds'!E48 -> 0.07758377922 | M20: ='Sources and Uses of Funds'!F48 -> 0.08786257392 | N20: ='Sources and Uses of Funds'!G48 -> 0.1423542664 | O20: ='Sources and Uses of Funds'!H48 -> 0.1874119966 | P20: ='Sources and Uses of Funds'!I48 -> 0.1479864827 | Q20: ='Sources and Uses of Funds'!J48 -> 0.1743170938 | R20: ='Sources and Uses of Funds'!K48 -> 0.118698958 | S20: ='Sources and Uses of Funds'!L48 -> 0.06378484934
D21: =INDEX(D19:D20,$G$18) -> Actual Schedule | L21: =INDEX(L19:L20,$G$18) -> 0.07758377922 | M21: 0.08786257392 | N21: 0.1423542664 | O21: 0.1874119966 | P21: 0.1479864827 | Q21: 0.1743170938 | R21: 0.118698958 | S21: 0.06378484934
D23: Original Budget | G23: =Cases!L18 -> 3821 | H23: 2
D24: Actual Cost | G24: =Cases!M18 -> 7926
D25: =INDEX(D23:D24,$H$23) -> Actual Cost | G25: =INDEX(G23:G24,$H$23) -> 7926
C27: Revenues
D28: Original Forecast | G28: 1 | R28: ='Revenue Forecasts'!O21 -> 488 | S28: ='Revenue Forecasts'!P21 -> 790 | T28: ='Revenue Forecasts'!Q21 -> 820 | U28: ='Revenue Forecasts'!R21 -> 900 | V28: ='Revenue Forecasts'!S21 -> 1000 | W28: ='Revenue Forecasts'!T21 -> 1080 | X28: ='Revenue Forecasts'!U21 -> 1180 | Y28: ='Revenue Forecasts'!V21 -> 1250 | Z28: ='Revenue Forecasts'!W21 -> 1370 | AA28: ='Revenue Forecasts'!X21 -> 1480 | AB28: ='Revenue Forecasts'!Y21 -> 1500 | AC28: ='Revenue Forecasts'!Z21 -> 1590 | AD28: ='Revenue Forecasts'!AA21 -> 1685.4 | AE28: ='Revenue Forecasts'!AB21 -> 1820.232 | AF28: =AE28*1.05 -> 1911.2436 | AG28: =AF28*1.05 -> 2006.80578 | AH28: 2107.146069 | AI28: 2212.503372 | AJ28: 2323.128541 | AK28: 2439.284968 | AL28: 2561.249217 | AM28: 2689.311677 | AN28: 2823.777261 | AO28: 2964.966124 | AP28: 3113.214431 | AQ28: 3268.875152 | AR28: 3432.31891 | AS28: 3603.934855 | AT28: 3784.131598 | AU28: 3973.338178 | AV28: 4172.005087 | AW28: 4380.605341 | AX28: 4599.635608 | AY28: 4829.617388 | AZ28: 5071.098258 | BA28: 5324.653171 | BB28: 5590.885829 | BC28: 5870.430121 | BD28: 6163.951627 | BE28: 6472.149208 | BF28: 6795.756669 | BG28: 7135.544502 | BH28: 7492.321727 | BI28: 7866.937813 | BJ28: 8260.284704 | BK28: 8673.298939 | BL28: 9106.963886 | BM28: 9562.312081 | BN28: 10040.42768 | BO28: 10542.44907 | BP28: 11069.57152 | BQ28: 11623.0501 | BR28: 12204.2026 | BS28: 12814.41273 | BT28: 13455.13337 | BU28: 14127.89004 | BV28: 14834.28454 | BW28: 15575.99877 | BX28: 16354.79871 | BY28: 17172.53864 | BZ28: 18031.16557 | CA28: 18932.72385 | CB28: 19879.36004 | CC28: 20873.32805 | CD28: 21916.99445 | CE28: 23012.84417 | CF28: 24163.48638 | CG28: 25371.6607 | CH28: 26640.24373 | CI28: 27972.25592 | CJ28: 29370.86872 | CK28: 30839.41215 | CL28: 32381.38276 | CM28: 34000.4519 | CN28: 35700.47449 | CO28: 37485.49822 | CP28: 39359.77313 | CQ28: 41327.76179 | CR28: 43394.14987 | CS28: =CR28*1.05 -> 45563.85737 | CT28: 47842.05024 | CU28: 50234.15275 | CV28: 52745.86039 | CW28: 55383.15341 | CX28: 58152.31108 | CY28: 61059.92663 | CZ28: 64112.92296 | DA28: 67318.56911 | DB28: 70684.49756 | DC28: 74218.72244 | DD28: 77929.65856 | DE28: 81826.14149 | DF28: 85917.44857
D29: Original Forecast Slow Growth | G29: 1.01 | R29: =R28 -> 488 | S29: =S28 -> 790 | T29: =T28 -> 820 | U29: =U28 -> 900 | V29: =V28 -> 1000 | W29: =V29*1.01 -> 1010 | X29: =W29*1.01 -> 1020.1 | Y29: 1030.301 | Z29: 1040.60401 | AA29: 1051.01005 | AB29: 1061.520151 | AC29: 1072.135352 | AD29: 1082.856706 | AE29: 1093.685273 | AF29: 1104.622125 | AG29: 1115.668347 | AH29: 1126.82503 | AI29: 1138.09328 | AJ29: 1149.474213 | AK29: 1160.968955 | AL29: 1172.578645 | AM29: 1184.304431 | AN29: 1196.147476 | AO29: 1208.10895 | AP29: 1220.19004 | AQ29: 1232.39194 | AR29: 1244.71586 | AS29: 1257.163018 | AT29: 1269.734649 | AU29: 1282.431995 | AV29: 1295.256315 | AW29: 1308.208878 | AX29: 1321.290967 | AY29: 1334.503877 | AZ29: 1347.848915 | BA29: 1361.327404 | BB29: 1374.940679 | BC29: 1388.690085 | BD29: 1402.576986 | BE29: 1416.602756 | BF29: 1430.768784 | BG29: 1445.076471 | BH29: 1459.527236 | BI29: 1474.122509 | BJ29: 1488.863734 | BK29: 1503.752371 | BL29: 1518.789895 | BM29: 1533.977794 | BN29: 1549.317572 | BO29: 1564.810747 | BP29: 1580.458855 | BQ29: 1596.263443 | BR29: 1612.226078 | BS29: 1628.348338 | BT29: 1644.631822 | BU29: 1661.07814 | BV29: 1677.688921 | BW29: 1694.465811 | BX29: 1711.410469 | BY29: 1728.524573 | BZ29: 1745.809819 | CA29: 1763.267917 | CB29: 1780.900597 | CC29: 1798.709603 | CD29: 1816.696699 | CE29: 1834.863666 | CF29: 1853.212302 | CG29: 1871.744425 | CH29: 1890.461869 | CI29: 1909.366488 | CJ29: =CI29*1.01 -> 1928.460153 | CK29: 1947.744755 | CL29: 1967.222202 | CM29: 1986.894424 | CN29: 2006.763368 | CO29: 2026.831002 | CP29: 2047.099312 | CQ29: 2067.570305 | CR29: 2088.246008 | CS29: 2109.128468 | CT29: 2130.219753 | CU29: 2151.521951 | CV29: 2173.03717 | CW29: 2194.767542 | CX29: 2216.715217 | CY29: 2238.882369 | CZ29: 2261.271193 | DA29: 2283.883905 | DB29: 2306.722744 | DC29: 2329.789971 | DD29: 2353.087871 | DE29: 2376.61875 | DF29: 2400.384937
D30: Actual/1.5% | R30: ='Revenue Forecasts'!O31 -> 0 | S30: ='Revenue Forecasts'!P31 -> 0 | T30: ='Revenue Forecasts'!Q31 -> 304 | U30: ='Revenue Forecasts'!R31 -> 483 | V30: ='Revenue Forecasts'!S31 -> 509 | W30: ='Revenue Forecasts'!T31 -> 641 | X30: ='Revenue Forecasts'!U31 -> 539 | Y30: ='Revenue Forecasts'!V31 -> 599 | Z30: ='Revenue Forecasts'!W31 -> 564 | AA30: ='Revenue Forecasts'!X31 -> 581 | AB30: ='Revenue Forecasts'!Y31 -> 584 | AC30: ='Revenue Forecasts'!Z31 -> 538 | AD30: ='Revenue Forecasts'!AA31 -> 541 | AE30: ='Revenue Forecasts'!AB31 -> 568 | AF30: ='Revenue Forecasts'!AC31 -> 526 | AG30: ='Revenue Forecasts'!AD31 -> 537 | AH30: ='Revenue Forecasts'!AE31 -> 555 | AI30: =AH30*1.015 -> 563.325 | AJ30: =AI30*1.015 -> 571.774875 | AK30: 580.3514981 | AL30: 589.0567706 | AM30: 597.8926222 | AN30: 606.8610115 | AO30: 615.9639267 | AP30: 625.2033856 | AQ30: 634.5814363 | AR30: 644.1001579 | AS30: 653.7616603 | AT30: 663.5680852 | AU30: 673.5216064 | AV30: 683.6244305 | AW30: 693.878797 | AX30: 704.2869789 | AY30: 714.8512836 | AZ30: 725.5740529 | BA30: 736.4576637 | BB30: 747.5045286 | BC30: 758.7170966 | BD30: 770.097853 | BE30: 781.6493208 | BF30: 793.3740606 | BG30: 805.2746715 | BH30: 817.3537916 | BI30: 829.6140985 | BJ30: 842.05831 | BK30: 854.6891846 | BL30: 867.5095224 | BM30: 880.5221652 | BN30: 893.7299977 | BO30: 907.1359477 | BP30: 920.7429869 | BQ30: 934.5541317 | BR30: 948.5724436 | BS30: 962.8010303 | BT30: 977.2430458 | BU30: 991.9016914 | BV30: 1006.780217 | BW30: 1021.88192 | BX30: 1037.210149 | BY30: 1052.768301 | BZ30: 1068.559826 | CA30: 1084.588223 | CB30: 1100.857046 | CC30: 1117.369902 | CD30: 1134.130451 | CE30: 1151.142407 | CF30: 1168.409543 | CG30: 1185.935687 | CH30: 1203.724722 | CI30: 1221.780593 | CJ30: 1240.107302 | CK30: 1258.708911 | CL30: 1277.589545 | CM30: 1296.753388 | CN30: 1316.204689 | CO30: 1335.947759 | CP30: 1355.986976 | CQ30: 1376.32678 | CR30: 1396.971682 | CS30: 1417.926257 | CT30: 1439.195151 | CU30: 1460.783078 | CV30: =CU30*1.015 -> 1482.694824 | CW30: 1504.935247 | CX30: 1527.509275 | CY30: 1550.421915 | CZ30: 1573.678243 | DA30: 1597.283417 | DB30: 1621.242668 | DC30: 1645.561308 | DD30: 1670.244728 | DE30: 1695.298399 | DF30: 1720.727875
D31: =INDEX(D28:D30,$G$28) -> Original Forecast | R31: =INDEX(R28:R30,$G$28) -> 488 | S31: =INDEX(S28:S30,$G$28) -> 790 | T31: 820 | U31: 900 | V31: 1000 | W31: 1080 | X31: 1180 | Y31: 1250 | Z31: 1370 | AA31: 1480 | AB31: 1500 | AC31: 1590 | AD31: 1685.4 | AE31: 1820.232 | AF31: 1911.2436 | AG31: 2006.80578 | AH31: 2107.146069 | AI31: 2212.503372 | AJ31: 2323.128541 | AK31: 2439.284968 | AL31: 2561.249217 | AM31: 2689.311677 | AN31: 2823.777261 | AO31: 2964.966124 | AP31: 3113.214431 | AQ31: 3268.875152 | AR31: 3432.31891 | AS31: 3603.934855 | AT31: 3784.131598 | AU31: 3973.338178 | AV31: 4172.005087 | AW31: 4380.605341 | AX31: 4599.635608 | AY31: 4829.617388 | AZ31: 5071.098258 | BA31: 5324.653171 | BB31: 5590.885829 | BC31: 5870.430121 | BD31: 6163.951627 | BE31: 6472.149208 | BF31: 6795.756669 | BG31: 7135.544502 | BH31: 7492.321727 | BI31: 7866.937813 | BJ31: 8260.284704 | BK31: 8673.298939 | BL31: 9106.963886 | BM31: 9562.312081 | BN31: 10040.42768 | BO31: 10542.44907 | BP31: 11069.57152 | BQ31: 11623.0501 | BR31: 12204.2026 | BS31: 12814.41273 | BT31: 13455.13337 | BU31: 14127.89004 | BV31: 14834.28454 | BW31: 15575.99877 | BX31: 16354.79871 | BY31: 17172.53864 | BZ31: 18031.16557 | CA31: 18932.72385 | CB31: 19879.36004 | CC31: 20873.32805 | CD31: 21916.99445 | CE31: =INDEX(CE28:CE30,$G$28) -> 23012.84417 | CF31: 24163.48638 | CG31: 25371.6607 | CH31: 26640.24373 | CI31: 27972.25592 | CJ31: 29370.86872 | CK31: 30839.41215 | CL31: 32381.38276 | CM31: 34000.4519 | CN31: 35700.47449 | CO31: 37485.49822 | CP31: 39359.77313 | CQ31: 41327.76179 | CR31: 43394.14987 | CS31: 45563.85737 | CT31: 47842.05024 | CU31: 50234.15275 | CV31: 52745.86039 | CW31: 55383.15341 | CX31: 58152.31108 | CY31: 61059.92663 | CZ31: 64112.92296 | DA31: 67318.56911 | DB31: 70684.49756 | DC31: 74218.72244 | DD31: 77929.65856 | DE31: 81826.14149 | DF31: 85917.44857
D33: Senstivity | G33: =I33/100 -> 1 | I33: 100
C35: Operating Expenses
D36: Original Forecast | R36: 100 | S36: =R36*1.02 -> 102 | T36: =S36*1.02 -> 104.04 | U36: 106.1208 | V36: 108.243216 | W36: 110.4080803 | X36: 112.6162419 | Y36: 114.8685668 | Z36: 117.1659381 | AA36: 119.5092569 | AB36: 121.899442 | AC36: 124.3374308 | AD36: 126.8241795 | AE36: 129.360663 | AF36: 131.9478763 | AG36: 134.5868338 | AH36: 137.2785705 | AI36: 140.0241419 | AJ36: 142.8246248 | AK36: 145.6811173 | AL36: 148.5947396 | AM36: 151.5666344 | AN36: 154.5979671 | AO36: 157.6899264 | AP36: 160.8437249 | AQ36: 164.0605994 | AR36: 167.3418114 | AS36: 170.6886477 | AT36: 174.1024206 | AU36: 177.584469 | AV36: 181.1361584 | AW36: 184.7588816 | AX36: 188.4540592 | AY36: 192.2231404 | AZ36: 196.0676032 | BA36: 199.9889553 | BB36: 203.9887344 | BC36: 208.0685091 | BD36: 212.2298792 | BE36: 216.4744768 | BF36: 220.8039664 | BG36: 225.2200457 | BH36: 229.7244466 | BI36: 234.3189355 | BJ36: 239.0053142 | BK36: 243.7854205 | BL36: 248.6611289 | BM36: 253.6343515 | BN36: 258.7070385 | BO36: 263.8811793 | BP36: 269.1588029 | BQ36: 274.541979 | BR36: 280.0328185 | BS36: 285.6334749 | BT36: 291.3461444 | BU36: 297.1730673 | BV36: 303.1165286 | BW36: 309.1788592 | BX36: 315.3624364 | BY36: 321.6696851 | BZ36: 328.1030788 | CA36: 334.6651404 | CB36: 341.3584432 | CC36: 348.1856121 | CD36: 355.1493243 | CE36: 362.2523108 | CF36: =CE36*1.02 -> 369.497357 | CG36: 376.8873042 | CH36: 384.4250503 | CI36: 392.1135513 | CJ36: 399.9558223 | CK36: 407.9549387 | CL36: 416.1140375 | CM36: 424.4363183 | CN36: 432.9250446 | CO36: 441.5835455 | CP36: 450.4152164 | CQ36: 459.4235208 | CR36: 468.6119912 | CS36: 477.984231 | CT36: 487.5439156 | CU36: 497.2947939 | CV36: 507.2406898 | CW36: 517.3855036 | CX36: 527.7332137 | CY36: 538.2878779 | CZ36: 549.0536355 | DA36: 560.0347082 | DB36: 571.2354024 | DC36: 582.6601104 | DD36: 594.3133126 | DE36: 606.1995789 | DF36: 618.3235705
D37: Original Slow Growth | R37: =R36 -> 100 | S37: 102 | T37: 104.04 | U37: 106.1208 | V37: 108.243216 | W37: 110.4080803 | X37: 112.6162419 | Y37: 114.8685668 | Z37: 117.1659381 | AA37: 119.5092569 | AB37: =AA37*1.01 -> 120.7043494 | AC37: =AB37*1.01 -> 121.9113929 | AD37: 123.1305069 | AE37: 124.3618119 | AF37: 125.60543 | AG37: 126.8614843 | AH37: 128.1300992 | AI37: 129.4114002 | AJ37: 130.7055142 | AK37: 132.0125693 | AL37: 133.332695 | AM37: 134.666022 | AN37: 136.0126822 | AO37: 137.372809 | AP37: 138.7465371 | AQ37: 140.1340025 | AR37: 141.5353425 | AS37: 142.9506959 | AT37: 144.3802029 | AU37: 145.8240049 | AV37: 147.282245 | AW37: 148.7550674 | AX37: 150.2426181 | AY37: 151.7450443 | AZ37: 153.2624947 | BA37: 154.7951196 | BB37: 156.3430708 | BC37: 157.9065016 | BD37: 159.4855666 | BE37: 161.0804222 | BF37: 162.6912265 | BG37: 164.3181387 | BH37: 165.9613201 | BI37: 167.6209333 | BJ37: 169.2971426 | BK37: 170.9901141 | BL37: 172.7000152 | BM37: 174.4270154 | BN37: 176.1712855 | BO37: 177.9329984 | BP37: 179.7123284 | BQ37: 181.5094516 | BR37: 183.3245462 | BS37: 185.1577916 | BT37: 187.0093695 | BU37: 188.8794632 | BV37: 190.7682579 | BW37: 192.6759404 | BX37: 194.6026998 | BY37: 196.5487268 | BZ37: 198.5142141 | CA37: 200.4993563 | CB37: 202.5043498 | CC37: 204.5293933 | CD37: 206.5746872 | CE37: 208.6404341 | CF37: 210.7268385 | CG37: 212.8341068 | CH37: 214.9624479 | CI37: 217.1120724 | CJ37: 219.2831931 | CK37: 221.476025 | CL37: 223.6907853 | CM37: 225.9276931 | CN37: 228.1869701 | CO37: =CN37*1.01 -> 230.4688398 | CP37: 232.7735282 | CQ37: 235.1012635 | CR37: 237.4522761 | CS37: 239.8267989 | CT37: 242.2250668 | CU37: 244.6473175 | CV37: 247.0937907 | CW37: 249.5647286 | CX37: 252.0603759 | CY37: 254.5809796 | CZ37: 257.1267894 | DA37: 259.6980573 | DB37: 262.2950379 | DC37: 264.9179883 | DD37: 267.5671682 | DE37: 270.2428398 | DF37: 272.9452682
D38: Actual/1.5% | R38: ='Revenue Forecasts'!O35 -> 0 | S38: ='Revenue Forecasts'!P35 -> 0 | T38: ='Revenue Forecasts'!Q35 -> 0 | U38: ='Revenue Forecasts'!R35 -> 0 | V38: ='Revenue Forecasts'!S35 -> 233 | W38: ='Revenue Forecasts'!T35 -> 201 | X38: ='Revenue Forecasts'!U35 -> 212 | Y38: ='Revenue Forecasts'!V35 -> 186.6 | Z38: ='Revenue Forecasts'!W35 -> 138.6 | AA38: ='Revenue Forecasts'!X35 -> 129 | AB38: ='Revenue Forecasts'!Y35 -> 125 | AC38: ='Revenue Forecasts'!Z35 -> 146 | AD38: ='Revenue Forecasts'!AA35 -> 126 | AE38: ='Revenue Forecasts'!AB35 -> 118 | AF38: =AE38*1.015 -> 119.77 | AG38: =AF38*1.015 -> 121.56655 | AH38: 123.3900482 | AI38: 125.240899 | AJ38: 127.1195125 | AK38: 129.0263051 | AL38: 130.9616997 | AM38: 132.9261252 | AN38: 134.9200171 | AO38: 136.9438174 | AP38: 138.9979746 | AQ38: 141.0829442 | AR38: 143.1991884 | AS38: 145.3471762 | AT38: 147.5273839 | AU38: 149.7402946 | AV38: 151.986399 | AW38: 154.266195 | AX38: 156.580188 | AY38: 158.9288908 | AZ38: 161.3128241 | BA38: 163.7325165 | BB38: 166.1885042 | BC38: 168.6813318 | BD38: 171.2115518 | BE38: 173.7797251 | BF38: 176.3864209 | BG38: 179.0322173 | BH38: 181.7177005 | BI38: 184.443466 | BJ38: 187.210118 | BK38: 190.0182698 | BL38: 192.8685438 | BM38: 195.761572 | BN38: 198.6979956 | BO38: 201.6784655 | BP38: 204.7036425 | BQ38: 207.7741971 | BR38: 210.8908101 | BS38: 214.0541722 | BT38: 217.2649848 | BU38: 220.5239596 | BV38: 223.831819 | BW38: 227.1892963 | BX38: 230.5971357 | BY38: 234.0560927 | BZ38: 237.5669341 | CA38: 241.1304381 | CB38: 244.7473947 | CC38: 248.4186056 | CD38: 252.1448847 | CE38: 255.927058 | CF38: 259.7659639 | CG38: 263.6624533 | CH38: 267.6173901 | CI38: 271.631651 | CJ38: 275.7061257 | CK38: 279.8417176 | CL38: 284.0393434 | CM38: 288.2999335 | CN38: 292.6244325 | CO38: 297.013799 | CP38: 301.469006 | CQ38: 305.9910411 | CR38: 310.5809067 | CS38: =CR38*1.015 -> 315.2396203 | CT38: 319.9682146 | CU38: 324.7677378 | CV38: 329.6392539 | CW38: 334.5838427 | CX38: 339.6026004 | CY38: 344.6966394 | CZ38: 349.867089 | DA38: 355.1150953 | DB38: 360.4418217 | DC38: 365.848449 | DD38: 371.3361758 | DE38: 376.9062184 | DF38: 382.5598117
D39: =INDEX(D36:D38,$G$28) -> Original Forecast | R39: =INDEX(R36:R38,$G$28) -> 100 | S39: =INDEX(S36:S38,$G$28) -> 102 | T39: 104.04 | U39: 106.1208 | V39: 108.243216 | W39: 110.4080803 | X39: 112.6162419 | Y39: 114.8685668 | Z39: 117.1659381 | AA39: 119.5092569 | AB39: 121.899442 | AC39: 124.3374308 | AD39: 126.8241795 | AE39: 129.360663 | AF39: 131.9478763 | AG39: 134.5868338 | AH39: 137.2785705 | AI39: 140.0241419 | AJ39: 142.8246248 | AK39: 145.6811173 | AL39: 148.5947396 | AM39: 151.5666344 | AN39: 154.5979671 | AO39: 157.6899264 | AP39: 160.8437249 | AQ39: 164.0605994 | AR39: 167.3418114 | AS39: 170.6886477 | AT39: 174.1024206 | AU39: 177.584469 | AV39: 181.1361584 | AW39: 184.7588816 | AX39: 188.4540592 | AY39: 192.2231404 | AZ39: 196.0676032 | BA39: 199.9889553 | BB39: 203.9887344 | BC39: 208.0685091 | BD39: 212.2298792 | BE39: 216.4744768 | BF39: 220.8039664 | BG39: 225.2200457 | BH39: 229.7244466 | BI39: 234.3189355 | BJ39: 239.0053142 | BK39: 243.7854205 | BL39: 248.6611289 | BM39: 253.6343515 | BN39: 258.7070385 | BO39: 263.8811793 | BP39: 269.1588029 | BQ39: 274.541979 | BR39: 280.0328185 | BS39: 285.6334749 | BT39: 291.3461444 | BU39: 297.1730673 | BV39: 303.1165286 | BW39: 309.1788592 | BX39: 315.3624364 | BY39: 321.6696851 | BZ39: 328.1030788 | CA39: 334.6651404 | CB39: 341.3584432 | CC39: 348.1856121 | CD39: 355.1493243 | CE39: =INDEX(CE36:CE38,$G$28) -> 362.2523108 | CF39: 369.497357 | CG39: 376.8873042 | CH39: 384.4250503 | CI39: 392.1135513 | CJ39: 399.9558223 | CK39: 407.9549387 | CL39: 416.1140375 | CM39: 424.4363183 | CN39: 432.9250446 | CO39: 441.5835455 | CP39: 450.4152164 | CQ39: 459.4235208 | CR39: 468.6119912 | CS39: 477.984231 | CT39: 487.5439156 | CU39: 497.2947939 | CV39: 507.2406898 | CW39: 517.3855036 | CX39: 527.7332137 | CY39: 538.2878779 | CZ39: 549.0536355 | DA39: 560.0347082 | DB39: 571.2354024 | DC39: 582.6601104 | DD39: 594.3133126 | DE39: 606.1995789 | DF39: 618.3235705
C41: Concession Period | G41: 3
E42: 55 Years | G42: 55
E43: 65 Years | G43: 65
E44: 99 Years | G44: 99
E45: =INDEX(E42:E44,$G$41) -> 99 Years | G45: =INDEX(G42:G44,$G$41) -> 99
C47: Income Tax Rate | K47: 0.25 | L47: 0.25 | M47: 0.25 | N47: 0.25 | O47: 0.25 | P47: 0.25 | Q47: 0.25 | R47: 0.25 | S47: 0.25 | T47: 0.25 | U47: 0.25 | V47: 0.25 | W47: 0.25 | X47: 0.25 | Y47: 0.25 | Z47: 0.25 | AA47: 0.25 | AB47: 0.25 | AC47: 0.25 | AD47: 0.25 | AE47: 0.25 | AF47: 0.25 | AG47: 0.25 | AH47: 0.25 | AI47: 0.25 | AJ47: 0.25 | AK47: 0.25 | AL47: 0.25 | AM47: 0.25 | AN47: 0.25 | AO47: 0.25 | AP47: 0.25 | AQ47: 0.25 | AR47: 0.25 | AS47: 0.25 | AT47: 0.25 | AU47: 0.25 | AV47: 0.25 | AW47: 0.25 | AX47: 0.25 | AY47: 0.25 | AZ47: 0.25 | BA47: 0.25 | BB47: 0.25 | BC47: 0.25 | BD47: 0.25 | BE47: 0.25 | BF47: 0.25 | BG47: 0.25 | BH47: 0.25 | BI47: 0.25 | BJ47: 0.25 | BK47: 0.25 | BL47: 0.25 | BM47: 0.25 | BN47: 0.25 | BO47: 0.25 | BP47: 0.25 | BQ47: 0.25 | BR47: 0.25 | BS47: 0.25 | BT47: 0.25 | BU47: 0.25 | BV47: 0.25 | BW47: 0.25 | BX47: 0.25 | BY47: 0.25 | BZ47: 0.25 | CA47: 0.25 | CB47: 0.25 | CC47: 0.25 | CD47: 0.25 | CE47: 0.25 | CF47: 0.25 | CG47: 0.25 | CH47: 0.25 | CI47: 0.25 | CJ47: 0.25 | CK47: 0.25 | CL47: 0.25 | CM47: 0.25 | CN47: 0.25 | CO47: 0.25 | CP47: 0.25 | CQ47: 0.25 | CR47: 0.25 | CS47: 0.25 | CT47: 0.25 | CU47: 0.25 | CV47: 0.25 | CW47: 0.25 | CX47: 0.25 | CY47: 0.25 | CZ47: 0.25 | DA47: 0.25 | DB47: 0.25 | DC47: 0.25 | DD47: 0.25 | DE47: 0.25 | DF47: 0.25
C49: Financing
D50: Original Bank Loan
E51: Commitment | G51: 5000
E52: Front-end Fee | G52: =7/800+0.0025 -> 0.01125
E53: Credit Spread - Before Completion | G53: 0.0125
E54: Credit Spread - After Completion | G54: 0.01
E55: Term | G55: 25
D57: 1990 Additional Debt
E58: Commitment and EIB | G58: =1800+300 -> 2100
E59: Front-end Fee | G59: 0.0025
E60: Credit Spread - Before Completion | G60: 0.0275
E61: Credit Spread - After Completion | G61: 0.0225
E62: Term | G62: 10
D64: 1994 Senior Debt
E65: Commitment | G65: 693
E66: Front-end Fee | G66: 0.015
E67: Credit Spread - Before Completion | G67: 0.025
E68: Credit Spread - After Completion | G68: 0.025
E69: Term | G69: 6
D71: LIBOR | K71: 0.06 | L71: 0.06 | M71: 0.06 | N71: 0.06 | O71: 0.06 | P71: 0.06 | Q71: 0.06 | R71: 0.06 | S71: 0.06 | T71: 0.06 | U71: 0.06 | V71: 0.06 | W71: 0.06 | X71: 0.06 | Y71: 0.06 | Z71: 0.06 | AA71: 0.06 | AB71: 0.06 | AC71: 0.06 | AD71: 0.06 | AE71: 0.06 | AF71: 0.06 | AG71: 0.06 | AH71: 0.06 | AI71: 0.06 | AJ71: 0.06 | AK71: 0.06 | AL71: 0.06 | AM71: 0.06 | AN71: 0.06 | AO71: 0.06 | AP71: 0.06 | AQ71: 0.06 | AR71: 0.06 | AS71: 0.06 | AT71: 0.06 | AU71: 0.06 | AV71: 0.06 | AW71: 0.06 | AX71: 0.06 | AY71: 0.06 | AZ71: 0.06 | BA71: 0.06 | BB71: 0.06 | BC71: 0.06 | BD71: 0.06 | BE71: 0.06 | BF71: 0.06 | BG71: 0.06 | BH71: 0.06 | BI71: 0.06 | BJ71: 0.06 | BK71: 0.06 | BL71: 0.06 | BM71: 0.06 | BN71: 0.06 | BO71: 0.06 | BP71: 0.06 | BQ71: 0.06 | BR71: 0.06 | BS71: 0.06 | BT71: 0.06 | BU71: 0.06 | BV71: 0.06 | BW71: 0.06 | BX71: 0.06 | BY71: 0.06 | BZ71: 0.06 | CA71: 0.06 | CB71: 0.06 | CC71: 0.06 | CD71: 0.06 | CE71: 0.06 | CF71: 0.06 | CG71: 0.06 | CH71: 0.06 | CI71: 0.06 | CJ71: 0.06 | CK71: 0.06 | CL71: 0.06 | CM71: 0.06 | CN71: 0.06 | CO71: 0.06 | CP71: 0.06 | CQ71: 0.06 | CR71: 0.06 | CS71: 0.06 | CT71: 0.06 | CU71: 0.06 | CV71: 0.06 | CW71: 0.06 | CX71: 0.06 | CY71: 0.06 | CZ71: 0.06 | DA71: 0.06 | DB71: 0.06 | DC71: 0.06 | DD71: 0.06 | DE71: 0.06 | DF71: 0.06
D73: Equity Financing
F74: TML and Bank Financing in 1986 | K74: 46
F75: Institutional Investors - 1986 | K75: 206
F76: IPO 1997 | L76: 770
F77: 1990 Nov IPO (Not Anticipated) | O77: 566
F78: 1994 May IPO (Not Anticipated) | S78: 816
B81: Working
C82: Construction Period | G82: =G16-G15+1 -> 8
C83: Period Start | G83: =-G82+1 -> -7
C85: Construction Expenditures | J85: =SUM(L85:U85) -> 7926 | L85: =$G$25*L21 -> 614.9290341 | M85: 696.3987609 | N85: 1128.299916 | O85: 1485.427485 | P85: 1172.940862 | Q85: 1381.637285 | R85: 940.8079414 | S85: 505.5587159 | T85: 0 | U85: 0
C88: Sensitivity | G88: =G33 -> 1
C89: Revenues | L89: =L31*L9*$G$88 -> 0 | M89: =M31*M9*$G$88 -> 0 | N89: 0 | O89: 0 | P89: 0 | Q89: 0 | R89: 0 | S89: 0 | T89: 820 | U89: 900 | V89: 1000 | W89: 1080 | X89: 1180 | Y89: 1250 | Z89: 1370 | AA89: 1480 | AB89: 1500 | AC89: 1590 | AD89: 1685.4 | AE89: 1820.232 | AF89: 1911.2436 | AG89: 2006.80578 | AH89: 2107.146069 | AI89: 2212.503372 | AJ89: 2323.128541 | AK89: 2439.284968 | AL89: 2561.249217 | AM89: 2689.311677 | AN89: 2823.777261 | AO89: 2964.966124 | AP89: 3113.214431 | AQ89: 3268.875152 | AR89: 3432.31891 | AS89: 3603.934855 | AT89: 3784.131598 | AU89: 3973.338178 | AV89: 4172.005087 | AW89: 4380.605341 | AX89: 4599.635608 | AY89: 4829.617388 | AZ89: 5071.098258 | BA89: 5324.653171 | BB89: 5590.885829 | BC89: 5870.430121 | BD89: 6163.951627 | BE89: 6472.149208 | BF89: 6795.756669 | BG89: 7135.544502 | BH89: 7492.321727 | BI89: 7866.937813 | BJ89: 8260.284704 | BK89: 8673.298939 | BL89: 9106.963886 | BM89: 9562.312081 | BN89: 10040.42768 | BO89: 10542.44907 | BP89: 11069.57152 | BQ89: 11623.0501 | BR89: 12204.2026 | BS89: 12814.41273 | BT89: 13455.13337 | BU89: 14127.89004 | BV89: 14834.28454 | BW89: 15575.99877 | BX89: 16354.79871 | BY89: =BY31*BY9*$G$88 -> 17172.53864 | BZ89: 18031.16557 | CA89: 18932.72385 | CB89: 19879.36004 | CC89: 20873.32805 | CD89: 21916.99445 | CE89: 23012.84417 | CF89: 24163.48638 | CG89: 25371.6607 | CH89: 26640.24373 | CI89: 27972.25592 | CJ89: 29370.86872 | CK89: 30839.41215 | CL89: 32381.38276 | CM89: 34000.4519 | CN89: 35700.47449 | CO89: 37485.49822 | CP89: 39359.77313 | CQ89: 41327.76179 | CR89: 43394.14987 | CS89: 45563.85737 | CT89: 47842.05024 | CU89: 50234.15275 | CV89: 52745.86039 | CW89: 55383.15341 | CX89: 58152.31108 | CY89: 61059.92663 | CZ89: 64112.92296 | DA89: 67318.56911 | DB89: 70684.49756 | DC89: 74218.72244 | DD89: 77929.65856 | DE89: 81826.14149 | DF89: 85917.44857
C90: Operating Costs | L90: =L39*L9 -> 0 | M90: =M39*M9 -> 0 | N90: 0 | O90: 0 | P90: 0 | Q90: 0 | R90: 0 | S90: 0 | T90: 104.04 | U90: 106.1208 | V90: 108.243216 | W90: 110.4080803 | X90: 112.6162419 | Y90: 114.8685668 | Z90: 117.1659381 | AA90: 119.5092569 | AB90: 121.899442 | AC90: 124.3374308 | AD90: 126.8241795 | AE90: 129.360663 | AF90: 131.9478763 | AG90: 134.5868338 | AH90: 137.2785705 | AI90: 140.0241419 | AJ90: 142.8246248 | AK90: 145.6811173 | AL90: 148.5947396 | AM90: 151.5666344 | AN90: 154.5979671 | AO90: 157.6899264 | AP90: 160.8437249 | AQ90: 164.0605994 | AR90: 167.3418114 | AS90: 170.6886477 | AT90: 174.1024206 | AU90: 177.584469 | AV90: 181.1361584 | AW90: 184.7588816 | AX90: 188.4540592 | AY90: 192.2231404 | AZ90: 196.0676032 | BA90: 199.9889553 | BB90: 203.9887344 | BC90: 208.0685091 | BD90: 212.2298792 | BE90: 216.4744768 | BF90: 220.8039664 | BG90: 225.2200457 | BH90: 229.7244466 | BI90: 234.3189355 | BJ90: 239.0053142 | BK90: 243.7854205 | BL90: 248.6611289 | BM90: 253.6343515 | BN90: 258.7070385 | BO90: 263.8811793 | BP90: 269.1588029 | BQ90: 274.541979 | BR90: 280.0328185 | BS90: 285.6334749 | BT90: 291.3461444 | BU90: 297.1730673 | BV90: 303.1165286 | BW90: 309.1788592 | BX90: 315.3624364 | BY90: =BY39*BY9 -> 321.6696851 | BZ90: 328.1030788 | CA90: 334.6651404 | CB90: 341.3584432 | CC90: 348.1856121 | CD90: 355.1493243 | CE90: 362.2523108 | CF90: 369.497357 | CG90: 376.8873042 | CH90: 384.4250503 | CI90: 392.1135513 | CJ90: 399.9558223 | CK90: 407.9549387 | CL90: 416.1140375 | CM90: 424.4363183 | CN90: 432.9250446 | CO90: 441.5835455 | CP90: 450.4152164 | CQ90: 459.4235208 | CR90: 468.6119912 | CS90: 477.984231 | CT90: 487.5439156 | CU90: 497.2947939 | CV90: 507.2406898 | CW90: 517.3855036 | CX90: 527.7332137 | CY90: 538.2878779 | CZ90: 549.0536355 | DA90: 560.0347082 | DB90: 571.2354024 | DC90: 582.6601104 | DD90: 594.3133126 | DE90: 606.1995789 | DF90: 618.3235705
B93: Sources and Uses
C94: Construction Expenditures | J94: =SUM(L94:DF94) -> 7926 | L94: =L85 -> 614.9290341 | M94: =M85 -> 696.3987609 | N94: 1128.299916 | O94: 1485.427485 | P94: 1172.940862 | Q94: 1381.637285 | R94: 940.8079414 | S94: 505.5587159 | T94: 0 | U94: 0 | V94: 0 | W94: 0 | X94: 0 | Y94: 0 | Z94: 0 | AA94: 0 | AB94: 0 | AC94: 0 | AD94: 0 | AE94: 0 | AF94: 0 | AG94: 0 | AH94: 0 | AI94: 0 | AJ94: 0 | AK94: 0 | AL94: 0 | AM94: 0 | AN94: 0 | AO94: 0 | AP94: 0 | AQ94: 0 | AR94: 0 | AS94: 0 | AT94: 0 | AU94: 0 | AV94: 0 | AW94: 0 | AX94: 0 | AY94: 0 | AZ94: 0 | BA94: 0 | BB94: 0 | BC94: 0 | BD94: 0 | BE94: 0 | BF94: 0 | BG94: 0 | BH94: 0 | BI94: 0 | BJ94: 0 | BK94: 0 | BL94: 0 | BM94: 0 | BN94: 0 | BO94: 0 | BP94: 0 | BQ94: 0 | BR94: 0 | BS94: 0 | BT94: 0 | BU94: 0 | BV94: 0 | BW94: 0 | BX94: 0 | BY94: =BY85 -> 0 | BZ94: 0 | CA94: 0 | CB94: 0 | CC94: 0 | CD94: 0 | CE94: 0 | CF94: 0 | CG94: 0 | CH94: 0 | CI94: 0 | CJ94: 0 | CK94: 0 | CL94: 0 | CM94: 0 | CN94: 0 | CO94: 0 | CP94: 0 | CQ94: 0 | CR94: 0 | CS94: 0 | CT94: 0 | CU94: 0 | CV94: 0 | CW94: 0 | CX94: 0 | CY94: 0 | CZ94: 0 | DA94: 0 | DB94: 0 | DC94: 0 | DD94: 0 | DE94: 0 | DF94: 0
C95: Interest During Construction | J95: =SUM(L95:DF95) -> 1488.757383 | L95: =L134 -> 0 | M95: =M134 -> 0 | N95: 39.24626514 | O95: 82.85836323 | P95: 196.5590872 | Q95: 295.8478335 | R95: 417.4655047 | S95: 456.7803295 | T95: 0 | U95: 0 | V95: 0 | W95: 0 | X95: 0 | Y95: 0 | Z95: 0 | AA95: 0 | AB95: 0 | AC95: 0 | AD95: 0 | AE95: 0 | AF95: 0 | AG95: 0 | AH95: 0 | AI95: 0 | AJ95: 0 | AK95: 0 | AL95: 0 | AM95: 0 | AN95: 0 | AO95: 0 | AP95: 0 | AQ95: 0 | AR95: 0 | AS95: 0 | AT95: 0 | AU95: 0 | AV95: 0 | AW95: 0 | AX95: 0 | AY95: 0 | AZ95: 0 | BA95: 0 | BB95: 0 | BC95: 0 | BD95: 0 | BE95: 0 | BF95: 0 | BG95: 0 | BH95: 0 | BI95: 0 | BJ95: 0 | BK95: 0 | BL95: 0 | BM95: 0 | BN95: 0 | BO95: 0 | BP95: 0 | BQ95: 0 | BR95: 0 | BS95: 0 | BT95: 0 | BU95: 0 | BV95: 0 | BW95: 0 | BX95: 0 | BY95: =BY134 -> 0 | BZ95: 0 | CA95: 0 | CB95: 0 | CC95: 0 | CD95: 0 | CE95: 0 | CF95: 0 | CG95: 0 | CH95: 0 | CI95: 0 | CJ95: 0 | CK95: 0 | CL95: 0 | CM95: 0 | CN95: 0 | CO95: 0 | CP95: 0 | CQ95: 0 | CR95: 0 | CS95: 0 | CT95: 0 | CU95: 0 | CV95: 0 | CW95: 0 | CX95: 0 | CY95: 0 | CZ95: 0 | DA95: 0 | DB95: 0 | DC95: 0 | DD95: 0 | DE95: 0 | DF95: 0
C96: Fees
C97: Working Capital | L97: =L103-L94 -> 155.0709659 | M97: =-L97 -> -155.0709659
D98: Total | J98: =SUM(J94:J96) -> 9414.757383 | L98: =SUM(L94:L97) -> 770 | M98: =SUM(M94:M97) -> 541.327795 | N98: 1167.546181 | O98: 1568.285848 | P98: 1369.499949 | Q98: 1677.485119 | R98: 1358.273446 | S98: 962.3390454 | T98: 0 | U98: 0 | V98: 0 | W98: 0 | X98: 0 | Y98: 0 | Z98: 0 | AA98: 0 | AB98: 0 | AC98: 0 | AD98: 0 | AE98: 0 | AF98: 0 | AG98: 0 | AH98: 0 | AI98: 0 | AJ98: 0 | AK98: 0 | AL98: 0 | AM98: 0 | AN98: 0 | AO98: 0 | AP98: 0 | AQ98: 0 | AR98: 0 | AS98: 0 | AT98: 0 | AU98: 0 | AV98: 0 | AW98: 0 | AX98: 0 | AY98: 0 | AZ98: 0 | BA98: 0 | BB98: 0 | BC98: 0 | BD98: 0 | BE98: 0 | BF98: 0 | BG98: 0 | BH98: 0 | BI98: 0 | BJ98: 0 | BK98: 0 | BL98: 0 | BM98: 0 | BN98: 0 | BO98: 0 | BP98: 0 | BQ98: 0 | BR98: 0 | BS98: 0 | BT98: 0 | BU98: 0 | BV98: 0 | BW98: 0 | BX98: 0 | BY98: =SUM(BY94:BY97) -> 0 | BZ98: 0 | CA98: 0 | CB98: 0 | CC98: 0 | CD98: 0 | CE98: 0 | CF98: 0 | CG98: 0 | CH98: 0 | CI98: 0 | CJ98: 0 | CK98: 0 | CL98: 0 | CM98: 0 | CN98: 0 | CO98: 0 | CP98: 0 | CQ98: 0 | CR98: 0 | CS98: 0 | CT98: 0 | CU98: 0 | CV98: 0 | CW98: 0 | CX98: 0 | CY98: 0 | CZ98: 0 | DA98: 0 | DB98: 0 | DC98: 0 | DD98: 0 | DE98: 0 | DF98: 0
C100: Original Junior Debt | J100: =SUM(L100:DF100) -> 7262.757383 | K100: =J100/$J$104 -> 0.7714226812 | L100: =MAX(L98-L103,0) -> 0 | M100: =MAX(M98-M103,0) -> 541.327795 | N100: 601.5461807 | O100: 1568.285848 | P100: 1369.499949 | Q100: 1677.485119 | R100: 542.2734461 | S100: 962.3390454 | T100: 0 | U100: 0 | V100: 0 | W100: 0 | X100: 0 | Y100: 0 | Z100: 0 | AA100: 0 | AB100: 0 | AC100: 0 | AD100: 0 | AE100: 0 | AF100: 0 | AG100: 0 | AH100: 0 | AI100: 0 | AJ100: 0 | AK100: 0 | AL100: 0 | AM100: 0 | AN100: 0 | AO100: 0 | AP100: 0 | AQ100: 0 | AR100: 0 | AS100: 0 | AT100: 0 | AU100: 0 | AV100: 0 | AW100: 0 | AX100: 0 | AY100: 0 | AZ100: 0 | BA100: 0 | BB100: 0 | BC100: 0 | BD100: 0 | BE100: 0 | BF100: 0 | BG100: 0 | BH100: 0 | BI100: 0 | BJ100: 0 | BK100: 0 | BL100: 0 | BM100: 0 | BN100: 0 | BO100: 0 | BP100: 0 | BQ100: 0 | BR100: 0 | BS100: 0 | BT100: 0 | BU100: 0 | BV100: 0 | BW100: 0 | BX100: 0 | BY100: =MAX(BY98-BY103,0) -> 0 | BZ100: 0 | CA100: 0 | CB100: 0 | CC100: 0 | CD100: 0 | CE100: 0 | CF100: 0 | CG100: 0 | CH100: 0 | CI100: 0 | CJ100: 0 | CK100: 0 | CL100: 0 | CM100: 0 | CN100: 0 | CO100: 0 | CP100: 0 | CQ100: 0 | CR100: 0 | CS100: 0 | CT100: 0 | CU100: 0 | CV100: 0 | CW100: 0 | CX100: 0 | CY100: 0 | CZ100: 0 | DA100: 0 | DB100: 0 | DC100: 0 | DD100: 0 | DE100: 0 | DF100: 0
C101: Second Junior Debt Tranche | J101: =SUM(L101:DF101) -> 0
C102: Senior Debt | J102: =SUM(L102:DF102) -> 0
C103: Equity | J103: =SUM(L103:DF103) -> 2152 | K103: =J103/$J$104 -> 0.2285773188 | L103: =L76 -> 770 | M103: =IF(AND($G$18=2,$H$23=2),N77+N78,0) -> 0 | N103: =IF(AND($G$18=2,$H$23=2),O77+O78,0) -> 566 | O103: 0 | P103: 0 | Q103: 0 | R103: 816 | S103: 0 | T103: 0 | U103: 0 | V103: 0 | W103: 0 | X103: 0 | Y103: 0 | Z103: 0 | AA103: 0 | AB103: 0 | AC103: 0 | AD103: 0 | AE103: 0 | AF103: 0 | AG103: 0 | AH103: 0 | AI103: 0 | AJ103: 0 | AK103: 0 | AL103: 0 | AM103: 0 | AN103: 0 | AO103: 0 | AP103: 0 | AQ103: 0 | AR103: 0 | AS103: 0 | AT103: 0 | AU103: 0 | AV103: 0 | AW103: 0 | AX103: 0 | AY103: 0 | AZ103: 0 | BA103: 0 | BB103: 0 | BC103: 0 | BD103: 0 | BE103: 0 | BF103: 0 | BG103: 0 | BH103: 0 | BI103: 0 | BJ103: 0 | BK103: 0 | BL103: 0 | BM103: 0 | BN103: 0 | BO103: 0 | BP103: 0 | BQ103: 0 | BR103: 0 | BS103: 0 | BT103: 0 | BU103: 0 | BV103: 0 | BW103: 0 | BX103: 0 | BY103: 0 | BZ103: =IF(AND($G$18=2,$H$23=2),CA77+CA78,0) -> 0 | CA103: 0 | CB103: 0 | CC103: 0 | CD103: 0 | CE103: 0 | CF103: 0 | CG103: 0 | CH103: 0 | CI103: 0 | CJ103: 0 | CK103: 0 | CL103: 0 | CM103: 0 | CN103: 0 | CO103: 0 | CP103: 0 | CQ103: 0 | CR103: 0 | CS103: 0 | CT103: 0 | CU103: 0 | CV103: 0 | CW103: 0 | CX103: 0 | CY103: 0 | CZ103: 0 | DA103: 0 | DB103: 0 | DC103: 0 | DD103: 0 | DE103: 0 | DF103: 0
D104: Total | J104: =SUM(J100:J103) -> 9414.757383 | L104: =SUM(L100:L103) -> 770 | M104: =SUM(M100:M103) -> 541.327795 | N104: 1167.546181 | O104: 1568.285848 | P104: 1369.499949 | Q104: 1677.485119 | R104: 1358.273446 | S104: 962.3390454 | T104: 0 | U104: 0 | V104: 0 | W104: 0 | X104: 0 | Y104: 0 | Z104: 0 | AA104: 0 | AB104: 0 | AC104: 0 | AD104: 0 | AE104: 0 | AF104: 0 | AG104: 0 | AH104: 0 | AI104: 0 | AJ104: 0 | AK104: 0 | AL104: 0 | AM104: 0 | AN104: 0 | AO104: 0 | AP104: 0 | AQ104: 0 | AR104: 0 | AS104: 0 | AT104: 0 | AU104: 0 | AV104: 0 | AW104: 0 | AX104: 0 | AY104: 0 | AZ104: 0 | BA104: 0 | BB104: 0 | BC104: 0 | BD104: 0 | BE104: 0 | BF104: 0 | BG104: 0 | BH104: 0 | BI104: 0 | BJ104: 0 | BK104: 0 | BL104: 0 | BM104: 0 | BN104: 0 | BO104: 0 | BP104: 0 | BQ104: 0 | BR104: 0 | BS104: 0 | BT104: 0 | BU104: 0 | BV104: 0 | BW104: 0 | BX104: 0 | BY104: =SUM(BY100:BY103) -> 0 | BZ104: 0 | CA104: 0 | CB104: 0 | CC104: 0 | CD104: 0 | CE104: 0 | CF104: 0 | CG104: 0 | CH104: 0 | CI104: 0 | CJ104: 0 | CK104: 0 | CL104: 0 | CM104: 0 | CN104: 0 | CO104: 0 | CP104: 0 | CQ104: 0 | CR104: 0 | CS104: 0 | CT104: 0 | CU104: 0 | CV104: 0 | CW104: 0 | CX104: 0 | CY104: 0 | CZ104: 0 | DA104: 0 | DB104: 0 | DC104: 0 | DD104: 0 | DE104: 0 | DF104: 0
C106: Difference | L106: =L104-L98 -> 0 | M106: =M104-M98 -> 0 | N106: 0 | O106: 0 | P106: 0 | Q106: 0 | R106: 0 | S106: 0 | T106: 0 | U106: 0 | V106: 0 | W106: 0 | X106: 0 | Y106: 0 | Z106: 0 | AA106: 0 | AB106: 0 | AC106: 0 | AD106: 0 | AE106: 0 | AF106: 0 | AG106: 0 | AH106: 0 | AI106: 0 | AJ106: 0 | AK106: 0 | AL106: 0 | AM106: 0 | AN106: 0 | AO106: 0 | AP106: 0 | AQ106: 0 | AR106: 0 | AS106: 0 | AT106: 0 | AU106: 0 | AV106: 0 | AW106: 0 | AX106: 0 | AY106: 0 | AZ106: 0 | BA106: 0 | BB106: 0 | BC106: 0 | BD106: 0 | BE106: 0 | BF106: 0 | BG106: 0 | BH106: 0 | BI106: 0 | BJ106: 0 | BK106: 0 | BL106: 0 | BM106: 0 | BN106: 0 | BO106: 0 | BP106: 0 | BQ106: 0 | BR106: 0 | BS106: 0 | BT106: 0 | BU106: 0 | BV106: 0 | BW106: 0 | BX106: 0 | BY106: =BY104-BY98 -> 0 | BZ106: 0 | CA106: 0 | CB106: 0 | CC106: 0 | CD106: 0 | CE106: 0 | CF106: 0 | CG106: 0 | CH106: 0 | CI106: 0 | CJ106: 0 | CK106: 0 | CL106: 0 | CM106: 0 | CN106: 0 | CO106: 0 | CP106: 0 | CQ106: 0 | CR106: 0 | CS106: 0 | CT106: 0 | CU106: 0 | CV106: 0 | CW106: 0 | CX106: 0 | CY106: 0 | CZ106: 0 | DA106: 0 | DB106: 0 | DC106: 0 | DD106: 0 | DE106: 0 | DF106: 0
C108: Total Required Debt | L108: =L98-L103 -> 0 | M108: =M98-M103 -> 541.327795 | N108: 601.5461807 | O108: 1568.285848 | P108: 1369.499949 | Q108: 1677.485119 | R108: 542.2734461 | S108: 962.3390454 | T108: 0 | U108: 0 | V108: 0 | W108: 0 | X108: 0 | Y108: 0 | Z108: 0 | AA108: 0 | AB108: 0 | AC108: 0 | AD108: 0 | AE108: 0 | AF108: 0 | AG108: 0 | AH108: 0 | AI108: 0 | AJ108: 0 | AK108: 0 | AL108: 0 | AM108: 0 | AN108: 0 | AO108: 0 | AP108: 0 | AQ108: 0 | AR108: 0 | AS108: 0 | AT108: 0 | AU108: 0 | AV108: 0 | AW108: 0 | AX108: 0 | AY108: 0 | AZ108: 0 | BA108: 0 | BB108: 0 | BC108: 0 | BD108: 0 | BE108: 0 | BF108: 0 | BG108: 0 | BH108: 0 | BI108: 0 | BJ108: 0 | BK108: 0 | BL108: 0 | BM108: 0 | BN108: 0 | BO108: 0 | BP108: 0 | BQ108: 0 | BR108: 0 | BS108: 0 | BT108: 0 | BU108: 0 | BV108: 0 | BW108: 0 | BX108: 0 | BY108: =BY98-BY103 -> 0 | BZ108: 0 | CA108: 0 | CB108: 0 | CC108: 0 | CD108: 0 | CE108: 0 | CF108: 0 | CG108: 0 | CH108: 0 | CI108: 0 | CJ108: 0 | CK108: 0 | CL108: 0 | CM108: 0 | CN108: 0 | CO108: 0 | CP108: 0 | CQ108: 0 | CR108: 0 | CS108: 0 | CT108: 0 | CU108: 0 | CV108: 0 | CW108: 0 | CX108: 0 | CY108: 0 | CZ108: 0 | DA108: 0 | DB108: 0 | DC108: 0 | DD108: 0 | DE108: 0 | DF108: 0
B110: Debt Schedule
C111: Total Accumulated Debt
C113: Commitment | L113: =$G$51 -> 5000 | M113: 5000 | N113: 5000 | O113: 5000 | P113: 5000 | Q113: 5000 | R113: 5000 | S113: 5000 | T113: 5000 | U113: 5000 | V113: 5000 | W113: 5000 | X113: 5000 | Y113: 5000 | Z113: 5000 | AA113: 5000 | AB113: 5000 | AC113: 5000 | AD113: 5000 | AE113: 5000 | AF113: 5000 | AG113: 5000 | AH113: 5000 | AI113: 5000 | AJ113: 5000 | AK113: 5000 | AL113: 5000 | AM113: 5000 | AN113: 5000 | AO113: 5000 | AP113: 5000 | AQ113: 5000 | AR113: 5000 | AS113: 5000 | AT113: 5000 | AU113: 5000 | AV113: 5000 | AW113: 5000 | AX113: 5000 | AY113: 5000 | AZ113: 5000 | BA113: 5000 | BB113: 5000 | BC113: 5000 | BD113: 5000 | BE113: 5000 | BF113: 5000 | BG113: 5000 | BH113: 5000 | BI113: 5000 | BJ113: 5000 | BK113: 5000 | BL113: 5000 | BM113: 5000 | BN113: 5000 | BO113: 5000 | BP113: 5000 | BQ113: 5000 | BR113: 5000 | BS113: 5000 | BT113: 5000 | BU113: 5000 | BV113: 5000 | BW113: 5000 | BX113: =$G$51 -> 5000 | BY113: 5000 | BZ113: 5000 | CA113: 5000 | CB113: 5000 | CC113: 5000 | CD113: 5000 | CE113: 5000 | CF113: 5000 | CG113: 5000 | CH113: 5000 | CI113: 5000 | CJ113: 5000 | CK113: 5000 | CL113: 5000 | CM113: 5000 | CN113: 5000 | CO113: 5000 | CP113: 5000 | CQ113: 5000 | CR113: 5000 | CS113: 5000 | CT113: 5000 | CU113: 5000 | CV113: 5000 | CW113: 5000 | CX113: 5000 | CY113: 5000 | CZ113: 5000 | DA113: 5000 | DB113: 5000 | DC113: 5000 | DD113: 5000 | DE113: 5000 | DF113: 5000
C114: Draws | L114: =L100 -> 0 | M114: =M100 -> 541.327795 | N114: 601.5461807 | O114: 1568.285848 | P114: 1369.499949 | Q114: 1677.485119 | R114: 542.2734461 | S114: 962.3390454 | T114: 0 | U114: 0 | V114: 0 | W114: 0 | X114: 0 | Y114: 0 | Z114: 0 | AA114: 0 | AB114: 0 | AC114: 0 | AD114: 0 | AE114: 0 | AF114: 0 | AG114: 0 | AH114: 0 | AI114: 0 | AJ114: 0 | AK114: 0 | AL114: 0 | AM114: 0 | AN114: 0 | AO114: 0 | AP114: 0 | AQ114: 0 | AR114: 0 | AS114: 0 | AT114: 0 | AU114: 0 | AV114: 0 | AW114: 0 | AX114: 0 | AY114: 0 | AZ114: 0 | BA114: 0 | BB114: 0 | BC114: 0 | BD114: 0 | BE114: 0 | BF114: 0 | BG114: 0 | BH114: 0 | BI114: 0 | BJ114: 0 | BK114: 0 | BL114: 0 | BM114: 0 | BN114: 0 | BO114: 0 | BP114: 0 | BQ114: 0 | BR114: 0 | BS114: 0 | BT114: 0 | BU114: 0 | BV114: 0 | BW114: 0 | BX114: 0 | BY114: =BY100 -> 0 | BZ114: 0 | CA114: 0 | CB114: 0 | CC114: 0 | CD114: 0 | CE114: 0 | CF114: 0 | CG114: 0 | CH114: 0 | CI114: 0 | CJ114: 0 | CK114: 0 | CL114: 0 | CM114: 0 | CN114: 0 | CO114: 0 | CP114: 0 | CQ114: 0 | CR114: 0 | CS114: 0 | CT114: 0 | CU114: 0 | CV114: 0 | CW114: 0 | CX114: 0 | CY114: 0 | CZ114: 0 | DA114: 0 | DB114: 0 | DC114: 0 | DD114: 0 | DE114: 0 | DF114: 0
C115: Accumulated Draws | L115: =K115+L114 -> 0 | M115: =L115+M114 -> 541.327795 | N115: 1142.873976 | O115: 2711.159824 | P115: 4080.659773 | Q115: 5758.144892 | R115: 6300.418338 | S115: 7262.757383 | T115: 7262.757383 | U115: 7262.757383 | V115: 7262.757383 | W115: 7262.757383 | X115: 7262.757383 | Y115: 7262.757383 | Z115: 7262.757383 | AA115: 7262.757383 | AB115: 7262.757383 | AC115: 7262.757383 | AD115: 7262.757383 | AE115: 7262.757383 | AF115: 7262.757383 | AG115: 7262.757383 | AH115: 7262.757383 | AI115: 7262.757383 | AJ115: 7262.757383 | AK115: 7262.757383 | AL115: 7262.757383 | AM115: 7262.757383 | AN115: 7262.757383 | AO115: 7262.757383 | AP115: 7262.757383 | AQ115: 7262.757383 | AR115: 7262.757383 | AS115: 7262.757383 | AT115: 7262.757383 | AU115: 7262.757383 | AV115: 7262.757383 | AW115: 7262.757383 | AX115: 7262.757383 | AY115: 7262.757383 | AZ115: 7262.757383 | BA115: 7262.757383 | BB115: 7262.757383 | BC115: 7262.757383 | BD115: 7262.757383 | BE115: 7262.757383 | BF115: 7262.757383 | BG115: 7262.757383 | BH115: 7262.757383 | BI115: 7262.757383 | BJ115: 7262.757383 | BK115: 7262.757383 | BL115: 7262.757383 | BM115: 7262.757383 | BN115: 7262.757383 | BO115: 7262.757383 | BP115: 7262.757383 | BQ115: 7262.757383 | BR115: 7262.757383 | BS115: 7262.757383 | BT115: 7262.757383 | BU115: 7262.757383 | BV115: 7262.757383 | BW115: 7262.757383 | BX115: 7262.757383 | BY115: =BX115+BY114 -> 7262.757383 | BZ115: 7262.757383 | CA115: 7262.757383 | CB115: 7262.757383 | CC115: 7262.757383 | CD115: 7262.757383 | CE115: 7262.757383 | CF115: 7262.757383 | CG115: 7262.757383 | CH115: 7262.757383 | CI115: 7262.757383 | CJ115: 7262.757383 | CK115: 7262.757383 | CL115: 7262.757383 | CM115: 7262.757383 | CN115: 7262.757383 | CO115: 7262.757383 | CP115: 7262.757383 | CQ115: 7262.757383 | CR115: 7262.757383 | CS115: 7262.757383 | CT115: 7262.757383 | CU115: 7262.757383 | CV115: 7262.757383 | CW115: 7262.757383 | CX115: 7262.757383 | CY115: 7262.757383 | CZ115: 7262.757383 | DA115: 7262.757383 | DB115: 7262.757383 | DC115: 7262.757383 | DD115: 7262.757383 | DE115: 7262.757383 | DF115: 7262.757383
C117: Opening Balance | L117: =K120 -> 0 | M117: =L120 -> 0 | N117: 541.327795 | O117: 1142.873976 | P117: 2711.159824 | Q117: 4080.659773 | R117: 5758.144892 | S117: 6300.418338 | T117: 7262.757383 | U117: 7147.929433 | V117: 7025.063525 | W117: 6893.597005 | X117: 6752.927828 | Y117: 6602.411808 | Z117: 6441.359667 | AA117: 6269.033876 | AB117: 6084.64528 | AC117: 5887.349482 | AD117: 5676.242978 | AE117: 5450.359019 | AF117: 5208.663183 | AG117: 4950.048638 | AH117: 4673.331076 | AI117: 4377.243283 | AJ117: 4060.429346 | AK117: 3721.438432 | AL117: 3358.718155 | AM117: 2970.607458 | AN117: 2555.329013 | AO117: 2110.981076 | AP117: 1635.528784 | AQ117: 1126.794832 | AR117: 582.4495023 | AS117: 0 | AT117: 0 | AU117: 0 | AV117: 0 | AW117: 0 | AX117: 0 | AY117: 0 | AZ117: 0 | BA117: 0 | BB117: 0 | BC117: 0 | BD117: 0 | BE117: 0 | BF117: 0 | BG117: 0 | BH117: 0 | BI117: 0 | BJ117: 0 | BK117: 0 | BL117: 0 | BM117: 0 | BN117: 0 | BO117: 0 | BP117: 0 | BQ117: 0 | BR117: 0 | BS117: 0 | BT117: 0 | BU117: 0 | BV117: 0 | BW117: 0 | BX117: 0 | BY117: =BX120 -> 0 | BZ117: 0 | CA117: 0 | CB117: 0 | CC117: 0 | CD117: 0 | CE117: 0 | CF117: 0 | CG117: 0 | CH117: 0 | CI117: 0 | CJ117: 0 | CK117: 0 | CL117: 0 | CM117: 0 | CN117: 0 | CO117: 0 | CP117: 0 | CQ117: 0 | CR117: 0 | CS117: 0 | CT117: 0 | CU117: 0 | CV117: 0 | CW117: 0 | CX117: 0 | CY117: 0 | CZ117: 0 | DA117: 0 | DB117: 0 | DC117: 0 | DD117: 0 | DE117: 0 | DF117: 0
C118: Add: Draws | L118: =L108 -> 0 | M118: =M108 -> 541.327795 | N118: 601.5461807 | O118: 1568.285848 | P118: 1369.499949 | Q118: 1677.485119 | R118: 542.2734461 | S118: 962.3390454 | T118: 0 | U118: 0 | V118: 0 | W118: 0 | X118: 0 | Y118: 0 | Z118: 0 | AA118: 0 | AB118: 0 | AC118: 0 | AD118: 0 | AE118: 0 | AF118: 0 | AG118: 0 | AH118: 0 | AI118: 0 | AJ118: 0 | AK118: 0 | AL118: 0 | AM118: 0 | AN118: 0 | AO118: 0 | AP118: 0 | AQ118: 0 | AR118: 0 | AS118: 0 | AT118: 0 | AU118: 0 | AV118: 0 | AW118: 0 | AX118: 0 | AY118: 0 | AZ118: 0 | BA118: 0 | BB118: 0 | BC118: 0 | BD118: 0 | BE118: 0 | BF118: 0 | BG118: 0 | BH118: 0 | BI118: 0 | BJ118: 0 | BK118: 0 | BL118: 0 | BM118: 0 | BN118: 0 | BO118: 0 | BP118: 0 | BQ118: 0 | BR118: 0 | BS118: 0 | BT118: 0 | BU118: 0 | BV118: 0 | BW118: 0 | BX118: 0 | BY118: =BY108 -> 0 | BZ118: 0 | CA118: 0 | CB118: 0 | CC118: 0 | CD118: 0 | CE118: 0 | CF118: 0 | CG118: 0 | CH118: 0 | CI118: 0 | CJ118: 0 | CK118: 0 | CL118: 0 | CM118: 0 | CN118: 0 | CO118: 0 | CP118: 0 | CQ118: 0 | CR118: 0 | CS118: 0 | CT118: 0 | CU118: 0 | CV118: 0 | CW118: 0 | CX118: 0 | CY118: 0 | CZ118: 0 | DA118: 0 | DB118: 0 | DC118: 0 | DD118: 0 | DE118: 0 | DF118: 0
C119: ="Less: Repayments "&INDEX(C136:C138,$G$140) -> Less: Repayments Amortising | L119: =MIN(L140,L117) -> 0 | M119: =MIN(M140,M117) -> 0 | N119: 0 | O119: 0 | P119: 0 | Q119: 0 | R119: 0 | S119: 0 | T119: 114.8279507 | U119: 122.8659072 | V119: 131.4665207 | W119: 140.6691772 | X119: 150.5160196 | Y119: 161.052141 | Z119: 172.3257908 | AA119: 184.3885962 | AB119: 197.2957979 | AC119: 211.1065038 | AD119: 225.883959 | AE119: 241.6958362 | AF119: 258.6145447 | AG119: 276.7175628 | AH119: 296.0877922 | AI119: 316.8139377 | AJ119: 338.9909133 | AK119: 362.7202772 | AL119: 388.1106967 | AM119: 415.2784454 | AN119: 444.3479366 | AO119: 475.4522922 | AP119: 508.7339526 | AQ119: 544.3453293 | AR119: 582.4495023 | AS119: 0 | AT119: 0 | AU119: 0 | AV119: 0 | AW119: 0 | AX119: 0 | AY119: 0 | AZ119: 0 | BA119: 0 | BB119: 0 | BC119: 0 | BD119: 0 | BE119: 0 | BF119: 0 | BG119: 0 | BH119: 0 | BI119: 0 | BJ119: 0 | BK119: 0 | BL119: 0 | BM119: 0 | BN119: 0 | BO119: 0 | BP119: 0 | BQ119: 0 | BR119: 0 | BS119: 0 | BT119: 0 | BU119: 0 | BV119: 0 | BW119: 0 | BX119: 0 | BY119: =MIN(BY140,BY117) -> 0 | BZ119: 0 | CA119: 0 | CB119: 0 | CC119: 0 | CD119: 0 | CE119: 0 | CF119: 0 | CG119: 0 | CH119: 0 | CI119: 0 | CJ119: 0 | CK119: 0 | CL119: 0 | CM119: 0 | CN119: 0 | CO119: 0 | CP119: 0 | CQ119: 0 | CR119: 0 | CS119: 0 | CT119: 0 | CU119: 0 | CV119: 0 | CW119: 0 | CX119: 0 | CY119: 0 | CZ119: 0 | DA119: 0 | DB119: 0 | DC119: 0 | DD119: 0 | DE119: 0 | DF119: 0
C120: Closing Balance | L120: =L117+L118-L119 -> 0 | M120: 541.327795 | N120: 1142.873976 | O120: 2711.159824 | P120: 4080.659773 | Q120: 5758.144892 | R120: 6300.418338 | S120: 7262.757383 | T120: 7147.929433 | U120: 7025.063525 | V120: 6893.597005 | W120: 6752.927828 | X120: 6602.411808 | Y120: 6441.359667 | Z120: 6269.033876 | AA120: 6084.64528 | AB120: 5887.349482 | AC120: 5676.242978 | AD120: 5450.359019 | AE120: 5208.663183 | AF120: 4950.048638 | AG120: 4673.331076 | AH120: 4377.243283 | AI120: 4060.429346 | AJ120: 3721.438432 | AK120: 3358.718155 | AL120: 2970.607458 | AM120: 2555.329013 | AN120: 2110.981076 | AO120: 1635.528784 | AP120: 1126.794832 | AQ120: 582.4495023 | AR120: =AR117+AR118-AR119 -> 0 | AS120: 0 | AT120: 0 | AU120: 0 | AV120: 0 | AW120: 0 | AX120: 0 | AY120: 0 | AZ120: 0 | BA120: 0 | BB120: 0 | BC120: 0 | BD120: 0 | BE120: 0 | BF120: 0 | BG120: 0 | BH120: 0 | BI120: 0 | BJ120: 0 | BK120: 0 | BL120: 0 | BM120: 0 | BN120: 0 | BO120: 0 | BP120: 0 | BQ120: 0 | BR120: 0 | BS120: 0 | BT120: 0 | BU120: 0 | BV120: 0 | BW120: 0 | BX120: =BX117+BX118-BX119 -> 0 | BY120: 0 | BZ120: 0 | CA120: 0 | CB120: 0 | CC120: 0 | CD120: 0 | CE120: 0 | CF120: 0 | CG120: 0 | CH120: 0 | CI120: 0 | CJ120: 0 | CK120: 0 | CL120: 0 | CM120: 0 | CN120: 0 | CO120: 0 | CP120: 0 | CQ120: 0 | CR120: 0 | CS120: 0 | CT120: 0 | CU120: 0 | CV120: 0 | CW120: 0 | CX120: 0 | CY120: 0 | CZ120: 0 | DA120: 0 | DB120: 0 | DC120: 0 | DD120: =DD117+DD118-DD119 -> 0 | DE120: =DE117+DE118-DE119 -> 0 | DF120: =DF117+DF118-DF119 -> 0
C122: Opening Balance | L122: =K123 -> 0 | M122: =L123 -> 0 | N122: 0 | O122: 0 | P122: 0 | Q122: 0 | R122: 0 | S122: 0 | T122: 0 | U122: 0 | V122: 0 | W122: 0 | X122: 0 | Y122: 0 | Z122: 0 | AA122: 0 | AB122: 0 | AC122: 0 | AD122: 0 | AE122: 0 | AF122: 0 | AG122: 0 | AH122: 0 | AI122: 0 | AJ122: 0 | AK122: 0 | AL122: 0 | AM122: 0 | AN122: 0 | AO122: 0 | AP122: 0 | AQ122: 0 | AR122: 0 | AS122: 0 | AT122: 0 | AU122: 0 | AV122: 0 | AW122: 0 | AX122: 0 | AY122: 0 | AZ122: 0 | BA122: 0 | BB122: 0 | BC122: 0 | BD122: 0 | BE122: 0 | BF122: 0 | BG122: 0 | BH122: 0 | BI122: 0 | BJ122: 0 | BK122: 0 | BL122: 0 | BM122: 0 | BN122: 0 | BO122: 0 | BP122: 0 | BQ122: 0 | BR122: 0 | BS122: 0 | BT122: 0 | BU122: 0 | BV122: 0 | BW122: 0 | BX122: 0 | BY122: =BX123 -> 0 | BZ122: 0 | CA122: 0 | CB122: 0 | CC122: 0 | CD122: 0 | CE122: 0 | CF122: 0 | CG122: 0 | CH122: 0 | CI122: 0 | CJ122: 0 | CK122: 0 | CL122: 0 | CM122: 0 | CN122: 0 | CO122: 0 | CP122: 0 | CQ122: 0 | CR122: 0 | CS122: 0 | CT122: 0 | CU122: 0 | CV122: 0 | CW122: 0 | CX122: 0 | CY122: 0 | CZ122: 0 | DA122: 0 | DB122: 0 | DC122: 0 | DD122: 0 | DE122: 0 | DF122: 0
C123: Add: Defaults | L123: =L182 -> 0 | M123: 0 | N123: 0 | O123: 0 | P123: 0 | Q123: 0 | R123: 0 | S123: 0 | T123: 0 | U123: 0 | V123: 0 | W123: 0 | X123: 0 | Y123: 0 | Z123: 0 | AA123: 0 | AB123: 0 | AC123: 0 | AD123: 0 | AE123: 0 | AF123: 0 | AG123: 0 | AH123: 0 | AI123: 0 | AJ123: 0 | AK123: 0 | AL123: 0 | AM123: 0 | AN123: 0 | AO123: 0 | AP123: 0 | AQ123: 0 | AR123: =AR182 -> 0 | AS123: 0 | AT123: 0 | AU123: 0 | AV123: 0 | AW123: 0 | AX123: 0 | AY123: 0 | AZ123: 0 | BA123: 0 | BB123: 0 | BC123: 0 | BD123: 0 | BE123: 0 | BF123: 0 | BG123: 0 | BH123: 0 | BI123: 0 | BJ123: 0 | BK123: 0 | BL123: 0 | BM123: 0 | BN123: 0 | BO123: 0 | BP123: 0 | BQ123: 0 | BR123: 0 | BS123: 0 | BT123: 0 | BU123: 0 | BV123: 0 | BW123: 0 | BX123: =BX182 -> 0 | BY123: 0 | BZ123: 0 | CA123: 0 | CB123: 0 | CC123: 0 | CD123: 0 | CE123: 0 | CF123: 0 | CG123: 0 | CH123: 0 | CI123: 0 | CJ123: 0 | CK123: 0 | CL123: 0 | CM123: 0 | CN123: 0 | CO123: 0 | CP123: 0 | CQ123: 0 | CR123: 0 | CS123: 0 | CT123: 0 | CU123: 0 | CV123: 0 | CW123: 0 | CX123: 0 | CY123: 0 | CZ123: 0 | DA123: 0 | DB123: 0 | DC123: 0 | DD123: 0 | DE123: 0 | DF123: 0
C124: Less: Repayment of Default | M124: =L123 -> 0 | N124: 0 | O124: 0 | P124: 0 | Q124: 0 | R124: 0 | S124: 0 | T124: 0 | U124: 0 | V124: 0 | W124: 0 | X124: 0 | Y124: 0 | Z124: 0 | AA124: 0 | AB124: 0 | AC124: 0 | AD124: 0 | AE124: 0 | AF124: 0 | AG124: 0 | AH124: 0 | AI124: 0 | AJ124: 0 | AK124: 0 | AL124: 0 | AM124: 0 | AN124: 0 | AO124: 0 | AP124: 0 | AQ124: 0 | AR124: 0 | AS124: =AR123 -> 0 | AT124: 0 | AU124: 0 | AV124: 0 | AW124: 0 | AX124: 0 | AY124: 0 | AZ124: 0 | BA124: 0 | BB124: 0 | BC124: 0 | BD124: 0 | BE124: 0 | BF124: 0 | BG124: 0 | BH124: 0 | BI124: 0 | BJ124: 0 | BK124: 0 | BL124: 0 | BM124: 0 | BN124: 0 | BO124: 0 | BP124: 0 | BQ124: 0 | BR124: 0 | BS124: 0 | BT124: 0 | BU124: 0 | BV124: 0 | BW124: 0 | BX124: 0 | BY124: =BX123 -> 0 | BZ124: 0 | CA124: 0 | CB124: 0 | CC124: 0 | CD124: 0 | CE124: 0 | CF124: 0 | CG124: 0 | CH124: 0 | CI124: 0 | CJ124: 0 | CK124: 0 | CL124: 0 | CM124: 0 | CN124: 0 | CO124: 0 | CP124: 0 | CQ124: 0 | CR124: 0 | CS124: 0 | CT124: 0 | CU124: 0 | CV124: 0 | CW124: 0 | CX124: 0 | CY124: 0 | CZ124: 0 | DA124: 0 | DB124: 0 | DC124: 0 | DD124: 0 | DE124: 0 | DF124: 0
C125: Closing Balance | L125: =L122+L123-L124 -> 0 | M125: =M122+M123-M124 -> 0 | N125: 0 | O125: 0 | P125: 0 | Q125: 0 | R125: 0 | S125: 0 | T125: 0 | U125: 0 | V125: 0 | W125: 0 | X125: 0 | Y125: 0 | Z125: 0 | AA125: 0 | AB125: 0 | AC125: 0 | AD125: 0 | AE125: 0 | AF125: 0 | AG125: 0 | AH125: 0 | AI125: 0 | AJ125: 0 | AK125: 0 | AL125: 0 | AM125: 0 | AN125: 0 | AO125: 0 | AP125: 0 | AQ125: 0 | AR125: 0 | AS125: 0 | AT125: 0 | AU125: 0 | AV125: 0 | AW125: 0 | AX125: 0 | AY125: 0 | AZ125: 0 | BA125: 0 | BB125: 0 | BC125: 0 | BD125: 0 | BE125: 0 | BF125: 0 | BG125: 0 | BH125: 0 | BI125: 0 | BJ125: 0 | BK125: 0 | BL125: 0 | BM125: 0 | BN125: 0 | BO125: 0 | BP125: 0 | BQ125: 0 | BR125: 0 | BS125: 0 | BT125: 0 | BU125: 0 | BV125: 0 | BW125: 0 | BX125: 0 | BY125: =BY122+BY123-BY124 -> 0 | BZ125: 0 | CA125: 0 | CB125: 0 | CC125: 0 | CD125: 0 | CE125: 0 | CF125: 0 | CG125: 0 | CH125: 0 | CI125: 0 | CJ125: 0 | CK125: 0 | CL125: 0 | CM125: 0 | CN125: 0 | CO125: 0 | CP125: 0 | CQ125: 0 | CR125: 0 | CS125: 0 | CT125: 0 | CU125: 0 | CV125: 0 | CW125: 0 | CX125: 0 | CY125: 0 | CZ125: 0 | DA125: 0 | DB125: 0 | DC125: 0 | DD125: 0 | DE125: 0 | DF125: 0
C127: Total Debt | L127: =L125+L120 -> 0 | M127: =M125+M120 -> 541.327795 | N127: 1142.873976 | O127: 2711.159824 | P127: 4080.659773 | Q127: 5758.144892 | R127: 6300.418338 | S127: 7262.757383 | T127: 7147.929433 | U127: 7025.063525 | V127: 6893.597005 | W127: 6752.927828 | X127: 6602.411808 | Y127: 6441.359667 | Z127: 6269.033876 | AA127: 6084.64528 | AB127: 5887.349482 | AC127: 5676.242978 | AD127: 5450.359019 | AE127: 5208.663183 | AF127: 4950.048638 | AG127: 4673.331076 | AH127: 4377.243283 | AI127: 4060.429346 | AJ127: 3721.438432 | AK127: 3358.718155 | AL127: 2970.607458 | AM127: 2555.329013 | AN127: 2110.981076 | AO127: 1635.528784 | AP127: 1126.794832 | AQ127: 582.4495023 | AR127: 0 | AS127: 0 | AT127: 0 | AU127: 0 | AV127: 0 | AW127: 0 | AX127: 0 | AY127: 0 | AZ127: 0 | BA127: 0 | BB127: 0 | BC127: 0 | BD127: 0 | BE127: 0 | BF127: 0 | BG127: 0 | BH127: 0 | BI127: 0 | BJ127: 0 | BK127: 0 | BL127: 0 | BM127: 0 | BN127: 0 | BO127: 0 | BP127: 0 | BQ127: 0 | BR127: 0 | BS127: 0 | BT127: 0 | BU127: 0 | BV127: 0 | BW127: 0 | BX127: 0 | BY127: =BY125+BY120 -> 0 | BZ127: 0 | CA127: 0 | CB127: 0 | CC127: 0 | CD127: 0 | CE127: 0 | CF127: 0 | CG127: 0 | CH127: 0 | CI127: 0 | CJ127: 0 | CK127: 0 | CL127: 0 | CM127: 0 | CN127: 0 | CO127: 0 | CP127: 0 | CQ127: 0 | CR127: 0 | CS127: 0 | CT127: 0 | CU127: 0 | CV127: 0 | CW127: 0 | CX127: 0 | CY127: 0 | CZ127: 0 | DA127: 0 | DB127: 0 | DC127: 0 | DD127: 0 | DE127: 0 | DF127: 0
C129: LIBOR Rate | L129: =L71 -> 0.06 | M129: =M71 -> 0.06 | N129: 0.06 | O129: 0.06 | P129: 0.06 | Q129: 0.06 | R129: 0.06 | S129: 0.06 | T129: 0.06 | U129: 0.06 | V129: 0.06 | W129: 0.06 | X129: 0.06 | Y129: 0.06 | Z129: 0.06 | AA129: 0.06 | AB129: 0.06 | AC129: 0.06 | AD129: 0.06 | AE129: 0.06 | AF129: 0.06 | AG129: 0.06 | AH129: 0.06 | AI129: 0.06 | AJ129: 0.06 | AK129: 0.06 | AL129: 0.06 | AM129: 0.06 | AN129: 0.06 | AO129: 0.06 | AP129: 0.06 | AQ129: 0.06 | AR129: 0.06 | AS129: 0.06 | AT129: 0.06 | AU129: 0.06 | AV129: 0.06 | AW129: 0.06 | AX129: 0.06 | AY129: 0.06 | AZ129: 0.06 | BA129: 0.06 | BB129: 0.06 | BC129: 0.06 | BD129: 0.06 | BE129: 0.06 | BF129: 0.06 | BG129: 0.06 | BH129: 0.06 | BI129: 0.06 | BJ129: 0.06 | BK129: 0.06 | BL129: 0.06 | BM129: 0.06 | BN129: 0.06 | BO129: 0.06 | BP129: 0.06 | BQ129: 0.06 | BR129: 0.06 | BS129: 0.06 | BT129: 0.06 | BU129: 0.06 | BV129: 0.06 | BW129: 0.06 | BX129: 0.06 | BY129: =BY71 -> 0.06 | BZ129: 0.06 | CA129: 0.06 | CB129: 0.06 | CC129: 0.06 | CD129: 0.06 | CE129: 0.06 | CF129: 0.06 | CG129: 0.06 | CH129: 0.06 | CI129: 0.06 | CJ129: 0.06 | CK129: 0.06 | CL129: 0.06 | CM129: 0.06 | CN129: 0.06 | CO129: 0.06 | CP129: 0.06 | CQ129: 0.06 | CR129: 0.06 | CS129: 0.06 | CT129: 0.06 | CU129: 0.06 | CV129: 0.06 | CW129: 0.06 | CX129: 0.06 | CY129: 0.06 | CZ129: 0.06 | DA129: 0.06 | DB129: 0.06 | DC129: 0.06 | DD129: 0.06 | DE129: 0.06 | DF129: 0.06
C130: Credit Spread | L130: =L8*$G$53+NOT(L8)*$G$54 -> 0.0125 | M130: =M8*$G$53+NOT(M8)*$G$54 -> 0.0125 | N130: 0.0125 | O130: 0.0125 | P130: 0.0125 | Q130: 0.0125 | R130: 0.0125 | S130: 0.0125 | T130: 0.01 | U130: 0.01 | V130: 0.01 | W130: 0.01 | X130: 0.01 | Y130: 0.01 | Z130: 0.01 | AA130: 0.01 | AB130: 0.01 | AC130: 0.01 | AD130: 0.01 | AE130: 0.01 | AF130: 0.01 | AG130: 0.01 | AH130: 0.01 | AI130: 0.01 | AJ130: 0.01 | AK130: 0.01 | AL130: 0.01 | AM130: 0.01 | AN130: 0.01 | AO130: 0.01 | AP130: 0.01 | AQ130: 0.01 | AR130: 0.01 | AS130: 0.01 | AT130: 0.01 | AU130: 0.01 | AV130: 0.01 | AW130: 0.01 | AX130: 0.01 | AY130: 0.01 | AZ130: 0.01 | BA130: 0.01 | BB130: 0.01 | BC130: 0.01 | BD130: 0.01 | BE130: 0.01 | BF130: 0.01 | BG130: 0.01 | BH130: 0.01 | BI130: 0.01 | BJ130: 0.01 | BK130: 0.01 | BL130: 0.01 | BM130: 0.01 | BN130: 0.01 | BO130: 0.01 | BP130: 0.01 | BQ130: 0.01 | BR130: 0.01 | BS130: 0.01 | BT130: 0.01 | BU130: 0.01 | BV130: 0.01 | BW130: 0.01 | BX130: 0.01 | BY130: =BY8*$G$53+NOT(BY8)*$G$54 -> 0.01 | BZ130: 0.01 | CA130: 0.01 | CB130: 0.01 | CC130: 0.01 | CD130: 0.01 | CE130: 0.01 | CF130: 0.01 | CG130: 0.01 | CH130: 0.01 | CI130: 0.01 | CJ130: 0.01 | CK130: 0.01 | CL130: 0.01 | CM130: 0.01 | CN130: 0.01 | CO130: 0.01 | CP130: 0.01 | CQ130: 0.01 | CR130: 0.01 | CS130: 0.01 | CT130: 0.01 | CU130: 0.01 | CV130: 0.01 | CW130: 0.01 | CX130: 0.01 | CY130: 0.01 | CZ130: 0.01 | DA130: 0.01 | DB130: 0.01 | DC130: 0.01 | DD130: 0.01 | DE130: 0.01 | DF130: 0.01
C131: Total Rate | L131: =L129+L130 -> 0.0725 | M131: =M129+M130 -> 0.0725 | N131: 0.0725 | O131: 0.0725 | P131: 0.0725 | Q131: 0.0725 | R131: 0.0725 | S131: 0.0725 | T131: 0.07 | U131: 0.07 | V131: 0.07 | W131: 0.07 | X131: 0.07 | Y131: 0.07 | Z131: 0.07 | AA131: 0.07 | AB131: 0.07 | AC131: 0.07 | AD131: 0.07 | AE131: 0.07 | AF131: 0.07 | AG131: 0.07 | AH131: 0.07 | AI131: 0.07 | AJ131: 0.07 | AK131: 0.07 | AL131: 0.07 | AM131: 0.07 | AN131: 0.07 | AO131: 0.07 | AP131: 0.07 | AQ131: 0.07 | AR131: 0.07 | AS131: 0.07 | AT131: 0.07 | AU131: 0.07 | AV131: 0.07 | AW131: 0.07 | AX131: 0.07 | AY131: 0.07 | AZ131: 0.07 | BA131: 0.07 | BB131: 0.07 | BC131: 0.07 | BD131: 0.07 | BE131: 0.07 | BF131: 0.07 | BG131: 0.07 | BH131: 0.07 | BI131: 0.07 | BJ131: 0.07 | BK131: 0.07 | BL131: 0.07 | BM131: 0.07 | BN131: 0.07 | BO131: 0.07 | BP131: 0.07 | BQ131: 0.07 | BR131: 0.07 | BS131: 0.07 | BT131: 0.07 | BU131: 0.07 | BV131: 0.07 | BW131: 0.07 | BX131: 0.07 | BY131: =BY129+BY130 -> 0.07 | BZ131: 0.07 | CA131: 0.07 | CB131: 0.07 | CC131: 0.07 | CD131: 0.07 | CE131: 0.07 | CF131: 0.07 | CG131: 0.07 | CH131: 0.07 | CI131: 0.07 | CJ131: 0.07 | CK131: 0.07 | CL131: 0.07 | CM131: 0.07 | CN131: 0.07 | CO131: 0.07 | CP131: 0.07 | CQ131: 0.07 | CR131: 0.07 | CS131: 0.07 | CT131: 0.07 | CU131: 0.07 | CV131: 0.07 | CW131: 0.07 | CX131: 0.07 | CY131: 0.07 | CZ131: 0.07 | DA131: 0.07 | DB131: 0.07 | DC131: 0.07 | DD131: 0.07 | DE131: 0.07 | DF131: 0.07
C133: Interst Cost | L133: =L131*L117+L131*L122 -> 0 | M133: 0 | N133: 39.24626514 | O133: 82.85836323 | P133: 196.5590872 | Q133: 295.8478335 | R133: 417.4655047 | S133: 456.7803295 | T133: 508.3930168 | U133: 500.3550603 | V133: 491.7544468 | W133: 482.5517903 | X133: 472.7049479 | Y133: 462.1688266 | Z133: 450.8951767 | AA133: 438.8323713 | AB133: 425.9251696 | AC133: 412.1144637 | AD133: 397.3370085 | AE133: 381.5251313 | AF133: 364.6064228 | AG133: 346.5034047 | AH133: 327.1331753 | AI133: 306.4070298 | AJ133: 284.2300542 | AK133: 260.5006903 | AL133: 235.1102709 | AM133: 207.9425221 | AN133: 178.8730309 | AO133: 147.7686753 | AP133: 114.4870149 | AQ133: 78.87563822 | AR133: =AR131*AR117+AR131*AR122 -> 40.77146516 | AS133: 0 | AT133: 0 | AU133: 0 | AV133: 0 | AW133: 0 | AX133: 0 | AY133: 0 | AZ133: 0 | BA133: 0 | BB133: 0 | BC133: 0 | BD133: 0 | BE133: 0 | BF133: 0 | BG133: 0 | BH133: 0 | BI133: 0 | BJ133: 0 | BK133: 0 | BL133: 0 | BM133: 0 | BN133: 0 | BO133: 0 | BP133: 0 | BQ133: 0 | BR133: 0 | BS133: 0 | BT133: 0 | BU133: 0 | BV133: 0 | BW133: 0 | BX133: =BX131*BX117+BX131*BX122 -> 0 | BY133: 0 | BZ133: 0 | CA133: 0 | CB133: 0 | CC133: 0 | CD133: 0 | CE133: 0 | CF133: 0 | CG133: 0 | CH133: 0 | CI133: 0 | CJ133: 0 | CK133: 0 | CL133: 0 | CM133: 0 | CN133: 0 | CO133: 0 | CP133: 0 | CQ133: 0 | CR133: 0 | CS133: 0 | CT133: 0 | CU133: 0 | CV133: 0 | CW133: 0 | CX133: 0 | CY133: 0 | CZ133: 0 | DA133: 0 | DB133: 0 | DC133: 0 | DD133: 0 | DE133: 0 | DF133: 0
C134: Interest Captialised | L134: =L133*L8 -> 0 | M134: 0 | N134: 39.24626514 | O134: 82.85836323 | P134: 196.5590872 | Q134: 295.8478335 | R134: 417.4655047 | S134: 456.7803295 | T134: 0 | U134: 0 | V134: 0 | W134: 0 | X134: 0 | Y134: 0 | Z134: 0 | AA134: 0 | AB134: 0 | AC134: 0 | AD134: 0 | AE134: 0 | AF134: 0 | AG134: 0 | AH134: 0 | AI134: 0 | AJ134: 0 | AK134: 0 | AL134: 0 | AM134: 0 | AN134: 0 | AO134: 0 | AP134: 0 | AQ134: 0 | AR134: =AR133*AR8 -> 0 | AS134: 0 | AT134: 0 | AU134: 0 | AV134: 0 | AW134: 0 | AX134: 0 | AY134: 0 | AZ134: 0 | BA134: 0 | BB134: 0 | BC134: 0 | BD134: 0 | BE134: 0 | BF134: 0 | BG134: 0 | BH134: 0 | BI134: 0 | BJ134: 0 | BK134: 0 | BL134: 0 | BM134: 0 | BN134: 0 | BO134: 0 | BP134: 0 | BQ134: 0 | BR134: 0 | BS134: 0 | BT134: 0 | BU134: 0 | BV134: 0 | BW134: 0 | BX134: =BX133*BX8 -> 0 | BY134: 0 | BZ134: 0 | CA134: 0 | CB134: 0 | CC134: 0 | CD134: 0 | CE134: 0 | CF134: 0 | CG134: 0 | CH134: 0 | CI134: 0 | CJ134: 0 | CK134: 0 | CL134: 0 | CM134: 0 | CN134: 0 | CO134: 0 | CP134: 0 | CQ134: 0 | CR134: 0 | CS134: 0 | CT134: 0 | CU134: 0 | CV134: 0 | CW134: 0 | CX134: 0 | CY134: 0 | CZ134: 0 | DA134: 0 | DB134: 0 | DC134: 0 | DD134: =DD133*DD8 -> 0 | DE134: =DE133*DE8 -> 0 | DF134: =DF133*DF8 -> 0
C136: Equal Installments | L136: =L115/$G$55*L10 -> 0 | M136: =M115/$G$55*M10 -> 0 | N136: 0 | O136: 0 | P136: 0 | Q136: 0 | R136: 0 | S136: 0 | T136: 290.5102953 | U136: 290.5102953 | V136: 290.5102953 | W136: 290.5102953 | X136: 290.5102953 | Y136: 290.5102953 | Z136: 290.5102953 | AA136: 290.5102953 | AB136: 290.5102953 | AC136: 290.5102953 | AD136: 290.5102953 | AE136: 290.5102953 | AF136: 290.5102953 | AG136: 290.5102953 | AH136: 290.5102953 | AI136: 290.5102953 | AJ136: 290.5102953 | AK136: 290.5102953 | AL136: 290.5102953 | AM136: 290.5102953 | AN136: 290.5102953 | AO136: 290.5102953 | AP136: 290.5102953 | AQ136: 290.5102953 | AR136: 290.5102953 | AS136: 0 | AT136: 0 | AU136: 0 | AV136: 0 | AW136: 0 | AX136: 0 | AY136: 0 | AZ136: 0 | BA136: 0 | BB136: 0 | BC136: 0 | BD136: 0 | BE136: 0 | BF136: 0 | BG136: 0 | BH136: 0 | BI136: 0 | BJ136: 0 | BK136: 0 | BL136: 0 | BM136: 0 | BN136: 0 | BO136: 0 | BP136: 0 | BQ136: 0 | BR136: 0 | BS136: 0 | BT136: 0 | BU136: 0 | BV136: 0 | BW136: 0 | BX136: 0 | BY136: =BY115/$G$55*BY10 -> 0 | BZ136: 0 | CA136: 0 | CB136: 0 | CC136: 0 | CD136: 0 | CE136: 0 | CF136: 0 | CG136: 0 | CH136: 0 | CI136: 0 | CJ136: 0 | CK136: 0 | CL136: 0 | CM136: 0 | CN136: 0 | CO136: 0 | CP136: 0 | CQ136: 0 | CR136: 0 | CS136: 0 | CT136: 0 | CU136: 0 | CV136: 0 | CW136: 0 | CX136: 0 | CY136: 0 | CZ136: 0 | DA136: 0 | DB136: 0 | DC136: 0 | DD136: 0 | DE136: 0 | DF136: 0
C137: Amortising | L137: =IF(L10,PPMT(L131,L7,$G$55,-L115))*1 -> 0 | M137: =IF(M10,PPMT(M131,M7,$G$55,-M115))*1 -> 0 | N137: 0 | O137: 0 | P137: 0 | Q137: 0 | R137: 0 | S137: 0 | T137: 114.8279507 | U137: 122.8659072 | V137: 131.4665207 | W137: 140.6691772 | X137: 150.5160196 | Y137: 161.052141 | Z137: 172.3257908 | AA137: 184.3885962 | AB137: 197.2957979 | AC137: 211.1065038 | AD137: 225.883959 | AE137: 241.6958362 | AF137: 258.6145447 | AG137: 276.7175628 | AH137: 296.0877922 | AI137: 316.8139377 | AJ137: 338.9909133 | AK137: 362.7202772 | AL137: 388.1106967 | AM137: 415.2784454 | AN137: 444.3479366 | AO137: 475.4522922 | AP137: 508.7339526 | AQ137: 544.3453293 | AR137: 582.4495023 | AS137: 0 | AT137: 0 | AU137: 0 | AV137: 0 | AW137: 0 | AX137: 0 | AY137: 0 | AZ137: 0 | BA137: 0 | BB137: 0 | BC137: 0 | BD137: 0 | BE137: 0 | BF137: 0 | BG137: 0 | BH137: 0 | BI137: 0 | BJ137: 0 | BK137: 0 | BL137: 0 | BM137: 0 | BN137: 0 | BO137: 0 | BP137: 0 | BQ137: 0 | BR137: 0 | BS137: 0 | BT137: 0 | BU137: 0 | BV137: 0 | BW137: 0 | BX137: 0 | BY137: =IF(BY10,PPMT(BY131,BY7,$G$55,-BY115))*1 -> 0 | BZ137: 0 | CA137: 0 | CB137: 0 | CC137: 0 | CD137: 0 | CE137: 0 | CF137: 0 | CG137: 0 | CH137: 0 | CI137: 0 | CJ137: 0 | CK137: 0 | CL137: 0 | CM137: 0 | CN137: 0 | CO137: 0 | CP137: 0 | CQ137: 0 | CR137: 0 | CS137: 0 | CT137: 0 | CU137: 0 | CV137: 0 | CW137: 0 | CX137: 0 | CY137: 0 | CZ137: 0 | DA137: 0 | DB137: 0 | DC137: 0 | DD137: 0 | DE137: 0 | DF137: 0
C138: Cash Sweep | L138: =L177-L179 -> 0 | M138: =M177-M179 -> 0 | N138: 0 | O138: 0 | P138: 0 | Q138: 0 | R138: 0 | S138: 0 | T138: 179.4498772 | U138: 243.9177446 | V138: 323.7763928 | W138: 389.0547369 | X138: 469.7837475 | Y138: 528.4965949 | Z138: 625.2288038 | AA138: 715.0184187 | AB138: 737.9061812 | AC138: 813.9357189 | AD138: 894.7037489 | AE138: 1005.784294 | AF138: 1084.791616 | AG138: 1168.061296 | AH138: 1255.825382 | AI138: 1348.32879 | AJ138: 1445.830036 | AK138: 1548.60201 | AL138: 1656.932794 | AM138: 1771.126531 | AN138: 1891.504337 | AO138: 2018.405282 | AP138: 2152.187408 | AQ138: 2293.228826 | AR138: 2441.928865 | AS138: 2598.709295 | AT138: 2731.296523 | AU138: 2870.589921 | AV138: 3016.926336 | AW138: 3170.659484 | AX138: 3332.160801 | AY138: 3501.820326 | AZ138: 3680.047631 | BA138: 3867.272801 | BB138: 4063.947461 | BC138: 4270.545849 | BD138: 4487.565951 | BE138: 4715.530688 | BF138: 4954.989166 | BG138: 5206.517982 | BH138: 5470.7226 | BI138: 5748.238798 | BJ138: 6039.734182 | BK138: 6345.909779 | BL138: 6667.501708 | BM138: 7005.282937 | BN138: 7360.065124 | BO138: 7732.700557 | BP138: 8124.084179 | BQ138: 8535.155729 | BR138: 8966.901978 | BS138: 9420.359084 | BT138: 9896.615059 | BU138: 10396.81237 | BV138: 10922.15065 | BW138: 11473.88957 | BX138: 12053.35184 | BY138: =BY177-BY179 -> 12661.92636 | BZ138: 13301.07151 | CA138: 13972.31867 | CB138: 14677.27584 | CC138: 15417.63147 | CD138: 16195.15848 | CE138: 17011.71854 | CF138: 17869.26641 | CG138: 18769.85469 | CH138: 19715.63865 | CI138: 20708.88142 | CJ138: 21751.95931 | CK138: 22847.36755 | CL138: 23997.72618 | CM138: 25205.78632 | CN138: 26474.43673 | CO138: 27806.71064 | CP138: 29205.79307 | CQ138: 30675.02834 | CR138: 32217.92805 | CS138: 33838.17949 | CT138: 35539.65438 | CU138: 37326.41811 | CV138: 39202.73941 | CW138: 41173.10057 | CX138: 43242.20804 | CY138: 45415.0037 | CZ138: 47696.67663 | DA138: 50092.67544 | DB138: 52608.72126 | DC138: 55250.82139 | DD138: 58025.28358 | DE138: 60938.73108 | DF138: 63998.11839
C140: Debt Repayment Applied | G140: 2 | L140: =INDEX(L136:L138,$G$140) -> 0 | M140: =INDEX(M136:M138,$G$140) -> 0 | N140: 0 | O140: 0 | P140: 0 | Q140: 0 | R140: 0 | S140: 0 | T140: 114.8279507 | U140: 122.8659072 | V140: 131.4665207 | W140: 140.6691772 | X140: 150.5160196 | Y140: 161.052141 | Z140: 172.3257908 | AA140: 184.3885962 | AB140: 197.2957979 | AC140: 211.1065038 | AD140: 225.883959 | AE140: 241.6958362 | AF140: 258.6145447 | AG140: 276.7175628 | AH140: 296.0877922 | AI140: 316.8139377 | AJ140: 338.9909133 | AK140: 362.7202772 | AL140: 388.1106967 | AM140: 415.2784454 | AN140: 444.3479366 | AO140: 475.4522922 | AP140: 508.7339526 | AQ140: 544.3453293 | AR140: 582.4495023 | AS140: 0 | AT140: 0 | AU140: 0 | AV140: 0 | AW140: 0 | AX140: 0 | AY140: 0 | AZ140: 0 | BA140: 0 | BB140: 0 | BC140: 0 | BD140: 0 | BE140: 0 | BF140: 0 | BG140: 0 | BH140: 0 | BI140: 0 | BJ140: 0 | BK140: 0 | BL140: 0 | BM140: 0 | BN140: 0 | BO140: 0 | BP140: 0 | BQ140: 0 | BR140: 0 | BS140: 0 | BT140: 0 | BU140: 0 | BV140: 0 | BW140: 0 | BX140: 0 | BY140: =INDEX(BY136:BY138,$G$140) -> 0 | BZ140: 0 | CA140: 0 | CB140: 0 | CC140: 0 | CD140: 0 | CE140: 0 | CF140: 0 | CG140: 0 | CH140: 0 | CI140: 0 | CJ140: 0 | CK140: 0 | CL140: 0 | CM140: 0 | CN140: 0 | CO140: 0 | CP140: 0 | CQ140: 0 | CR140: 0 | CS140: 0 | CT140: 0 | CU140: 0 | CV140: 0 | CW140: 0 | CX140: 0 | CY140: 0 | CZ140: 0 | DA140: 0 | DB140: 0 | DC140: 0 | DD140: 0 | DE140: 0 | DF140: 0
B142: Fixed Assets
C144: Opening Balance | L144: =K147 -> 0 | M144: =L147 -> 614.9290341 | N144: 1311.327795 | O144: 2478.873976 | P144: 4047.159824 | Q144: 5416.659773 | R144: 7094.144892 | S144: 8452.418338 | T144: 9414.757383 | U144: 9414.757383 | V144: 9414.757383 | W144: 9414.757383 | X144: 9414.757383 | Y144: 9414.757383 | Z144: 9414.757383 | AA144: 9414.757383 | AB144: 9414.757383 | AC144: 9414.757383 | AD144: 9414.757383 | AE144: 9414.757383 | AF144: 9414.757383 | AG144: 9414.757383 | AH144: 9414.757383 | AI144: 9414.757383 | AJ144: 9414.757383 | AK144: 9414.757383 | AL144: 9414.757383 | AM144: 9414.757383 | AN144: 9414.757383 | AO144: 9414.757383 | AP144: 9414.757383 | AQ144: 9414.757383 | AR144: 9414.757383 | AS144: 9414.757383 | AT144: 9414.757383 | AU144: 9414.757383 | AV144: 9414.757383 | AW144: 9414.757383 | AX144: 9414.757383 | AY144: 9414.757383 | AZ144: 9414.757383 | BA144: 9414.757383 | BB144: 9414.757383 | BC144: 9414.757383 | BD144: 9414.757383 | BE144: 9414.757383 | BF144: 9414.757383 | BG144: 9414.757383 | BH144: 9414.757383 | BI144: 9414.757383 | BJ144: 9414.757383 | BK144: 9414.757383 | BL144: 9414.757383 | BM144: 9414.757383 | BN144: 9414.757383 | BO144: 9414.757383 | BP144: 9414.757383 | BQ144: 9414.757383 | BR144: 9414.757383 | BS144: 9414.757383 | BT144: 9414.757383 | BU144: 9414.757383 | BV144: 9414.757383 | BW144: 9414.757383 | BX144: 9414.757383 | BY144: =BX147 -> 9414.757383 | BZ144: 9414.757383 | CA144: 9414.757383 | CB144: 9414.757383 | CC144: 9414.757383 | CD144: 9414.757383 | CE144: 9414.757383 | CF144: 9414.757383 | CG144: 9414.757383 | CH144: 9414.757383 | CI144: 9414.757383 | CJ144: 9414.757383 | CK144: 9414.757383 | CL144: 9414.757383 | CM144: 9414.757383 | CN144: 9414.757383 | CO144: 9414.757383 | CP144: 9414.757383 | CQ144: 9414.757383 | CR144: 9414.757383 | CS144: 9414.757383 | CT144: 9414.757383 | CU144: 9414.757383 | CV144: 9414.757383 | CW144: 9414.757383 | CX144: 9414.757383 | CY144: 9414.757383 | CZ144: 9414.757383 | DA144: 9414.757383 | DB144: 9414.757383 | DC144: 9414.757383 | DD144: 9414.757383 | DE144: 9414.757383 | DF144: 9414.757383
C145: Add: Capital Expenditures | L145: =L94 -> 614.9290341 | M145: =M94 -> 696.3987609 | N145: 1128.299916 | O145: 1485.427485 | P145: 1172.940862 | Q145: 1381.637285 | R145: 940.8079414 | S145: 505.5587159 | T145: 0 | U145: 0 | V145: 0 | W145: 0 | X145: 0 | Y145: 0 | Z145: 0 | AA145: 0 | AB145: 0 | AC145: 0 | AD145: 0 | AE145: 0 | AF145: 0 | AG145: 0 | AH145: 0 | AI145: 0 | AJ145: 0 | AK145: 0 | AL145: 0 | AM145: 0 | AN145: 0 | AO145: 0 | AP145: 0 | AQ145: 0 | AR145: 0 | AS145: 0 | AT145: 0 | AU145: 0 | AV145: 0 | AW145: 0 | AX145: 0 | AY145: 0 | AZ145: 0 | BA145: 0 | BB145: 0 | BC145: 0 | BD145: 0 | BE145: 0 | BF145: 0 | BG145: 0 | BH145: 0 | BI145: 0 | BJ145: 0 | BK145: 0 | BL145: 0 | BM145: 0 | BN145: 0 | BO145: 0 | BP145: 0 | BQ145: 0 | BR145: 0 | BS145: 0 | BT145: 0 | BU145: 0 | BV145: 0 | BW145: 0 | BX145: 0 | BY145: =BY94 -> 0 | BZ145: 0 | CA145: 0 | CB145: 0 | CC145: 0 | CD145: 0 | CE145: 0 | CF145: 0 | CG145: 0 | CH145: 0 | CI145: 0 | CJ145: 0 | CK145: 0 | CL145: 0 | CM145: 0 | CN145: 0 | CO145: 0 | CP145: 0 | CQ145: 0 | CR145: 0 | CS145: 0 | CT145: 0 | CU145: 0 | CV145: 0 | CW145: 0 | CX145: 0 | CY145: 0 | CZ145: 0 | DA145: 0 | DB145: 0 | DC145: 0 | DD145: 0 | DE145: 0 | DF145: 0
C146: Add: Interest During Construction | L146: =L95 -> 0 | M146: =M95 -> 0 | N146: 39.24626514 | O146: 82.85836323 | P146: 196.5590872 | Q146: 295.8478335 | R146: 417.4655047 | S146: 456.7803295 | T146: 0 | U146: 0 | V146: 0 | W146: 0 | X146: 0 | Y146: 0 | Z146: 0 | AA146: 0 | AB146: 0 | AC146: 0 | AD146: 0 | AE146: 0 | AF146: 0 | AG146: 0 | AH146: 0 | AI146: 0 | AJ146: 0 | AK146: 0 | AL146: 0 | AM146: 0 | AN146: 0 | AO146: 0 | AP146: 0 | AQ146: 0 | AR146: 0 | AS146: 0 | AT146: 0 | AU146: 0 | AV146: 0 | AW146: 0 | AX146: 0 | AY146: 0 | AZ146: 0 | BA146: 0 | BB146: 0 | BC146: 0 | BD146: 0 | BE146: 0 | BF146: 0 | BG146: 0 | BH146: 0 | BI146: 0 | BJ146: 0 | BK146: 0 | BL146: 0 | BM146: 0 | BN146: 0 | BO146: 0 | BP146: 0 | BQ146: 0 | BR146: 0 | BS146: 0 | BT146: 0 | BU146: 0 | BV146: 0 | BW146: 0 | BX146: 0 | BY146: =BY95 -> 0 | BZ146: 0 | CA146: 0 | CB146: 0 | CC146: 0 | CD146: 0 | CE146: 0 | CF146: 0 | CG146: 0 | CH146: 0 | CI146: 0 | CJ146: 0 | CK146: 0 | CL146: 0 | CM146: 0 | CN146: 0 | CO146: 0 | CP146: 0 | CQ146: 0 | CR146: 0 | CS146: 0 | CT146: 0 | CU146: 0 | CV146: 0 | CW146: 0 | CX146: 0 | CY146: 0 | CZ146: 0 | DA146: 0 | DB146: 0 | DC146: 0 | DD146: 0 | DE146: 0 | DF146: 0
C147: Closing Balance | L147: =L144+L145+L146 -> 614.9290341 | M147: =M144+M145+M146 -> 1311.327795 | N147: 2478.873976 | O147: 4047.159824 | P147: 5416.659773 | Q147: 7094.144892 | R147: 8452.418338 | S147: 9414.757383 | T147: 9414.757383 | U147: 9414.757383 | V147: 9414.757383 | W147: 9414.757383 | X147: 9414.757383 | Y147: 9414.757383 | Z147: 9414.757383 | AA147: 9414.757383 | AB147: 9414.757383 | AC147: 9414.757383 | AD147: 9414.757383 | AE147: 9414.757383 | AF147: 9414.757383 | AG147: 9414.757383 | AH147: 9414.757383 | AI147: 9414.757383 | AJ147: 9414.757383 | AK147: 9414.757383 | AL147: 9414.757383 | AM147: 9414.757383 | AN147: 9414.757383 | AO147: 9414.757383 | AP147: 9414.757383 | AQ147: 9414.757383 | AR147: 9414.757383 | AS147: 9414.757383 | AT147: 9414.757383 | AU147: 9414.757383 | AV147: 9414.757383 | AW147: 9414.757383 | AX147: 9414.757383 | AY147: 9414.757383 | AZ147: 9414.757383 | BA147: 9414.757383 | BB147: 9414.757383 | BC147: 9414.757383 | BD147: 9414.757383 | BE147: 9414.757383 | BF147: 9414.757383 | BG147: 9414.757383 | BH147: 9414.757383 | BI147: 9414.757383 | BJ147: 9414.757383 | BK147: 9414.757383 | BL147: 9414.757383 | BM147: 9414.757383 | BN147: 9414.757383 | BO147: 9414.757383 | BP147: 9414.757383 | BQ147: 9414.757383 | BR147: 9414.757383 | BS147: 9414.757383 | BT147: 9414.757383 | BU147: 9414.757383 | BV147: 9414.757383 | BW147: 9414.757383 | BX147: 9414.757383 | BY147: =BY144+BY145+BY146 -> 9414.757383 | BZ147: 9414.757383 | CA147: 9414.757383 | CB147: 9414.757383 | CC147: 9414.757383 | CD147: 9414.757383 | CE147: 9414.757383 | CF147: 9414.757383 | CG147: 9414.757383 | CH147: 9414.757383 | CI147: 9414.757383 | CJ147: 9414.757383 | CK147: 9414.757383 | CL147: 9414.757383 | CM147: 9414.757383 | CN147: 9414.757383 | CO147: 9414.757383 | CP147: 9414.757383 | CQ147: 9414.757383 | CR147: 9414.757383 | CS147: 9414.757383 | CT147: 9414.757383 | CU147: 9414.757383 | CV147: 9414.757383 | CW147: 9414.757383 | CX147: 9414.757383 | CY147: 9414.757383 | CZ147: 9414.757383 | DA147: 9414.757383 | DB147: 9414.757383 | DC147: 9414.757383 | DD147: 9414.757383 | DE147: 9414.757383 | DF147: 9414.757383
C149: Depreciation Rate | L149: =1/$G$45 -> 0.0101010101 | M149: =1/$G$45 -> 0.0101010101 | N149: 0.0101010101 | O149: 0.0101010101 | P149: 0.0101010101 | Q149: 0.0101010101 | R149: 0.0101010101 | S149: 0.0101010101 | T149: 0.0101010101 | U149: 0.0101010101 | V149: 0.0101010101 | W149: 0.0101010101 | X149: 0.0101010101 | Y149: 0.0101010101 | Z149: 0.0101010101 | AA149: 0.0101010101 | AB149: 0.0101010101 | AC149: 0.0101010101 | AD149: 0.0101010101 | AE149: 0.0101010101 | AF149: 0.0101010101 | AG149: 0.0101010101 | AH149: 0.0101010101 | AI149: 0.0101010101 | AJ149: 0.0101010101 | AK149: 0.0101010101 | AL149: 0.0101010101 | AM149: 0.0101010101 | AN149: 0.0101010101 | AO149: 0.0101010101 | AP149: 0.0101010101 | AQ149: 0.0101010101 | AR149: 0.0101010101 | AS149: 0.0101010101 | AT149: 0.0101010101 | AU149: 0.0101010101 | AV149: 0.0101010101 | AW149: 0.0101010101 | AX149: 0.0101010101 | AY149: 0.0101010101 | AZ149: 0.0101010101 | BA149: 0.0101010101 | BB149: 0.0101010101 | BC149: 0.0101010101 | BD149: 0.0101010101 | BE149: 0.0101010101 | BF149: 0.0101010101 | BG149: 0.0101010101 | BH149: 0.0101010101 | BI149: 0.0101010101 | BJ149: 0.0101010101 | BK149: 0.0101010101 | BL149: 0.0101010101 | BM149: 0.0101010101 | BN149: 0.0101010101 | BO149: 0.0101010101 | BP149: 0.0101010101 | BQ149: 0.0101010101 | BR149: 0.0101010101 | BS149: 0.0101010101 | BT149: 0.0101010101 | BU149: 0.0101010101 | BV149: 0.0101010101 | BW149: 0.0101010101 | BX149: 0.0101010101 | BY149: =1/$G$45 -> 0.0101010101 | BZ149: 0.0101010101 | CA149: 0.0101010101 | CB149: 0.0101010101 | CC149: 0.0101010101 | CD149: 0.0101010101 | CE149: 0.0101010101 | CF149: 0.0101010101 | CG149: 0.0101010101 | CH149: 0.0101010101 | CI149: 0.0101010101 | CJ149: 0.0101010101 | CK149: 0.0101010101 | CL149: 0.0101010101 | CM149: 0.0101010101 | CN149: 0.0101010101 | CO149: 0.0101010101 | CP149: 0.0101010101 | CQ149: 0.0101010101 | CR149: 0.0101010101 | CS149: 0.0101010101 | CT149: 0.0101010101 | CU149: 0.0101010101 | CV149: 0.0101010101 | CW149: 0.0101010101 | CX149: 0.0101010101 | CY149: 0.0101010101 | CZ149: 0.0101010101 | DA149: 0.0101010101 | DB149: 0.0101010101 | DC149: 0.0101010101 | DD149: 0.0101010101 | DE149: 0.0101010101 | DF149: 0.0101010101
C150: Depreciation Expense | L150: =L149*L144*L9 -> 0 | M150: 0 | N150: 0 | O150: 0 | P150: 0 | Q150: 0 | R150: 0 | S150: 0 | T150: 95.09855943 | U150: 95.09855943 | V150: 95.09855943 | W150: 95.09855943 | X150: 95.09855943 | Y150: 95.09855943 | Z150: 95.09855943 | AA150: 95.09855943 | AB150: 95.09855943 | AC150: 95.09855943 | AD150: 95.09855943 | AE150: 95.09855943 | AF150: 95.09855943 | AG150: 95.09855943 | AH150: 95.09855943 | AI150: 95.09855943 | AJ150: 95.09855943 | AK150: 95.09855943 | AL150: 95.09855943 | AM150: 95.09855943 | AN150: 95.09855943 | AO150: 95.09855943 | AP150: 95.09855943 | AQ150: 95.09855943 | AR150: =AR149*AR144*AR9 -> 95.09855943 | AS150: 95.09855943 | AT150: 95.09855943 | AU150: 95.09855943 | AV150: 95.09855943 | AW150: 95.09855943 | AX150: 95.09855943 | AY150: 95.09855943 | AZ150: 95.09855943 | BA150: 95.09855943 | BB150: 95.09855943 | BC150: 95.09855943 | BD150: 95.09855943 | BE150: 95.09855943 | BF150: 95.09855943 | BG150: 95.09855943 | BH150: 95.09855943 | BI150: 95.09855943 | BJ150: 95.09855943 | BK150: 95.09855943 | BL150: 95.09855943 | BM150: 95.09855943 | BN150: 95.09855943 | BO150: 95.09855943 | BP150: 95.09855943 | BQ150: 95.09855943 | BR150: 95.09855943 | BS150: 95.09855943 | BT150: 95.09855943 | BU150: 95.09855943 | BV150: 95.09855943 | BW150: 95.09855943 | BX150: =BX149*BX144*BX9 -> 95.09855943 | BY150: 95.09855943 | BZ150: 95.09855943 | CA150: 95.09855943 | CB150: 95.09855943 | CC150: 95.09855943 | CD150: 95.09855943 | CE150: 95.09855943 | CF150: 95.09855943 | CG150: 95.09855943 | CH150: 95.09855943 | CI150: 95.09855943 | CJ150: 95.09855943 | CK150: 95.09855943 | CL150: 95.09855943 | CM150: 95.09855943 | CN150: 95.09855943 | CO150: 95.09855943 | CP150: 95.09855943 | CQ150: 95.09855943 | CR150: 95.09855943 | CS150: 95.09855943 | CT150: 95.09855943 | CU150: 95.09855943 | CV150: 95.09855943 | CW150: 95.09855943 | CX150: 95.09855943 | CY150: 95.09855943 | CZ150: 95.09855943 | DA150: 95.09855943 | DB150: 95.09855943 | DC150: 95.09855943 | DD150: =DD149*DD144*DD9 -> 95.09855943 | DE150: =DE149*DE144*DE9 -> 95.09855943 | DF150: =DF149*DF144*DF9 -> 95.09855943
C152: Accumulated Depreciation
C153: Opening Balance | L153: =K155 -> 0 | M153: =L155 -> 0 | N153: 0 | O153: 0 | P153: 0 | Q153: 0 | R153: 0 | S153: 0 | T153: 0 | U153: 95.09855943 | V153: 190.1971189 | W153: 285.2956783 | X153: 380.3942377 | Y153: 475.4927971 | Z153: 570.5913566 | AA153: 665.689916 | AB153: 760.7884754 | AC153: 855.8870348 | AD153: 950.9855943 | AE153: 1046.084154 | AF153: 1141.182713 | AG153: 1236.281273 | AH153: 1331.379832 | AI153: 1426.478391 | AJ153: 1521.576951 | AK153: 1616.67551 | AL153: 1711.77407 | AM153: 1806.872629 | AN153: 1901.971189 | AO153: 1997.069748 | AP153: 2092.168307 | AQ153: 2187.266867 | AR153: 2282.365426 | AS153: 2377.463986 | AT153: 2472.562545 | AU153: 2567.661105 | AV153: 2662.759664 | AW153: 2757.858223 | AX153: 2852.956783 | AY153: 2948.055342 | AZ153: 3043.153902 | BA153: 3138.252461 | BB153: 3233.351021 | BC153: 3328.44958 | BD153: 3423.548139 | BE153: 3518.646699 | BF153: 3613.745258 | BG153: 3708.843818 | BH153: 3803.942377 | BI153: 3899.040937 | BJ153: 3994.139496 | BK153: 4089.238055 | BL153: 4184.336615 | BM153: 4279.435174 | BN153: 4374.533734 | BO153: 4469.632293 | BP153: 4564.730853 | BQ153: 4659.829412 | BR153: 4754.927971 | BS153: 4850.026531 | BT153: 4945.12509 | BU153: 5040.22365 | BV153: 5135.322209 | BW153: 5230.420769 | BX153: 5325.519328 | BY153: =BX155 -> 5420.617887 | BZ153: 5515.716447 | CA153: 5610.815006 | CB153: 5705.913566 | CC153: 5801.012125 | CD153: 5896.110685 | CE153: 5991.209244 | CF153: 6086.307803 | CG153: 6181.406363 | CH153: 6276.504922 | CI153: 6371.603482 | CJ153: 6466.702041 | CK153: 6561.800601 | CL153: 6656.89916 | CM153: 6751.997719 | CN153: 6847.096279 | CO153: 6942.194838 | CP153: 7037.293398 | CQ153: 7132.391957 | CR153: 7227.490516 | CS153: 7322.589076 | CT153: 7417.687635 | CU153: 7512.786195 | CV153: 7607.884754 | CW153: 7702.983314 | CX153: 7798.081873 | CY153: 7893.180432 | CZ153: 7988.278992 | DA153: 8083.377551 | DB153: 8178.476111 | DC153: 8273.57467 | DD153: 8368.67323 | DE153: 8463.771789 | DF153: 8558.870348
C154: Add: Depreciation Expense | L154: =L150 -> 0 | M154: =M150 -> 0 | N154: 0 | O154: 0 | P154: 0 | Q154: 0 | R154: 0 | S154: 0 | T154: 95.09855943 | U154: 95.09855943 | V154: 95.09855943 | W154: 95.09855943 | X154: 95.09855943 | Y154: 95.09855943 | Z154: 95.09855943 | AA154: 95.09855943 | AB154: 95.09855943 | AC154: 95.09855943 | AD154: 95.09855943 | AE154: 95.09855943 | AF154: 95.09855943 | AG154: 95.09855943 | AH154: 95.09855943 | AI154: 95.09855943 | AJ154: 95.09855943 | AK154: 95.09855943 | AL154: 95.09855943 | AM154: 95.09855943 | AN154: 95.09855943 | AO154: 95.09855943 | AP154: 95.09855943 | AQ154: 95.09855943 | AR154: 95.09855943 | AS154: 95.09855943 | AT154: 95.09855943 | AU154: 95.09855943 | AV154: 95.09855943 | AW154: 95.09855943 | AX154: 95.09855943 | AY154: 95.09855943 | AZ154: 95.09855943 | BA154: 95.09855943 | BB154: 95.09855943 | BC154: 95.09855943 | BD154: 95.09855943 | BE154: 95.09855943 | BF154: 95.09855943 | BG154: 95.09855943 | BH154: 95.09855943 | BI154: 95.09855943 | BJ154: 95.09855943 | BK154: 95.09855943 | BL154: 95.09855943 | BM154: 95.09855943 | BN154: 95.09855943 | BO154: 95.09855943 | BP154: 95.09855943 | BQ154: 95.09855943 | BR154: 95.09855943 | BS154: 95.09855943 | BT154: 95.09855943 | BU154: 95.09855943 | BV154: 95.09855943 | BW154: 95.09855943 | BX154: 95.09855943 | BY154: =BY150 -> 95.09855943 | BZ154: 95.09855943 | CA154: 95.09855943 | CB154: 95.09855943 | CC154: 95.09855943 | CD154: 95.09855943 | CE154: 95.09855943 | CF154: 95.09855943 | CG154: 95.09855943 | CH154: 95.09855943 | CI154: 95.09855943 | CJ154: 95.09855943 | CK154: 95.09855943 | CL154: 95.09855943 | CM154: 95.09855943 | CN154: 95.09855943 | CO154: 95.09855943 | CP154: 95.09855943 | CQ154: 95.09855943 | CR154: 95.09855943 | CS154: 95.09855943 | CT154: 95.09855943 | CU154: 95.09855943 | CV154: 95.09855943 | CW154: 95.09855943 | CX154: 95.09855943 | CY154: 95.09855943 | CZ154: 95.09855943 | DA154: 95.09855943 | DB154: 95.09855943 | DC154: 95.09855943 | DD154: 95.09855943 | DE154: 95.09855943 | DF154: 95.09855943
C155: Closing Balance | L155: =L153+L154 -> 0 | M155: =M153+M154 -> 0 | N155: 0 | O155: 0 | P155: 0 | Q155: 0 | R155: 0 | S155: 0 | T155: 95.09855943 | U155: 190.1971189 | V155: 285.2956783 | W155: 380.3942377 | X155: 475.4927971 | Y155: 570.5913566 | Z155: 665.689916 | AA155: 760.7884754 | AB155: 855.8870348 | AC155: 950.9855943 | AD155: 1046.084154 | AE155: 1141.182713 | AF155: 1236.281273 | AG155: 1331.379832 | AH155: 1426.478391 | AI155: 1521.576951 | AJ155: 1616.67551 | AK155: 1711.77407 | AL155: 1806.872629 | AM155: 1901.971189 | AN155: 1997.069748 | AO155: 2092.168307 | AP155: 2187.266867 | AQ155: 2282.365426 | AR155: 2377.463986 | AS155: 2472.562545 | AT155: 2567.661105 | AU155: 2662.759664 | AV155: 2757.858223 | AW155: 2852.956783 | AX155: 2948.055342 | AY155: 3043.153902 | AZ155: 3138.252461 | BA155: 3233.351021 | BB155: 3328.44958 | BC155: 3423.548139 | BD155: 3518.646699 | BE155: 3613.745258 | BF155: 3708.843818 | BG155: 3803.942377 | BH155: 3899.040937 | BI155: 3994.139496 | BJ155: 4089.238055 | BK155: 4184.336615 | BL155: 4279.435174 | BM155: 4374.533734 | BN155: 4469.632293 | BO155: 4564.730853 | BP155: 4659.829412 | BQ155: 4754.927971 | BR155: 4850.026531 | BS155: 4945.12509 | BT155: 5040.22365 | BU155: 5135.322209 | BV155: 5230.420769 | BW155: 5325.519328 | BX155: 5420.617887 | BY155: =BY153+BY154 -> 5515.716447 | BZ155: 5610.815006 | CA155: 5705.913566 | CB155: 5801.012125 | CC155: 5896.110685 | CD155: 5991.209244 | CE155: 6086.307803 | CF155: 6181.406363 | CG155: 6276.504922 | CH155: 6371.603482 | CI155: 6466.702041 | CJ155: 6561.800601 | CK155: 6656.89916 | CL155: 6751.997719 | CM155: 6847.096279 | CN155: 6942.194838 | CO155: 7037.293398 | CP155: 7132.391957 | CQ155: 7227.490516 | CR155: 7322.589076 | CS155: 7417.687635 | CT155: 7512.786195 | CU155: 7607.884754 | CV155: 7702.983314 | CW155: 7798.081873 | CX155: 7893.180432 | CY155: 7988.278992 | CZ155: 8083.377551 | DA155: 8178.476111 | DB155: 8273.57467 | DC155: 8368.67323 | DD155: 8463.771789 | DE155: 8558.870348 | DF155: 8653.968908
B157: Profit and Loss
C158: Revenues | L158: =L89 -> 0 | M158: =M89 -> 0 | N158: 0 | O158: 0 | P158: 0 | Q158: 0 | R158: 0 | S158: 0 | T158: 820 | U158: 900 | V158: 1000 | W158: 1080 | X158: 1180 | Y158: 1250 | Z158: 1370 | AA158: 1480 | AB158: 1500 | AC158: 1590 | AD158: 1685.4 | AE158: 1820.232 | AF158: 1911.2436 | AG158: 2006.80578 | AH158: 2107.146069 | AI158: 2212.503372 | AJ158: 2323.128541 | AK158: 2439.284968 | AL158: 2561.249217 | AM158: 2689.311677 | AN158: 2823.777261 | AO158: 2964.966124 | AP158: 3113.214431 | AQ158: 3268.875152 | AR158: 3432.31891 | AS158: 3603.934855 | AT158: 3784.131598 | AU158: 3973.338178 | AV158: 4172.005087 | AW158: 4380.605341 | AX158: 4599.635608 | AY158: 4829.617388 | AZ158: 5071.098258 | BA158: 5324.653171 | BB158: 5590.885829 | BC158: 5870.430121 | BD158: 6163.951627 | BE158: 6472.149208 | BF158: 6795.756669 | BG158: 7135.544502 | BH158: 7492.321727 | BI158: 7866.937813 | BJ158: 8260.284704 | BK158: 8673.298939 | BL158: 9106.963886 | BM158: 9562.312081 | BN158: 10040.42768 | BO158: 10542.44907 | BP158: 11069.57152 | BQ158: 11623.0501 | BR158: 12204.2026 | BS158: 12814.41273 | BT158: 13455.13337 | BU158: 14127.89004 | BV158: 14834.28454 | BW158: 15575.99877 | BX158: 16354.79871 | BY158: =BY89 -> 17172.53864 | BZ158: 18031.16557 | CA158: 18932.72385 | CB158: 19879.36004 | CC158: 20873.32805 | CD158: 21916.99445 | CE158: 23012.84417 | CF158: 24163.48638 | CG158: 25371.6607 | CH158: 26640.24373 | CI158: 27972.25592 | CJ158: 29370.86872 | CK158: 30839.41215 | CL158: 32381.38276 | CM158: 34000.4519 | CN158: 35700.47449 | CO158: 37485.49822 | CP158: 39359.77313 | CQ158: 41327.76179 | CR158: 43394.14987 | CS158: 45563.85737 | CT158: 47842.05024 | CU158: 50234.15275 | CV158: 52745.86039 | CW158: 55383.15341 | CX158: 58152.31108 | CY158: 61059.92663 | CZ158: 64112.92296 | DA158: 67318.56911 | DB158: 70684.49756 | DC158: 74218.72244 | DD158: 77929.65856 | DE158: 81826.14149 | DF158: 85917.44857
C159: Operating Cost | L159: =L90 -> 0 | M159: =M90 -> 0 | N159: 0 | O159: 0 | P159: 0 | Q159: 0 | R159: 0 | S159: 0 | T159: 104.04 | U159: 106.1208 | V159: 108.243216 | W159: 110.4080803 | X159: 112.6162419 | Y159: 114.8685668 | Z159: 117.1659381 | AA159: 119.5092569 | AB159: 121.899442 | AC159: 124.3374308 | AD159: 126.8241795 | AE159: 129.360663 | AF159: 131.9478763 | AG159: 134.5868338 | AH159: 137.2785705 | AI159: 140.0241419 | AJ159: 142.8246248 | AK159: 145.6811173 | AL159: 148.5947396 | AM159: 151.5666344 | AN159: 154.5979671 | AO159: 157.6899264 | AP159: 160.8437249 | AQ159: 164.0605994 | AR159: 167.3418114 | AS159: 170.6886477 | AT159: 174.1024206 | AU159: 177.584469 | AV159: 181.1361584 | AW159: 184.7588816 | AX159: 188.4540592 | AY159: 192.2231404 | AZ159: 196.0676032 | BA159: 199.9889553 | BB159: 203.9887344 | BC159: 208.0685091 | BD159: 212.2298792 | BE159: 216.4744768 | BF159: 220.8039664 | BG159: 225.2200457 | BH159: 229.7244466 | BI159: 234.3189355 | BJ159: 239.0053142 | BK159: 243.7854205 | BL159: 248.6611289 | BM159: 253.6343515 | BN159: 258.7070385 | BO159: 263.8811793 | BP159: 269.1588029 | BQ159: 274.541979 | BR159: 280.0328185 | BS159: 285.6334749 | BT159: 291.3461444 | BU159: 297.1730673 | BV159: 303.1165286 | BW159: 309.1788592 | BX159: 315.3624364 | BY159: =BY90 -> 321.6696851 | BZ159: 328.1030788 | CA159: 334.6651404 | CB159: 341.3584432 | CC159: 348.1856121 | CD159: 355.1493243 | CE159: 362.2523108 | CF159: 369.497357 | CG159: 376.8873042 | CH159: 384.4250503 | CI159: 392.1135513 | CJ159: 399.9558223 | CK159: 407.9549387 | CL159: 416.1140375 | CM159: 424.4363183 | CN159: 432.9250446 | CO159: 441.5835455 | CP159: 450.4152164 | CQ159: 459.4235208 | CR159: 468.6119912 | CS159: 477.984231 | CT159: 487.5439156 | CU159: 497.2947939 | CV159: 507.2406898 | CW159: 517.3855036 | CX159: 527.7332137 | CY159: 538.2878779 | CZ159: 549.0536355 | DA159: 560.0347082 | DB159: 571.2354024 | DC159: 582.6601104 | DD159: 594.3133126 | DE159: 606.1995789 | DF159: 618.3235705
D160: EBITDA | L160: =L158-L159 -> 0 | M160: =M158-M159 -> 0 | N160: 0 | O160: 0 | P160: 0 | Q160: 0 | R160: 0 | S160: 0 | T160: 715.96 | U160: 793.8792 | V160: 891.756784 | W160: 969.5919197 | X160: 1067.383758 | Y160: 1135.131433 | Z160: 1252.834062 | AA160: 1360.490743 | AB160: 1378.100558 | AC160: 1465.662569 | AD160: 1558.575821 | AE160: 1690.871337 | AF160: 1779.295724 | AG160: 1872.218946 | AH160: 1969.867498 | AI160: 2072.479231 | AJ160: 2180.303916 | AK160: 2293.603851 | AL160: 2412.654477 | AM160: 2537.745043 | AN160: 2669.179294 | AO160: 2807.276198 | AP160: 2952.370706 | AQ160: 3104.814553 | AR160: 3264.977098 | AS160: 3433.246207 | AT160: 3610.029177 | AU160: 3795.753709 | AV160: 3990.868928 | AW160: 4195.846459 | AX160: 4411.181549 | AY160: 4637.394248 | AZ160: 4875.030655 | BA160: 5124.664215 | BB160: 5386.897095 | BC160: 5662.361612 | BD160: 5951.721748 | BE160: 6255.674731 | BF160: 6574.952702 | BG160: 6910.324456 | BH160: 7262.59728 | BI160: 7632.618878 | BJ160: 8021.27939 | BK160: 8429.513519 | BL160: 8858.302757 | BM160: 9308.677729 | BN160: 9781.720646 | BO160: 10278.56789 | BP160: 10800.41272 | BQ160: 11348.50812 | BR160: 11924.16978 | BS160: 12528.77926 | BT160: 13163.78723 | BU160: 13830.71697 | BV160: 14531.16801 | BW160: 15266.81991 | BX160: 16039.43627 | BY160: =BY158-BY159 -> 16850.86896 | BZ160: 17703.06249 | CA160: 18598.05871 | CB160: 19538.0016 | CC160: 20525.14243 | CD160: 21561.84512 | CE160: 22650.59186 | CF160: 23793.98902 | CG160: 24994.7734 | CH160: 26255.81868 | CI160: 27580.14237 | CJ160: 28970.91289 | CK160: 30431.45721 | CL160: 31965.26872 | CM160: 33576.01558 | CN160: 35267.54945 | CO160: 37043.91467 | CP160: 38909.35791 | CQ160: 40868.33826 | CR160: 42925.53788 | CS160: 45085.87314 | CT160: 47354.50632 | CU160: 49736.85795 | CV160: 52238.6197 | CW160: 54865.7679 | CX160: 57624.57786 | CY160: 60521.63875 | CZ160: 63563.86933 | DA160: 66758.5344 | DB160: 70113.26216 | DC160: 73636.06233 | DD160: 77335.34525 | DE160: 81219.94191 | DF160: 85299.125
C161: Less: Depreciation | L161: =L150 -> 0 | M161: =M150 -> 0 | N161: 0 | O161: 0 | P161: 0 | Q161: 0 | R161: 0 | S161: 0 | T161: 95.09855943 | U161: 95.09855943 | V161: 95.09855943 | W161: 95.09855943 | X161: 95.09855943 | Y161: 95.09855943 | Z161: 95.09855943 | AA161: 95.09855943 | AB161: 95.09855943 | AC161: 95.09855943 | AD161: 95.09855943 | AE161: 95.09855943 | AF161: 95.09855943 | AG161: 95.09855943 | AH161: 95.09855943 | AI161: 95.09855943 | AJ161: 95.09855943 | AK161: 95.09855943 | AL161: 95.09855943 | AM161: 95.09855943 | AN161: 95.09855943 | AO161: 95.09855943 | AP161: 95.09855943 | AQ161: 95.09855943 | AR161: 95.09855943 | AS161: 95.09855943 | AT161: 95.09855943 | AU161: 95.09855943 | AV161: 95.09855943 | AW161: 95.09855943 | AX161: 95.09855943 | AY161: 95.09855943 | AZ161: 95.09855943 | BA161: 95.09855943 | BB161: 95.09855943 | BC161: 95.09855943 | BD161: 95.09855943 | BE161: 95.09855943 | BF161: 95.09855943 | BG161: 95.09855943 | BH161: 95.09855943 | BI161: 95.09855943 | BJ161: 95.09855943 | BK161: 95.09855943 | BL161: 95.09855943 | BM161: 95.09855943 | BN161: 95.09855943 | BO161: 95.09855943 | BP161: 95.09855943 | BQ161: 95.09855943 | BR161: 95.09855943 | BS161: 95.09855943 | BT161: 95.09855943 | BU161: 95.09855943 | BV161: 95.09855943 | BW161: 95.09855943 | BX161: 95.09855943 | BY161: =BY150 -> 95.09855943 | BZ161: 95.09855943 | CA161: 95.09855943 | CB161: 95.09855943 | CC161: 95.09855943 | CD161: 95.09855943 | CE161: 95.09855943 | CF161: 95.09855943 | CG161: 95.09855943 | CH161: 95.09855943 | CI161: 95.09855943 | CJ161: 95.09855943 | CK161: 95.09855943 | CL161: 95.09855943 | CM161: 95.09855943 | CN161: 95.09855943 | CO161: 95.09855943 | CP161: 95.09855943 | CQ161: 95.09855943 | CR161: 95.09855943 | CS161: 95.09855943 | CT161: 95.09855943 | CU161: 95.09855943 | CV161: 95.09855943 | CW161: 95.09855943 | CX161: 95.09855943 | CY161: 95.09855943 | CZ161: 95.09855943 | DA161: 95.09855943 | DB161: 95.09855943 | DC161: 95.09855943 | DD161: 95.09855943 | DE161: 95.09855943 | DF161: 95.09855943
D162: EBIT | L162: =L160-L161 -> 0 | M162: =M160-M161 -> 0 | N162: 0 | O162: 0 | P162: 0 | Q162: 0 | R162: 0 | S162: 0 | T162: 620.8614406 | U162: 698.7806406 | V162: 796.6582246 | W162: 874.4933603 | X162: 972.2851986 | Y162: 1040.032874 | Z162: 1157.735502 | AA162: 1265.392184 | AB162: 1283.001999 | AC162: 1370.56401 | AD162: 1463.477261 | AE162: 1595.772778 | AF162: 1684.197164 | AG162: 1777.120387 | AH162: 1874.768939 | AI162: 1977.380671 | AJ162: 2085.205357 | AK162: 2198.505291 | AL162: 2317.555918 | AM162: 2442.646484 | AN162: 2574.080735 | AO162: 2712.177638 | AP162: 2857.272146 | AQ162: 3009.715993 | AR162: 3169.878539 | AS162: 3338.147648 | AT162: 3514.930618 | AU162: 3700.655149 | AV162: 3895.770369 | AW162: 4100.7479 | AX162: 4316.082989 | AY162: 4542.295689 | AZ162: 4779.932095 | BA162: 5029.565656 | BB162: 5291.798535 | BC162: 5567.263052 | BD162: 5856.623188 | BE162: 6160.576172 | BF162: 6479.854143 | BG162: 6815.225897 | BH162: 7167.498721 | BI162: 7537.520318 | BJ162: 7926.18083 | BK162: 8334.414959 | BL162: 8763.204198 | BM162: 9213.57917 | BN162: 9686.622087 | BO162: 10183.46933 | BP162: 10705.31416 | BQ162: 11253.40956 | BR162: 11829.07123 | BS162: 12433.6807 | BT162: 13068.68867 | BU162: 13735.61841 | BV162: 14436.06945 | BW162: 15171.72135 | BX162: 15944.33771 | BY162: =BY160-BY161 -> 16755.7704 | BZ162: 17607.96394 | CA162: 18502.96015 | CB162: 19442.90304 | CC162: 20430.04388 | CD162: 21466.74657 | CE162: 22555.4933 | CF162: 23698.89046 | CG162: 24899.67484 | CH162: 26160.72012 | CI162: 27485.04381 | CJ162: 28875.81434 | CK162: 30336.35865 | CL162: 31870.17016 | CM162: 33480.91702 | CN162: 35172.45089 | CO162: 36948.81611 | CP162: 38814.25935 | CQ162: 40773.23971 | CR162: 42830.43932 | CS162: 44990.77458 | CT162: 47259.40776 | CU162: 49641.7594 | CV162: 52143.52114 | CW162: 54770.66934 | CX162: 57529.4793 | CY162: 60426.54019 | CZ162: 63468.77077 | DA162: 66663.43584 | DB162: 70018.1636 | DC162: 73540.96377 | DD162: 77240.24669 | DE162: 81124.84335 | DF162: 85204.02644
C163: Less: Interest | L163: =L133-L134 -> 0 | M163: =M133-M134 -> 0 | N163: 0 | O163: 0 | P163: 0 | Q163: 0 | R163: 0 | S163: 0 | T163: 508.3930168 | U163: 500.3550603 | V163: 491.7544468 | W163: 482.5517903 | X163: 472.7049479 | Y163: 462.1688266 | Z163: 450.8951767 | AA163: 438.8323713 | AB163: 425.9251696 | AC163: 412.1144637 | AD163: 397.3370085 | AE163: 381.5251313 | AF163: 364.6064228 | AG163: 346.5034047 | AH163: 327.1331753 | AI163: 306.4070298 | AJ163: 284.2300542 | AK163: 260.5006903 | AL163: 235.1102709 | AM163: 207.9425221 | AN163: 178.8730309 | AO163: 147.7686753 | AP163: 114.4870149 | AQ163: 78.87563822 | AR163: 40.77146516 | AS163: 0 | AT163: 0 | AU163: 0 | AV163: 0 | AW163: 0 | AX163: 0 | AY163: 0 | AZ163: 0 | BA163: 0 | BB163: 0 | BC163: 0 | BD163: 0 | BE163: 0 | BF163: 0 | BG163: 0 | BH163: 0 | BI163: 0 | BJ163: 0 | BK163: 0 | BL163: 0 | BM163: 0 | BN163: 0 | BO163: 0 | BP163: 0 | BQ163: 0 | BR163: 0 | BS163: 0 | BT163: 0 | BU163: 0 | BV163: 0 | BW163: 0 | BX163: 0 | BY163: =BY133-BY134 -> 0 | BZ163: 0 | CA163: 0 | CB163: 0 | CC163: 0 | CD163: 0 | CE163: 0 | CF163: 0 | CG163: 0 | CH163: 0 | CI163: 0 | CJ163: 0 | CK163: 0 | CL163: 0 | CM163: 0 | CN163: 0 | CO163: 0 | CP163: 0 | CQ163: 0 | CR163: 0 | CS163: 0 | CT163: 0 | CU163: 0 | CV163: 0 | CW163: 0 | CX163: 0 | CY163: 0 | CZ163: 0 | DA163: 0 | DB163: 0 | DC163: 0 | DD163: 0 | DE163: 0 | DF163: 0
D164: EBT | L164: =L162-L163 -> 0 | M164: =M162-M163 -> 0 | N164: 0 | O164: 0 | P164: 0 | Q164: 0 | R164: 0 | S164: 0 | T164: 112.4684237 | U164: 198.4255803 | V164: 304.9037778 | W164: 391.9415699 | X164: 499.5802507 | Y164: 577.8640473 | Z164: 706.8403258 | AA164: 826.5598124 | AB164: 857.076829 | AC164: 958.449546 | AD164: 1066.140253 | AE164: 1214.247646 | AF164: 1319.590741 | AG164: 1430.616982 | AH164: 1547.635764 | AI164: 1670.973641 | AJ164: 1800.975303 | AK164: 1938.004601 | AL164: 2082.445647 | AM164: 2234.703961 | AN164: 2395.207704 | AO164: 2564.408963 | AP164: 2742.785131 | AQ164: 2930.840355 | AR164: 3129.107074 | AS164: 3338.147648 | AT164: 3514.930618 | AU164: 3700.655149 | AV164: 3895.770369 | AW164: 4100.7479 | AX164: 4316.082989 | AY164: 4542.295689 | AZ164: 4779.932095 | BA164: 5029.565656 | BB164: 5291.798535 | BC164: 5567.263052 | BD164: 5856.623188 | BE164: 6160.576172 | BF164: 6479.854143 | BG164: 6815.225897 | BH164: 7167.498721 | BI164: 7537.520318 | BJ164: 7926.18083 | BK164: 8334.414959 | BL164: 8763.204198 | BM164: 9213.57917 | BN164: 9686.622087 | BO164: 10183.46933 | BP164: 10705.31416 | BQ164: 11253.40956 | BR164: 11829.07123 | BS164: 12433.6807 | BT164: 13068.68867 | BU164: 13735.61841 | BV164: 14436.06945 | BW164: 15171.72135 | BX164: 15944.33771 | BY164: =BY162-BY163 -> 16755.7704 | BZ164: 17607.96394 | CA164: 18502.96015 | CB164: 19442.90304 | CC164: 20430.04388 | CD164: 21466.74657 | CE164: 22555.4933 | CF164: 23698.89046 | CG164: 24899.67484 | CH164: 26160.72012 | CI164: 27485.04381 | CJ164: 28875.81434 | CK164: 30336.35865 | CL164: 31870.17016 | CM164: 33480.91702 | CN164: 35172.45089 | CO164: 36948.81611 | CP164: 38814.25935 | CQ164: 40773.23971 | CR164: 42830.43932 | CS164: 44990.77458 | CT164: 47259.40776 | CU164: 49641.7594 | CV164: 52143.52114 | CW164: 54770.66934 | CX164: 57529.4793 | CY164: 60426.54019 | CZ164: 63468.77077 | DA164: 66663.43584 | DB164: 70018.1636 | DC164: 73540.96377 | DD164: 77240.24669 | DE164: 81124.84335 | DF164: 85204.02644
C165: Less: Taxes | L165: =MAX(L164*L47,0) -> 0 | M165: 0 | N165: 0 | O165: 0 | P165: 0 | Q165: 0 | R165: 0 | S165: 0 | T165: 28.11710593 | U165: 49.60639507 | V165: 76.22594445 | W165: 97.98539248 | X165: 124.8950627 | Y165: 144.4660118 | Z165: 176.7100814 | AA165: 206.6399531 | AB165: 214.2692072 | AC165: 239.6123865 | AD165: 266.5350632 | AE165: 303.5619115 | AF165: 329.8976854 | AG165: 357.6542455 | AH165: 386.9089409 | AI165: 417.7434103 | AJ165: 450.2438257 | AK165: 484.5011503 | AL165: 520.6114117 | AM165: 558.6759904 | AN165: 598.801926 | AO165: 641.1022408 | AP165: 685.6962828 | AQ165: 732.7100887 | AR165: =MAX(AR164*AR47,0) -> 782.2767684 | AS165: 834.536912 | AT165: 878.7326545 | AU165: 925.1637873 | AV165: 973.9425922 | AW165: 1025.186975 | AX165: 1079.020747 | AY165: 1135.573922 | AZ165: 1194.983024 | BA165: 1257.391414 | BB165: 1322.949634 | BC165: 1391.815763 | BD165: 1464.155797 | BE165: 1540.144043 | BF165: 1619.963536 | BG165: 1703.806474 | BH165: 1791.87468 | BI165: 1884.38008 | BJ165: 1981.545208 | BK165: 2083.60374 | BL165: 2190.801049 | BM165: 2303.394792 | BN165: 2421.655522 | BO165: 2545.867333 | BP165: 2676.32854 | BQ165: 2813.35239 | BR165: 2957.267806 | BS165: 3108.420175 | BT165: 3267.172167 | BU165: 3433.904603 | BV165: 3609.017363 | BW165: 3792.930337 | BX165: =MAX(BX164*BX47,0) -> 3986.084428 | BY165: 4188.942599 | BZ165: 4401.990984 | CA165: 4625.740038 | CB165: 4860.72576 | CC165: 5107.510969 | CD165: 5366.686641 | CE165: 5638.873325 | CF165: 5924.722616 | CG165: 6224.918709 | CH165: 6540.180031 | CI165: 6871.260953 | CJ165: 7218.953584 | CK165: 7584.089664 | CL165: 7967.542541 | CM165: 8370.229255 | CN165: 8793.112722 | CO165: 9237.204028 | CP165: 9703.564838 | CQ165: 10193.30993 | CR165: 10707.60983 | CS165: 11247.69364 | CT165: 11814.85194 | CU165: 12410.43985 | CV165: 13035.88028 | CW165: 13692.66734 | CX165: 14382.36983 | CY165: 15106.63505 | CZ165: 15867.19269 | DA165: 16665.85896 | DB165: 17504.5409 | DC165: 18385.24094 | DD165: =MAX(DD164*DD47,0) -> 19310.06167 | DE165: =MAX(DE164*DE47,0) -> 20281.21084 | DF165: =MAX(DF164*DF47,0) -> 21301.00661
D166: Earnings | L166: =L164-L165 -> 0 | M166: =M164-M165 -> 0 | N166: 0 | O166: 0 | P166: 0 | Q166: 0 | R166: 0 | S166: 0 | T166: 84.3513178 | U166: 148.8191852 | V166: 228.6778333 | W166: 293.9561774 | X166: 374.685188 | Y166: 433.3980354 | Z166: 530.1302443 | AA166: 619.9198593 | AB166: 642.8076217 | AC166: 718.8371595 | AD166: 799.6051895 | AE166: 910.6857346 | AF166: 989.6930561 | AG166: 1072.962737 | AH166: 1160.726823 | AI166: 1253.230231 | AJ166: 1350.731477 | AK166: 1453.503451 | AL166: 1561.834235 | AM166: 1676.027971 | AN166: 1796.405778 | AO166: 1923.306722 | AP166: 2057.088848 | AQ166: 2198.130266 | AR166: 2346.830305 | AS166: 2503.610736 | AT166: 2636.197963 | AU166: 2775.491362 | AV166: 2921.827777 | AW166: 3075.560925 | AX166: 3237.062242 | AY166: 3406.721766 | AZ166: 3584.949071 | BA166: 3772.174242 | BB166: 3968.848902 | BC166: 4175.447289 | BD166: 4392.467391 | BE166: 4620.432129 | BF166: 4859.890607 | BG166: 5111.419423 | BH166: 5375.624041 | BI166: 5653.140239 | BJ166: 5944.635623 | BK166: 6250.811219 | BL166: 6572.403148 | BM166: 6910.184377 | BN166: 7264.966565 | BO166: 7637.601998 | BP166: 8028.98562 | BQ166: 8440.05717 | BR166: 8871.803419 | BS166: 9325.260524 | BT166: 9801.5165 | BU166: 10301.71381 | BV166: 10827.05209 | BW166: 11378.79101 | BX166: 11958.25328 | BY166: =BY164-BY165 -> 12566.8278 | BZ166: 13205.97295 | CA166: 13877.22011 | CB166: 14582.17728 | CC166: 15322.53291 | CD166: 16100.05992 | CE166: 16916.61998 | CF166: 17774.16785 | CG166: 18674.75613 | CH166: 19620.54009 | CI166: 20613.78286 | CJ166: 21656.86075 | CK166: 22752.26899 | CL166: 23902.62762 | CM166: 25110.68777 | CN166: 26379.33817 | CO166: 27711.61208 | CP166: 29110.69451 | CQ166: 30579.92978 | CR166: 32122.82949 | CS166: 33743.08093 | CT166: 35444.55582 | CU166: 37231.31955 | CV166: 39107.64085 | CW166: 41078.00201 | CX166: 43147.10948 | CY166: 45319.90514 | CZ166: 47601.57807 | DA166: 49997.57688 | DB166: 52513.6227 | DC166: 55155.72283 | DD166: 57930.18502 | DE166: 60843.63252 | DF166: 63903.01983
B168: Cash Flow
C169: EBITDA | L169: =L160 -> 0 | M169: =M160 -> 0 | N169: 0 | O169: 0 | P169: 0 | Q169: 0 | R169: 0 | S169: 0 | T169: 715.96 | U169: 793.8792 | V169: 891.756784 | W169: 969.5919197 | X169: 1067.383758 | Y169: 1135.131433 | Z169: 1252.834062 | AA169: 1360.490743 | AB169: 1378.100558 | AC169: 1465.662569 | AD169: 1558.575821 | AE169: 1690.871337 | AF169: 1779.295724 | AG169: 1872.218946 | AH169: 1969.867498 | AI169: 2072.479231 | AJ169: 2180.303916 | AK169: 2293.603851 | AL169: 2412.654477 | AM169: 2537.745043 | AN169: 2669.179294 | AO169: 2807.276198 | AP169: 2952.370706 | AQ169: 3104.814553 | AR169: 3264.977098 | AS169: 3433.246207 | AT169: 3610.029177 | AU169: 3795.753709 | AV169: 3990.868928 | AW169: 4195.846459 | AX169: 4411.181549 | AY169: 4637.394248 | AZ169: 4875.030655 | BA169: 5124.664215 | BB169: 5386.897095 | BC169: 5662.361612 | BD169: 5951.721748 | BE169: 6255.674731 | BF169: 6574.952702 | BG169: 6910.324456 | BH169: 7262.59728 | BI169: 7632.618878 | BJ169: 8021.27939 | BK169: 8429.513519 | BL169: 8858.302757 | BM169: 9308.677729 | BN169: 9781.720646 | BO169: 10278.56789 | BP169: 10800.41272 | BQ169: 11348.50812 | BR169: 11924.16978 | BS169: 12528.77926 | BT169: 13163.78723 | BU169: 13830.71697 | BV169: 14531.16801 | BW169: 15266.81991 | BX169: 16039.43627 | BY169: =BY160 -> 16850.86896 | BZ169: 17703.06249 | CA169: 18598.05871 | CB169: 19538.0016 | CC169: 20525.14243 | CD169: 21561.84512 | CE169: 22650.59186 | CF169: 23793.98902 | CG169: 24994.7734 | CH169: 26255.81868 | CI169: 27580.14237 | CJ169: 28970.91289 | CK169: 30431.45721 | CL169: 31965.26872 | CM169: 33576.01558 | CN169: 35267.54945 | CO169: 37043.91467 | CP169: 38909.35791 | CQ169: 40868.33826 | CR169: 42925.53788 | CS169: 45085.87314 | CT169: 47354.50632 | CU169: 49736.85795 | CV169: 52238.6197 | CW169: 54865.7679 | CX169: 57624.57786 | CY169: 60521.63875 | CZ169: 63563.86933 | DA169: 66758.5344 | DB169: 70113.26216 | DC169: 73636.06233 | DD169: 77335.34525 | DE169: 81219.94191 | DF169: 85299.125
C170: Less: Taxes | L170: =L165 -> 0 | M170: =M165 -> 0 | N170: 0 | O170: 0 | P170: 0 | Q170: 0 | R170: 0 | S170: 0 | T170: 28.11710593 | U170: 49.60639507 | V170: 76.22594445 | W170: 97.98539248 | X170: 124.8950627 | Y170: 144.4660118 | Z170: 176.7100814 | AA170: 206.6399531 | AB170: 214.2692072 | AC170: 239.6123865 | AD170: 266.5350632 | AE170: 303.5619115 | AF170: 329.8976854 | AG170: 357.6542455 | AH170: 386.9089409 | AI170: 417.7434103 | AJ170: 450.2438257 | AK170: 484.5011503 | AL170: 520.6114117 | AM170: 558.6759904 | AN170: 598.801926 | AO170: 641.1022408 | AP170: 685.6962828 | AQ170: 732.7100887 | AR170: 782.2767684 | AS170: 834.536912 | AT170: 878.7326545 | AU170: 925.1637873 | AV170: 973.9425922 | AW170: 1025.186975 | AX170: 1079.020747 | AY170: 1135.573922 | AZ170: 1194.983024 | BA170: 1257.391414 | BB170: 1322.949634 | BC170: 1391.815763 | BD170: 1464.155797 | BE170: 1540.144043 | BF170: 1619.963536 | BG170: 1703.806474 | BH170: 1791.87468 | BI170: 1884.38008 | BJ170: 1981.545208 | BK170: 2083.60374 | BL170: 2190.801049 | BM170: 2303.394792 | BN170: 2421.655522 | BO170: 2545.867333 | BP170: 2676.32854 | BQ170: 2813.35239 | BR170: 2957.267806 | BS170: 3108.420175 | BT170: 3267.172167 | BU170: 3433.904603 | BV170: 3609.017363 | BW170: 3792.930337 | BX170: 3986.084428 | BY170: =BY165 -> 4188.942599 | BZ170: 4401.990984 | CA170: 4625.740038 | CB170: 4860.72576 | CC170: 5107.510969 | CD170: 5366.686641 | CE170: 5638.873325 | CF170: 5924.722616 | CG170: 6224.918709 | CH170: 6540.180031 | CI170: 6871.260953 | CJ170: 7218.953584 | CK170: 7584.089664 | CL170: 7967.542541 | CM170: 8370.229255 | CN170: 8793.112722 | CO170: 9237.204028 | CP170: 9703.564838 | CQ170: 10193.30993 | CR170: 10707.60983 | CS170: 11247.69364 | CT170: 11814.85194 | CU170: 12410.43985 | CV170: 13035.88028 | CW170: 13692.66734 | CX170: 14382.36983 | CY170: 15106.63505 | CZ170: 15867.19269 | DA170: 16665.85896 | DB170: 17504.5409 | DC170: 18385.24094 | DD170: 19310.06167 | DE170: 20281.21084 | DF170: 21301.00661
C171: Less: WC Change | L171: =L97 -> 155.0709659 | M171: =M97 -> -155.0709659 | N171: 0 | O171: 0 | P171: 0 | Q171: 0 | R171: 0 | S171: 0 | T171: 0 | U171: 0 | V171: 0 | W171: 0 | X171: 0 | Y171: 0 | Z171: 0 | AA171: 0 | AB171: 0 | AC171: 0 | AD171: 0 | AE171: 0 | AF171: 0 | AG171: 0 | AH171: 0 | AI171: 0 | AJ171: 0 | AK171: 0 | AL171: 0 | AM171: 0 | AN171: 0 | AO171: 0 | AP171: 0 | AQ171: 0 | AR171: 0 | AS171: 0 | AT171: 0 | AU171: 0 | AV171: 0 | AW171: 0 | AX171: 0 | AY171: 0 | AZ171: 0 | BA171: 0 | BB171: 0 | BC171: 0 | BD171: 0 | BE171: 0 | BF171: 0 | BG171: 0 | BH171: 0 | BI171: 0 | BJ171: 0 | BK171: 0 | BL171: 0 | BM171: 0 | BN171: 0 | BO171: 0 | BP171: 0 | BQ171: 0 | BR171: 0 | BS171: 0 | BT171: 0 | BU171: 0 | BV171: 0 | BW171: 0 | BX171: 0 | BY171: =BY97 -> 0 | BZ171: 0 | CA171: 0 | CB171: 0 | CC171: 0 | CD171: 0 | CE171: 0 | CF171: 0 | CG171: 0 | CH171: 0 | CI171: 0 | CJ171: 0 | CK171: 0 | CL171: 0 | CM171: 0 | CN171: 0 | CO171: 0 | CP171: 0 | CQ171: 0 | CR171: 0 | CS171: 0 | CT171: 0 | CU171: 0 | CV171: 0 | CW171: 0 | CX171: 0 | CY171: 0 | CZ171: 0 | DA171: 0 | DB171: 0 | DC171: 0 | DD171: 0 | DE171: 0 | DF171: 0
C172: Operating Cash Flow | L172: =L169-L170-L171 -> -155.0709659 | M172: =M169-M170-M171 -> 155.0709659 | N172: 0 | O172: 0 | P172: 0 | Q172: 0 | R172: 0 | S172: 0 | T172: 687.8428941 | U172: 744.2728049 | V172: 815.5308396 | W172: 871.6065272 | X172: 942.4886954 | Y172: 990.6654214 | Z172: 1076.12398 | AA172: 1153.85079 | AB172: 1163.831351 | AC172: 1226.050183 | AD172: 1292.040757 | AE172: 1387.309425 | AF172: 1449.398038 | AG172: 1514.564701 | AH172: 1582.958558 | AI172: 1654.73582 | AJ172: 1730.060091 | AK172: 1809.102701 | AL172: 1892.043065 | AM172: 1979.069053 | AN172: 2070.377368 | AO172: 2166.173957 | AP172: 2266.674423 | AQ172: 2372.104464 | AR172: 2482.70033 | AS172: 2598.709295 | AT172: 2731.296523 | AU172: 2870.589921 | AV172: 3016.926336 | AW172: 3170.659484 | AX172: 3332.160801 | AY172: 3501.820326 | AZ172: 3680.047631 | BA172: 3867.272801 | BB172: 4063.947461 | BC172: 4270.545849 | BD172: 4487.565951 | BE172: 4715.530688 | BF172: 4954.989166 | BG172: 5206.517982 | BH172: 5470.7226 | BI172: 5748.238798 | BJ172: 6039.734182 | BK172: 6345.909779 | BL172: 6667.501708 | BM172: 7005.282937 | BN172: 7360.065124 | BO172: 7732.700557 | BP172: 8124.084179 | BQ172: 8535.155729 | BR172: 8966.901978 | BS172: 9420.359084 | BT172: 9896.615059 | BU172: 10396.81237 | BV172: 10922.15065 | BW172: 11473.88957 | BX172: 12053.35184 | BY172: =BY169-BY170-BY171 -> 12661.92636 | BZ172: 13301.07151 | CA172: 13972.31867 | CB172: 14677.27584 | CC172: 15417.63147 | CD172: 16195.15848 | CE172: 17011.71854 | CF172: 17869.26641 | CG172: 18769.85469 | CH172: 19715.63865 | CI172: 20708.88142 | CJ172: 21751.95931 | CK172: 22847.36755 | CL172: 23997.72618 | CM172: 25205.78632 | CN172: 26474.43673 | CO172: 27806.71064 | CP172: 29205.79307 | CQ172: 30675.02834 | CR172: 32217.92805 | CS172: 33838.17949 | CT172: 35539.65438 | CU172: 37326.41811 | CV172: 39202.73941 | CW172: 41173.10057 | CX172: 43242.20804 | CY172: 45415.0037 | CZ172: 47696.67663 | DA172: 50092.67544 | DB172: 52608.72126 | DC172: 55250.82139 | DD172: 58025.28358 | DE172: 60938.73108 | DF172: 63998.11839
C173: Less: Capital Expenditures | L173: =L145 -> 614.9290341 | M173: =M145 -> 696.3987609 | N173: 1128.299916 | O173: 1485.427485 | P173: 1172.940862 | Q173: 1381.637285 | R173: 940.8079414 | S173: 505.5587159 | T173: 0 | U173: 0 | V173: 0 | W173: 0 | X173: 0 | Y173: 0 | Z173: 0 | AA173: 0 | AB173: 0 | AC173: 0 | AD173: 0 | AE173: 0 | AF173: 0 | AG173: 0 | AH173: 0 | AI173: 0 | AJ173: 0 | AK173: 0 | AL173: 0 | AM173: 0 | AN173: 0 | AO173: 0 | AP173: 0 | AQ173: 0 | AR173: 0 | AS173: 0 | AT173: 0 | AU173: 0 | AV173: 0 | AW173: 0 | AX173: 0 | AY173: 0 | AZ173: 0 | BA173: 0 | BB173: 0 | BC173: 0 | BD173: 0 | BE173: 0 | BF173: 0 | BG173: 0 | BH173: 0 | BI173: 0 | BJ173: 0 | BK173: 0 | BL173: 0 | BM173: 0 | BN173: 0 | BO173: 0 | BP173: 0 | BQ173: 0 | BR173: 0 | BS173: 0 | BT173: 0 | BU173: 0 | BV173: 0 | BW173: 0 | BX173: 0 | BY173: =BY145 -> 0 | BZ173: 0 | CA173: 0 | CB173: 0 | CC173: 0 | CD173: 0 | CE173: 0 | CF173: 0 | CG173: 0 | CH173: 0 | CI173: 0 | CJ173: 0 | CK173: 0 | CL173: 0 | CM173: 0 | CN173: 0 | CO173: 0 | CP173: 0 | CQ173: 0 | CR173: 0 | CS173: 0 | CT173: 0 | CU173: 0 | CV173: 0 | CW173: 0 | CX173: 0 | CY173: 0 | CZ173: 0 | DA173: 0 | DB173: 0 | DC173: 0 | DD173: 0 | DE173: 0 | DF173: 0
C174: Less: Interest During Construction | L174: =L146 -> 0 | M174: =M146 -> 0 | N174: 39.24626514 | O174: 82.85836323 | P174: 196.5590872 | Q174: 295.8478335 | R174: 417.4655047 | S174: 456.7803295 | T174: 0 | U174: 0 | V174: 0 | W174: 0 | X174: 0 | Y174: 0 | Z174: 0 | AA174: 0 | AB174: 0 | AC174: 0 | AD174: 0 | AE174: 0 | AF174: 0 | AG174: 0 | AH174: 0 | AI174: 0 | AJ174: 0 | AK174: 0 | AL174: 0 | AM174: 0 | AN174: 0 | AO174: 0 | AP174: 0 | AQ174: 0 | AR174: 0 | AS174: 0 | AT174: 0 | AU174: 0 | AV174: 0 | AW174: 0 | AX174: 0 | AY174: 0 | AZ174: 0 | BA174: 0 | BB174: 0 | BC174: 0 | BD174: 0 | BE174: 0 | BF174: 0 | BG174: 0 | BH174: 0 | BI174: 0 | BJ174: 0 | BK174: 0 | BL174: 0 | BM174: 0 | BN174: 0 | BO174: 0 | BP174: 0 | BQ174: 0 | BR174: 0 | BS174: 0 | BT174: 0 | BU174: 0 | BV174: 0 | BW174: 0 | BX174: 0 | BY174: =BY146 -> 0 | BZ174: 0 | CA174: 0 | CB174: 0 | CC174: 0 | CD174: 0 | CE174: 0 | CF174: 0 | CG174: 0 | CH174: 0 | CI174: 0 | CJ174: 0 | CK174: 0 | CL174: 0 | CM174: 0 | CN174: 0 | CO174: 0 | CP174: 0 | CQ174: 0 | CR174: 0 | CS174: 0 | CT174: 0 | CU174: 0 | CV174: 0 | CW174: 0 | CX174: 0 | CY174: 0 | CZ174: 0 | DA174: 0 | DB174: 0 | DC174: 0 | DD174: 0 | DE174: 0 | DF174: 0
C175: Add: Equity Issues | L175: =L103 -> 770 | M175: =M103 -> 0 | N175: 566 | O175: 0 | P175: 0 | Q175: 0 | R175: 816 | S175: 0 | T175: 0 | U175: 0 | V175: 0 | W175: 0 | X175: 0 | Y175: 0 | Z175: 0 | AA175: 0 | AB175: 0 | AC175: 0 | AD175: 0 | AE175: 0 | AF175: 0 | AG175: 0 | AH175: 0 | AI175: 0 | AJ175: 0 | AK175: 0 | AL175: 0 | AM175: 0 | AN175: 0 | AO175: 0 | AP175: 0 | AQ175: 0 | AR175: 0 | AS175: 0 | AT175: 0 | AU175: 0 | AV175: 0 | AW175: 0 | AX175: 0 | AY175: 0 | AZ175: 0 | BA175: 0 | BB175: 0 | BC175: 0 | BD175: 0 | BE175: 0 | BF175: 0 | BG175: 0 | BH175: 0 | BI175: 0 | BJ175: 0 | BK175: 0 | BL175: 0 | BM175: 0 | BN175: 0 | BO175: 0 | BP175: 0 | BQ175: 0 | BR175: 0 | BS175: 0 | BT175: 0 | BU175: 0 | BV175: 0 | BW175: 0 | BX175: 0 | BY175: =BY103 -> 0 | BZ175: 0 | CA175: 0 | CB175: 0 | CC175: 0 | CD175: 0 | CE175: 0 | CF175: 0 | CG175: 0 | CH175: 0 | CI175: 0 | CJ175: 0 | CK175: 0 | CL175: 0 | CM175: 0 | CN175: 0 | CO175: 0 | CP175: 0 | CQ175: 0 | CR175: 0 | CS175: 0 | CT175: 0 | CU175: 0 | CV175: 0 | CW175: 0 | CX175: 0 | CY175: 0 | CZ175: 0 | DA175: 0 | DB175: 0 | DC175: 0 | DD175: 0 | DE175: 0 | DF175: 0
C176: Add: Debt Issues | L176: =L100 -> 0 | M176: =M100 -> 541.327795 | N176: 601.5461807 | O176: 1568.285848 | P176: 1369.499949 | Q176: 1677.485119 | R176: 542.2734461 | S176: 962.3390454 | T176: 0 | U176: 0 | V176: 0 | W176: 0 | X176: 0 | Y176: 0 | Z176: 0 | AA176: 0 | AB176: 0 | AC176: 0 | AD176: 0 | AE176: 0 | AF176: 0 | AG176: 0 | AH176: 0 | AI176: 0 | AJ176: 0 | AK176: 0 | AL176: 0 | AM176: 0 | AN176: 0 | AO176: 0 | AP176: 0 | AQ176: 0 | AR176: 0 | AS176: 0 | AT176: 0 | AU176: 0 | AV176: 0 | AW176: 0 | AX176: 0 | AY176: 0 | AZ176: 0 | BA176: 0 | BB176: 0 | BC176: 0 | BD176: 0 | BE176: 0 | BF176: 0 | BG176: 0 | BH176: 0 | BI176: 0 | BJ176: 0 | BK176: 0 | BL176: 0 | BM176: 0 | BN176: 0 | BO176: 0 | BP176: 0 | BQ176: 0 | BR176: 0 | BS176: 0 | BT176: 0 | BU176: 0 | BV176: 0 | BW176: 0 | BX176: 0 | BY176: =BY100 -> 0 | BZ176: 0 | CA176: 0 | CB176: 0 | CC176: 0 | CD176: 0 | CE176: 0 | CF176: 0 | CG176: 0 | CH176: 0 | CI176: 0 | CJ176: 0 | CK176: 0 | CL176: 0 | CM176: 0 | CN176: 0 | CO176: 0 | CP176: 0 | CQ176: 0 | CR176: 0 | CS176: 0 | CT176: 0 | CU176: 0 | CV176: 0 | CW176: 0 | CX176: 0 | CY176: 0 | CZ176: 0 | DA176: 0 | DB176: 0 | DC176: 0 | DD176: 0 | DE176: 0 | DF176: 0
C177: Cash Before Interest | L177: =L172-L173-L174+L175+L176 -> 0 | M177: =M172-M173-M174+M175+M176 -> 0 | N177: 0 | O177: 0 | P177: 0 | Q177: 0 | R177: 0 | S177: 0 | T177: 687.8428941 | U177: 744.2728049 | V177: 815.5308396 | W177: 871.6065272 | X177: 942.4886954 | Y177: 990.6654214 | Z177: 1076.12398 | AA177: 1153.85079 | AB177: 1163.831351 | AC177: 1226.050183 | AD177: 1292.040757 | AE177: 1387.309425 | AF177: 1449.398038 | AG177: 1514.564701 | AH177: 1582.958558 | AI177: 1654.73582 | AJ177: 1730.060091 | AK177: 1809.102701 | AL177: 1892.043065 | AM177: 1979.069053 | AN177: 2070.377368 | AO177: 2166.173957 | AP177: 2266.674423 | AQ177: 2372.104464 | AR177: 2482.70033 | AS177: 2598.709295 | AT177: 2731.296523 | AU177: 2870.589921 | AV177: 3016.926336 | AW177: 3170.659484 | AX177: 3332.160801 | AY177: 3501.820326 | AZ177: 3680.047631 | BA177: 3867.272801 | BB177: 4063.947461 | BC177: 4270.545849 | BD177: 4487.565951 | BE177: 4715.530688 | BF177: 4954.989166 | BG177: 5206.517982 | BH177: 5470.7226 | BI177: 5748.238798 | BJ177: 6039.734182 | BK177: 6345.909779 | BL177: 6667.501708 | BM177: 7005.282937 | BN177: 7360.065124 | BO177: 7732.700557 | BP177: 8124.084179 | BQ177: 8535.155729 | BR177: 8966.901978 | BS177: 9420.359084 | BT177: 9896.615059 | BU177: 10396.81237 | BV177: 10922.15065 | BW177: 11473.88957 | BX177: 12053.35184 | BY177: =BY172-BY173-BY174+BY175+BY176 -> 12661.92636 | BZ177: 13301.07151 | CA177: 13972.31867 | CB177: 14677.27584 | CC177: 15417.63147 | CD177: 16195.15848 | CE177: 17011.71854 | CF177: 17869.26641 | CG177: 18769.85469 | CH177: 19715.63865 | CI177: 20708.88142 | CJ177: 21751.95931 | CK177: 22847.36755 | CL177: 23997.72618 | CM177: 25205.78632 | CN177: 26474.43673 | CO177: 27806.71064 | CP177: 29205.79307 | CQ177: 30675.02834 | CR177: 32217.92805 | CS177: 33838.17949 | CT177: 35539.65438 | CU177: 37326.41811 | CV177: 39202.73941 | CW177: 41173.10057 | CX177: 43242.20804 | CY177: 45415.0037 | CZ177: 47696.67663 | DA177: 50092.67544 | DB177: 52608.72126 | DC177: 55250.82139 | DD177: 58025.28358 | DE177: 60938.73108 | DF177: 63998.11839
C178: Less: Repayment of Default | L178: =L124 -> 0 | M178: 0 | N178: 0 | O178: 0 | P178: 0 | Q178: 0 | R178: 0 | S178: 0 | T178: 0 | U178: 0 | V178: 0 | W178: 0 | X178: 0 | Y178: 0 | Z178: 0 | AA178: 0 | AB178: 0 | AC178: 0 | AD178: 0 | AE178: 0 | AF178: 0 | AG178: 0 | AH178: 0 | AI178: 0 | AJ178: 0 | AK178: 0 | AL178: 0 | AM178: 0 | AN178: 0 | AO178: 0 | AP178: 0 | AQ178: 0 | AR178: =AR124 -> 0 | AS178: 0 | AT178: 0 | AU178: 0 | AV178: 0 | AW178: 0 | AX178: 0 | AY178: 0 | AZ178: 0 | BA178: 0 | BB178: 0 | BC178: 0 | BD178: 0 | BE178: 0 | BF178: 0 | BG178: 0 | BH178: 0 | BI178: 0 | BJ178: 0 | BK178: 0 | BL178: 0 | BM178: 0 | BN178: 0 | BO178: 0 | BP178: 0 | BQ178: 0 | BR178: 0 | BS178: 0 | BT178: 0 | BU178: 0 | BV178: 0 | BW178: 0 | BX178: =BX124 -> 0 | BY178: 0 | BZ178: 0 | CA178: 0 | CB178: 0 | CC178: 0 | CD178: 0 | CE178: 0 | CF178: 0 | CG178: 0 | CH178: 0 | CI178: 0 | CJ178: 0 | CK178: 0 | CL178: 0 | CM178: 0 | CN178: 0 | CO178: 0 | CP178: 0 | CQ178: 0 | CR178: 0 | CS178: 0 | CT178: 0 | CU178: 0 | CV178: 0 | CW178: 0 | CX178: 0 | CY178: 0 | CZ178: 0 | DA178: 0 | DB178: 0 | DC178: 0 | DD178: 0 | DE178: 0 | DF178: 0
C179: Less: Interest Expense | L179: =L163 -> 0 | M179: =M163 -> 0 | N179: 0 | O179: 0 | P179: 0 | Q179: 0 | R179: 0 | S179: 0 | T179: 508.3930168 | U179: 500.3550603 | V179: 491.7544468 | W179: 482.5517903 | X179: 472.7049479 | Y179: 462.1688266 | Z179: 450.8951767 | AA179: 438.8323713 | AB179: 425.9251696 | AC179: 412.1144637 | AD179: 397.3370085 | AE179: 381.5251313 | AF179: 364.6064228 | AG179: 346.5034047 | AH179: 327.1331753 | AI179: 306.4070298 | AJ179: 284.2300542 | AK179: 260.5006903 | AL179: 235.1102709 | AM179: 207.9425221 | AN179: 178.8730309 | AO179: 147.7686753 | AP179: 114.4870149 | AQ179: 78.87563822 | AR179: 40.77146516 | AS179: 0 | AT179: 0 | AU179: 0 | AV179: 0 | AW179: 0 | AX179: 0 | AY179: 0 | AZ179: 0 | BA179: 0 | BB179: 0 | BC179: 0 | BD179: 0 | BE179: 0 | BF179: 0 | BG179: 0 | BH179: 0 | BI179: 0 | BJ179: 0 | BK179: 0 | BL179: 0 | BM179: 0 | BN179: 0 | BO179: 0 | BP179: 0 | BQ179: 0 | BR179: 0 | BS179: 0 | BT179: 0 | BU179: 0 | BV179: 0 | BW179: 0 | BX179: 0 | BY179: =BY163 -> 0 | BZ179: 0 | CA179: 0 | CB179: 0 | CC179: 0 | CD179: 0 | CE179: 0 | CF179: 0 | CG179: 0 | CH179: 0 | CI179: 0 | CJ179: 0 | CK179: 0 | CL179: 0 | CM179: 0 | CN179: 0 | CO179: 0 | CP179: 0 | CQ179: 0 | CR179: 0 | CS179: 0 | CT179: 0 | CU179: 0 | CV179: 0 | CW179: 0 | CX179: 0 | CY179: 0 | CZ179: 0 | DA179: 0 | DB179: 0 | DC179: 0 | DD179: 0 | DE179: 0 | DF179: 0
C180: Less: Repayment of Debt | L180: =L119 -> 0 | M180: 0 | N180: 0 | O180: 0 | P180: 0 | Q180: 0 | R180: 0 | S180: 0 | T180: 114.8279507 | U180: 122.8659072 | V180: 131.4665207 | W180: 140.6691772 | X180: 150.5160196 | Y180: 161.052141 | Z180: 172.3257908 | AA180: 184.3885962 | AB180: 197.2957979 | AC180: 211.1065038 | AD180: 225.883959 | AE180: 241.6958362 | AF180: 258.6145447 | AG180: 276.7175628 | AH180: 296.0877922 | AI180: 316.8139377 | AJ180: 338.9909133 | AK180: 362.7202772 | AL180: 388.1106967 | AM180: 415.2784454 | AN180: 444.3479366 | AO180: 475.4522922 | AP180: 508.7339526 | AQ180: 544.3453293 | AR180: =AR119 -> 582.4495023 | AS180: 0 | AT180: 0 | AU180: 0 | AV180: 0 | AW180: 0 | AX180: 0 | AY180: 0 | AZ180: 0 | BA180: 0 | BB180: 0 | BC180: 0 | BD180: 0 | BE180: 0 | BF180: 0 | BG180: 0 | BH180: 0 | BI180: 0 | BJ180: 0 | BK180: 0 | BL180: 0 | BM180: 0 | BN180: 0 | BO180: 0 | BP180: 0 | BQ180: 0 | BR180: 0 | BS180: 0 | BT180: 0 | BU180: 0 | BV180: 0 | BW180: 0 | BX180: =BX119 -> 0 | BY180: 0 | BZ180: 0 | CA180: 0 | CB180: 0 | CC180: 0 | CD180: 0 | CE180: 0 | CF180: 0 | CG180: 0 | CH180: 0 | CI180: 0 | CJ180: 0 | CK180: 0 | CL180: 0 | CM180: 0 | CN180: 0 | CO180: 0 | CP180: 0 | CQ180: 0 | CR180: 0 | CS180: 0 | CT180: 0 | CU180: 0 | CV180: 0 | CW180: 0 | CX180: 0 | CY180: 0 | CZ180: 0 | DA180: 0 | DB180: 0 | DC180: 0 | DD180: 0 | DE180: 0 | DF180: 0
C181: Cash After Interest | L181: =L177-L179-L180-L178 -> 0 | M181: =M177-M179-M180-M178 -> 0 | N181: 0 | O181: 0 | P181: 0 | Q181: 0 | R181: 0 | S181: 0 | T181: 64.62192655 | U181: 121.0518374 | V181: 192.309872 | W181: 248.3855597 | X181: 319.2677279 | Y181: 367.4444539 | Z181: 452.9030129 | AA181: 530.6298225 | AB181: 540.6103832 | AC181: 602.8292152 | AD181: 668.8197899 | AE181: 764.0884579 | AF181: 826.1770708 | AG181: 891.3437331 | AH181: 959.73759 | AI181: 1031.514853 | AJ181: 1106.839123 | AK181: 1185.881733 | AL181: 1268.822098 | AM181: 1355.848085 | AN181: 1447.156401 | AO181: 1542.95299 | AP181: 1643.453455 | AQ181: 1748.883496 | AR181: 1859.479362 | AS181: 2598.709295 | AT181: 2731.296523 | AU181: 2870.589921 | AV181: 3016.926336 | AW181: 3170.659484 | AX181: 3332.160801 | AY181: 3501.820326 | AZ181: 3680.047631 | BA181: 3867.272801 | BB181: 4063.947461 | BC181: 4270.545849 | BD181: 4487.565951 | BE181: 4715.530688 | BF181: 4954.989166 | BG181: 5206.517982 | BH181: 5470.7226 | BI181: 5748.238798 | BJ181: 6039.734182 | BK181: 6345.909779 | BL181: 6667.501708 | BM181: 7005.282937 | BN181: 7360.065124 | BO181: 7732.700557 | BP181: 8124.084179 | BQ181: 8535.155729 | BR181: 8966.901978 | BS181: 9420.359084 | BT181: 9896.615059 | BU181: 10396.81237 | BV181: 10922.15065 | BW181: 11473.88957 | BX181: 12053.35184 | BY181: =BY177-BY179-BY180-BY178 -> 12661.92636 | BZ181: 13301.07151 | CA181: 13972.31867 | CB181: 14677.27584 | CC181: 15417.63147 | CD181: 16195.15848 | CE181: 17011.71854 | CF181: 17869.26641 | CG181: 18769.85469 | CH181: 19715.63865 | CI181: 20708.88142 | CJ181: 21751.95931 | CK181: 22847.36755 | CL181: 23997.72618 | CM181: 25205.78632 | CN181: 26474.43673 | CO181: 27806.71064 | CP181: 29205.79307 | CQ181: 30675.02834 | CR181: 32217.92805 | CS181: 33838.17949 | CT181: 35539.65438 | CU181: 37326.41811 | CV181: 39202.73941 | CW181: 41173.10057 | CX181: 43242.20804 | CY181: 45415.0037 | CZ181: 47696.67663 | DA181: 50092.67544 | DB181: 52608.72126 | DC181: 55250.82139 | DD181: 58025.28358 | DE181: 60938.73108 | DF181: 63998.11839
C182: Add: Default on Debt | L182: =MAX(-L181,0) -> 0 | M182: =MAX(-M181,0) -> 0 | N182: 0 | O182: 0 | P182: 0 | Q182: 0 | R182: 0 | S182: 0 | T182: 0 | U182: 0 | V182: 0 | W182: 0 | X182: 0 | Y182: 0 | Z182: 0 | AA182: 0 | AB182: 0 | AC182: 0 | AD182: 0 | AE182: 0 | AF182: 0 | AG182: 0 | AH182: 0 | AI182: 0 | AJ182: 0 | AK182: 0 | AL182: 0 | AM182: 0 | AN182: 0 | AO182: 0 | AP182: 0 | AQ182: 0 | AR182: 0 | AS182: 0 | AT182: 0 | AU182: 0 | AV182: 0 | AW182: 0 | AX182: 0 | AY182: 0 | AZ182: 0 | BA182: 0 | BB182: 0 | BC182: 0 | BD182: 0 | BE182: 0 | BF182: 0 | BG182: 0 | BH182: 0 | BI182: 0 | BJ182: 0 | BK182: 0 | BL182: 0 | BM182: 0 | BN182: 0 | BO182: 0 | BP182: 0 | BQ182: 0 | BR182: 0 | BS182: 0 | BT182: 0 | BU182: 0 | BV182: 0 | BW182: 0 | BX182: 0 | BY182: =MAX(-BY181,0) -> 0 | BZ182: 0 | CA182: 0 | CB182: 0 | CC182: 0 | CD182: 0 | CE182: 0 | CF182: 0 | CG182: 0 | CH182: 0 | CI182: 0 | CJ182: 0 | CK182: 0 | CL182: 0 | CM182: 0 | CN182: 0 | CO182: 0 | CP182: 0 | CQ182: 0 | CR182: 0 | CS182: 0 | CT182: 0 | CU182: 0 | CV182: 0 | CW182: 0 | CX182: 0 | CY182: 0 | CZ182: 0 | DA182: 0 | DB182: 0 | DC182: 0 | DD182: 0 | DE182: 0 | DF182: 0
C183: Cash After Default | L183: =L181+L182 -> 0 | M183: =M181+M182 -> 0 | N183: 0 | O183: 0 | P183: 0 | Q183: 0 | R183: 0 | S183: 0 | T183: 64.62192655 | U183: 121.0518374 | V183: 192.309872 | W183: 248.3855597 | X183: 319.2677279 | Y183: 367.4444539 | Z183: 452.9030129 | AA183: 530.6298225 | AB183: 540.6103832 | AC183: 602.8292152 | AD183: 668.8197899 | AE183: 764.0884579 | AF183: 826.1770708 | AG183: 891.3437331 | AH183: 959.73759 | AI183: 1031.514853 | AJ183: 1106.839123 | AK183: 1185.881733 | AL183: 1268.822098 | AM183: 1355.848085 | AN183: 1447.156401 | AO183: 1542.95299 | AP183: 1643.453455 | AQ183: 1748.883496 | AR183: 1859.479362 | AS183: 2598.709295 | AT183: 2731.296523 | AU183: 2870.589921 | AV183: 3016.926336 | AW183: 3170.659484 | AX183: 3332.160801 | AY183: 3501.820326 | AZ183: 3680.047631 | BA183: 3867.272801 | BB183: 4063.947461 | BC183: 4270.545849 | BD183: 4487.565951 | BE183: 4715.530688 | BF183: 4954.989166 | BG183: 5206.517982 | BH183: 5470.7226 | BI183: 5748.238798 | BJ183: 6039.734182 | BK183: 6345.909779 | BL183: 6667.501708 | BM183: 7005.282937 | BN183: 7360.065124 | BO183: 7732.700557 | BP183: 8124.084179 | BQ183: 8535.155729 | BR183: 8966.901978 | BS183: 9420.359084 | BT183: 9896.615059 | BU183: 10396.81237 | BV183: 10922.15065 | BW183: 11473.88957 | BX183: 12053.35184 | BY183: =BY181+BY182 -> 12661.92636 | BZ183: 13301.07151 | CA183: 13972.31867 | CB183: 14677.27584 | CC183: 15417.63147 | CD183: 16195.15848 | CE183: 17011.71854 | CF183: 17869.26641 | CG183: 18769.85469 | CH183: 19715.63865 | CI183: 20708.88142 | CJ183: 21751.95931 | CK183: 22847.36755 | CL183: 23997.72618 | CM183: 25205.78632 | CN183: 26474.43673 | CO183: 27806.71064 | CP183: 29205.79307 | CQ183: 30675.02834 | CR183: 32217.92805 | CS183: 33838.17949 | CT183: 35539.65438 | CU183: 37326.41811 | CV183: 39202.73941 | CW183: 41173.10057 | CX183: 43242.20804 | CY183: 45415.0037 | CZ183: 47696.67663 | DA183: 50092.67544 | DB183: 52608.72126 | DC183: 55250.82139 | DD183: 58025.28358 | DE183: 60938.73108 | DF183: 63998.11839
C184: Cash to Equity | L184: =L183 -> 0 | M184: =M183 -> 0 | N184: 0 | O184: 0 | P184: 0 | Q184: 0 | R184: 0 | S184: 0 | T184: 64.62192655 | U184: 121.0518374 | V184: 192.309872 | W184: 248.3855597 | X184: 319.2677279 | Y184: 367.4444539 | Z184: 452.9030129 | AA184: 530.6298225 | AB184: 540.6103832 | AC184: 602.8292152 | AD184: 668.8197899 | AE184: 764.0884579 | AF184: 826.1770708 | AG184: 891.3437331 | AH184: 959.73759 | AI184: 1031.514853 | AJ184: 1106.839123 | AK184: 1185.881733 | AL184: 1268.822098 | AM184: 1355.848085 | AN184: 1447.156401 | AO184: 1542.95299 | AP184: 1643.453455 | AQ184: 1748.883496 | AR184: 1859.479362 | AS184: 2598.709295 | AT184: 2731.296523 | AU184: 2870.589921 | AV184: 3016.926336 | AW184: 3170.659484 | AX184: 3332.160801 | AY184: 3501.820326 | AZ184: 3680.047631 | BA184: 3867.272801 | BB184: 4063.947461 | BC184: 4270.545849 | BD184: 4487.565951 | BE184: 4715.530688 | BF184: 4954.989166 | BG184: 5206.517982 | BH184: 5470.7226 | BI184: 5748.238798 | BJ184: 6039.734182 | BK184: 6345.909779 | BL184: 6667.501708 | BM184: 7005.282937 | BN184: 7360.065124 | BO184: 7732.700557 | BP184: 8124.084179 | BQ184: 8535.155729 | BR184: 8966.901978 | BS184: 9420.359084 | BT184: 9896.615059 | BU184: 10396.81237 | BV184: 10922.15065 | BW184: 11473.88957 | BX184: 12053.35184 | BY184: =BY183 -> 12661.92636 | BZ184: 13301.07151 | CA184: 13972.31867 | CB184: 14677.27584 | CC184: 15417.63147 | CD184: 16195.15848 | CE184: 17011.71854 | CF184: 17869.26641 | CG184: 18769.85469 | CH184: 19715.63865 | CI184: 20708.88142 | CJ184: 21751.95931 | CK184: 22847.36755 | CL184: 23997.72618 | CM184: 25205.78632 | CN184: 26474.43673 | CO184: 27806.71064 | CP184: 29205.79307 | CQ184: 30675.02834 | CR184: 32217.92805 | CS184: 33838.17949 | CT184: 35539.65438 | CU184: 37326.41811 | CV184: 39202.73941 | CW184: 41173.10057 | CX184: 43242.20804 | CY184: 45415.0037 | CZ184: 47696.67663 | DA184: 50092.67544 | DB184: 52608.72126 | DC184: 55250.82139 | DD184: 58025.28358 | DE184: 60938.73108 | DF184: 63998.11839
C186: Free Cash
D187: EBITDA | L187: =L169 -> 0 | M187: =M169 -> 0 | N187: 0 | O187: 0 | P187: 0 | Q187: 0 | R187: 0 | S187: 0 | T187: 715.96 | U187: 793.8792 | V187: 891.756784 | W187: 969.5919197 | X187: 1067.383758 | Y187: 1135.131433 | Z187: 1252.834062 | AA187: 1360.490743 | AB187: 1378.100558 | AC187: 1465.662569 | AD187: 1558.575821 | AE187: 1690.871337 | AF187: 1779.295724 | AG187: 1872.218946 | AH187: 1969.867498 | AI187: 2072.479231 | AJ187: 2180.303916 | AK187: 2293.603851 | AL187: 2412.654477 | AM187: 2537.745043 | AN187: 2669.179294 | AO187: 2807.276198 | AP187: 2952.370706 | AQ187: 3104.814553 | AR187: 3264.977098 | AS187: 3433.246207 | AT187: 3610.029177 | AU187: 3795.753709 | AV187: 3990.868928 | AW187: 4195.846459 | AX187: 4411.181549 | AY187: 4637.394248 | AZ187: 4875.030655 | BA187: 5124.664215 | BB187: 5386.897095 | BC187: 5662.361612 | BD187: 5951.721748 | BE187: 6255.674731 | BF187: 6574.952702 | BG187: 6910.324456 | BH187: 7262.59728 | BI187: 7632.618878 | BJ187: 8021.27939 | BK187: 8429.513519 | BL187: 8858.302757 | BM187: 9308.677729 | BN187: 9781.720646 | BO187: 10278.56789 | BP187: 10800.41272 | BQ187: 11348.50812 | BR187: 11924.16978 | BS187: 12528.77926 | BT187: 13163.78723 | BU187: 13830.71697 | BV187: 14531.16801 | BW187: 15266.81991 | BX187: 16039.43627 | BY187: =BY169 -> 16850.86896 | BZ187: 17703.06249 | CA187: 18598.05871 | CB187: 19538.0016 | CC187: 20525.14243 | CD187: 21561.84512 | CE187: 22650.59186 | CF187: 23793.98902 | CG187: 24994.7734 | CH187: 26255.81868 | CI187: 27580.14237 | CJ187: 28970.91289 | CK187: 30431.45721 | CL187: 31965.26872 | CM187: 33576.01558 | CN187: 35267.54945 | CO187: 37043.91467 | CP187: 38909.35791 | CQ187: 40868.33826 | CR187: 42925.53788 | CS187: 45085.87314 | CT187: 47354.50632 | CU187: 49736.85795 | CV187: 52238.6197 | CW187: 54865.7679 | CX187: 57624.57786 | CY187: 60521.63875 | CZ187: 63563.86933 | DA187: 66758.5344 | DB187: 70113.26216 | DC187: 73636.06233 | DD187: 77335.34525 | DE187: 81219.94191 | DF187: 85299.125
D188: Cap Exp | L188: =L173 -> 614.9290341 | M188: =M173 -> 696.3987609 | N188: 1128.299916 | O188: 1485.427485 | P188: 1172.940862 | Q188: 1381.637285 | R188: 940.8079414 | S188: 505.5587159 | T188: 0 | U188: 0 | V188: 0 | W188: 0 | X188: 0 | Y188: 0 | Z188: 0 | AA188: 0 | AB188: 0 | AC188: 0 | AD188: 0 | AE188: 0 | AF188: 0 | AG188: 0 | AH188: 0 | AI188: 0 | AJ188: 0 | AK188: 0 | AL188: 0 | AM188: 0 | AN188: 0 | AO188: 0 | AP188: 0 | AQ188: 0 | AR188: 0 | AS188: 0 | AT188: 0 | AU188: 0 | AV188: 0 | AW188: 0 | AX188: 0 | AY188: 0 | AZ188: 0 | BA188: 0 | BB188: 0 | BC188: 0 | BD188: 0 | BE188: 0 | BF188: 0 | BG188: 0 | BH188: 0 | BI188: 0 | BJ188: 0 | BK188: 0 | BL188: 0 | BM188: 0 | BN188: 0 | BO188: 0 | BP188: 0 | BQ188: 0 | BR188: 0 | BS188: 0 | BT188: 0 | BU188: 0 | BV188: 0 | BW188: 0 | BX188: 0 | BY188: =BY173 -> 0 | BZ188: 0 | CA188: 0 | CB188: 0 | CC188: 0 | CD188: 0 | CE188: 0 | CF188: 0 | CG188: 0 | CH188: 0 | CI188: 0 | CJ188: 0 | CK188: 0 | CL188: 0 | CM188: 0 | CN188: 0 | CO188: 0 | CP188: 0 | CQ188: 0 | CR188: 0 | CS188: 0 | CT188: 0 | CU188: 0 | CV188: 0 | CW188: 0 | CX188: 0 | CY188: 0 | CZ188: 0 | DA188: 0 | DB188: 0 | DC188: 0 | DD188: 0 | DE188: 0 | DF188: 0
D189: Taxes on EBIT | L189: =(L187-L150)*L47 -> 0 | M189: 0 | N189: 0 | O189: 0 | P189: 0 | Q189: 0 | R189: 0 | S189: 0 | T189: 155.2153601 | U189: 174.6951601 | V189: 199.1645561 | W189: 218.6233401 | X189: 243.0712997 | Y189: 260.0082185 | Z189: 289.4338756 | AA189: 316.3480459 | AB189: 320.7504996 | AC189: 342.6410024 | AD189: 365.8693153 | AE189: 398.9431944 | AF189: 421.0492911 | AG189: 444.2800967 | AH189: 468.6922348 | AI189: 494.3451678 | AJ189: 521.3013392 | AK189: 549.6263229 | AL189: 579.3889794 | AM189: 610.6616209 | AN189: 643.5201837 | AO189: 678.0444096 | AP189: 714.3180365 | AQ189: 752.4289983 | AR189: =(AR187-AR150)*AR47 -> 792.4696347 | AS189: 834.536912 | AT189: 878.7326545 | AU189: 925.1637873 | AV189: 973.9425922 | AW189: 1025.186975 | AX189: 1079.020747 | AY189: 1135.573922 | AZ189: 1194.983024 | BA189: 1257.391414 | BB189: 1322.949634 | BC189: 1391.815763 | BD189: 1464.155797 | BE189: 1540.144043 | BF189: 1619.963536 | BG189: 1703.806474 | BH189: 1791.87468 | BI189: 1884.38008 | BJ189: 1981.545208 | BK189: 2083.60374 | BL189: 2190.801049 | BM189: 2303.394792 | BN189: 2421.655522 | BO189: 2545.867333 | BP189: 2676.32854 | BQ189: 2813.35239 | BR189: 2957.267806 | BS189: 3108.420175 | BT189: 3267.172167 | BU189: 3433.904603 | BV189: 3609.017363 | BW189: 3792.930337 | BX189: =(BX187-BX150)*BX47 -> 3986.084428 | BY189: 4188.942599 | BZ189: 4401.990984 | CA189: 4625.740038 | CB189: 4860.72576 | CC189: 5107.510969 | CD189: 5366.686641 | CE189: 5638.873325 | CF189: 5924.722616 | CG189: 6224.918709 | CH189: 6540.180031 | CI189: 6871.260953 | CJ189: 7218.953584 | CK189: 7584.089664 | CL189: 7967.542541 | CM189: 8370.229255 | CN189: 8793.112722 | CO189: 9237.204028 | CP189: 9703.564838 | CQ189: 10193.30993 | CR189: 10707.60983 | CS189: 11247.69364 | CT189: 11814.85194 | CU189: 12410.43985 | CV189: 13035.88028 | CW189: 13692.66734 | CX189: 14382.36983 | CY189: 15106.63505 | CZ189: 15867.19269 | DA189: 16665.85896 | DB189: 17504.5409 | DC189: 18385.24094 | DD189: 19310.06167 | DE189: 20281.21084 | DF189: 21301.00661
E190: Free Cash Flow | L190: =L187-L188-L189 -> -614.9290341 | M190: =M187-M188-M189 -> -696.3987609 | N190: -1128.299916 | O190: -1485.427485 | P190: -1172.940862 | Q190: -1381.637285 | R190: -940.8079414 | S190: -505.5587159 | T190: 560.7446399 | U190: 619.1840399 | V190: 692.5922279 | W190: 750.9685796 | X190: 824.3124584 | Y190: 875.1232148 | Z190: 963.4001863 | AA190: 1044.142697 | AB190: 1057.350058 | AC190: 1123.021567 | AD190: 1192.706505 | AE190: 1291.928143 | AF190: 1358.246433 | AG190: 1427.938849 | AH190: 1501.175264 | AI190: 1578.134063 | AJ190: 1659.002577 | AK190: 1743.977528 | AL190: 1833.265498 | AM190: 1927.083422 | AN190: 2025.65911 | AO190: 2129.231788 | AP190: 2238.052669 | AQ190: 2352.385554 | AR190: 2472.507464 | AS190: 2598.709295 | AT190: 2731.296523 | AU190: 2870.589921 | AV190: 3016.926336 | AW190: 3170.659484 | AX190: 3332.160801 | AY190: 3501.820326 | AZ190: 3680.047631 | BA190: 3867.272801 | BB190: 4063.947461 | BC190: 4270.545849 | BD190: 4487.565951 | BE190: 4715.530688 | BF190: 4954.989166 | BG190: 5206.517982 | BH190: 5470.7226 | BI190: 5748.238798 | BJ190: 6039.734182 | BK190: 6345.909779 | BL190: 6667.501708 | BM190: 7005.282937 | BN190: 7360.065124 | BO190: 7732.700557 | BP190: 8124.084179 | BQ190: 8535.155729 | BR190: 8966.901978 | BS190: 9420.359084 | BT190: 9896.615059 | BU190: 10396.81237 | BV190: 10922.15065 | BW190: 11473.88957 | BX190: 12053.35184 | BY190: =BY187-BY188-BY189 -> 12661.92636 | BZ190: 13301.07151 | CA190: 13972.31867 | CB190: 14677.27584 | CC190: 15417.63147 | CD190: 16195.15848 | CE190: 17011.71854 | CF190: 17869.26641 | CG190: 18769.85469 | CH190: 19715.63865 | CI190: 20708.88142 | CJ190: 21751.95931 | CK190: 22847.36755 | CL190: 23997.72618 | CM190: 25205.78632 | CN190: 26474.43673 | CO190: 27806.71064 | CP190: 29205.79307 | CQ190: 30675.02834 | CR190: 32217.92805 | CS190: 33838.17949 | CT190: 35539.65438 | CU190: 37326.41811 | CV190: 39202.73941 | CW190: 41173.10057 | CX190: 43242.20804 | CY190: 45415.0037 | CZ190: 47696.67663 | DA190: 50092.67544 | DB190: 52608.72126 | DC190: 55250.82139 | DD190: 58025.28358 | DE190: 60938.73108 | DF190: 63998.11839
C192: Project IRR | I192: =IRR(L190:DF190) -> 0.1114185462
C194: Equity Cash | I194: =IRR(L194:DF194) -> 0.1437878504 | L194: =-L103+L184 -> -770 | M194: 0 | N194: -566 | O194: 0 | P194: 0 | Q194: 0 | R194: -816 | S194: 0 | T194: 64.62192655 | U194: 121.0518374 | V194: 192.309872 | W194: 248.3855597 | X194: 319.2677279 | Y194: 367.4444539 | Z194: 452.9030129 | AA194: 530.6298225 | AB194: 540.6103832 | AC194: 602.8292152 | AD194: 668.8197899 | AE194: 764.0884579 | AF194: 826.1770708 | AG194: 891.3437331 | AH194: 959.73759 | AI194: 1031.514853 | AJ194: 1106.839123 | AK194: 1185.881733 | AL194: 1268.822098 | AM194: 1355.848085 | AN194: 1447.156401 | AO194: 1542.95299 | AP194: 1643.453455 | AQ194: 1748.883496 | AR194: =-AR103+AR184 -> 1859.479362 | AS194: 2598.709295 | AT194: 2731.296523 | AU194: 2870.589921 | AV194: 3016.926336 | AW194: 3170.659484 | AX194: 3332.160801 | AY194: 3501.820326 | AZ194: 3680.047631 | BA194: 3867.272801 | BB194: 4063.947461 | BC194: 4270.545849 | BD194: 4487.565951 | BE194: 4715.530688 | BF194: 4954.989166 | BG194: 5206.517982 | BH194: 5470.7226 | BI194: 5748.238798 | BJ194: 6039.734182 | BK194: 6345.909779 | BL194: 6667.501708 | BM194: 7005.282937 | BN194: 7360.065124 | BO194: 7732.700557 | BP194: 8124.084179 | BQ194: 8535.155729 | BR194: 8966.901978 | BS194: 9420.359084 | BT194: 9896.615059 | BU194: 10396.81237 | BV194: 10922.15065 | BW194: 11473.88957 | BX194: =-BX103+BX184 -> 12053.35184 | BY194: 12661.92636 | BZ194: 13301.07151 | CA194: 13972.31867 | CB194: 14677.27584 | CC194: 15417.63147 | CD194: 16195.15848 | CE194: 17011.71854 | CF194: 17869.26641 | CG194: 18769.85469 | CH194: 19715.63865 | CI194: 20708.88142 | CJ194: 21751.95931 | CK194: 22847.36755 | CL194: 23997.72618 | CM194: 25205.78632 | CN194: 26474.43673 | CO194: 27806.71064 | CP194: 29205.79307 | CQ194: 30675.02834 | CR194: 32217.92805 | CS194: 33838.17949 | CT194: 35539.65438 | CU194: 37326.41811 | CV194: 39202.73941 | CW194: 41173.10057 | CX194: 43242.20804 | CY194: 45415.0037 | CZ194: 47696.67663 | DA194: 50092.67544 | DB194: 52608.72126 | DC194: 55250.82139 | DD194: 58025.28358 | DE194: 60938.73108 | DF194: 63998.11839
R196: =R11 -> 1993 | S196: 1994 | T196: 1995 | U196: 1996 | V196: 1997 | W196: 1998 | X196: 1999 | Y196: 2000 | Z196: 2001 | AA196: 2002 | AB196: 2003 | AC196: 2004 | AD196: 2005 | AE196: 2006 | AF196: 2007 | AG196: 2008 | AH196: 2009 | AI196: 2010 | AJ196: 2011 | AK196: 2012 | AL196: 2013 | AM196: 2014 | AN196: 2015 | AO196: 2016 | AP196: 2017 | AQ196: 2018 | AR196: 2019 | AS196: 2020 | AT196: 2021 | AU196: 2022 | AV196: 2023 | AW196: 2024 | AX196: 2025 | AY196: 2026 | AZ196: 2027 | BA196: 2028 | BB196: 2029 | BC196: 2030 | BD196: 2031 | BE196: 2032 | BF196: 2033 | BG196: 2034 | BH196: 2035 | BI196: 2036 | BJ196: 2037 | BK196: 2038 | BL196: 2039 | BM196: 2040 | BN196: 2041 | BO196: 2042 | BP196: 2043 | BQ196: 2044 | BR196: 2045 | BS196: 2046 | BT196: 2047 | BU196: 2048 | BV196: 2049 | BW196: 2050 | BX196: 2051 | BY196: =BY11 -> 2052 | BZ196: 2053 | CA196: 2054 | CB196: 2055 | CC196: 2056 | CD196: 2057 | CE196: 2058 | CF196: 2059 | CG196: 2060 | CH196: 2061 | CI196: 2062 | CJ196: 2063 | CK196: 2064 | CL196: 2065 | CM196: 2066 | CN196: 2067 | CO196: 2068 | CP196: 2069 | CQ196: 2070 | CR196: 2071 | CS196: 2072 | CT196: 2073 | CU196: 2074 | CV196: 2075 | CW196: 2076 | CX196: 2077 | CY196: 2078 | CZ196: 2079 | DA196: 2080 | DB196: 2081 | DC196: 2082 | DD196: 2083 | DE196: 2084 | DF196: 2085
C197: CFADS | R197: =R177 -> 0 | S197: 0 | T197: 687.8428941 | U197: 744.2728049 | V197: 815.5308396 | W197: 871.6065272 | X197: 942.4886954 | Y197: 990.6654214 | Z197: 1076.12398 | AA197: 1153.85079 | AB197: 1163.831351 | AC197: 1226.050183 | AD197: 1292.040757 | AE197: 1387.309425 | AF197: 1449.398038 | AG197: 1514.564701 | AH197: 1582.958558 | AI197: 1654.73582 | AJ197: 1730.060091 | AK197: 1809.102701 | AL197: 1892.043065 | AM197: 1979.069053 | AN197: 2070.377368 | AO197: 2166.173957 | AP197: 2266.674423 | AQ197: 2372.104464 | AR197: 2482.70033 | AS197: 2598.709295 | AT197: 2731.296523 | AU197: 2870.589921 | AV197: 3016.926336 | AW197: 3170.659484 | AX197: 3332.160801 | AY197: 3501.820326 | AZ197: 3680.047631 | BA197: 3867.272801 | BB197: 4063.947461 | BC197: 4270.545849 | BD197: 4487.565951 | BE197: 4715.530688 | BF197: 4954.989166 | BG197: 5206.517982 | BH197: 5470.7226 | BI197: 5748.238798 | BJ197: 6039.734182 | BK197: 6345.909779 | BL197: 6667.501708 | BM197: 7005.282937 | BN197: 7360.065124 | BO197: 7732.700557 | BP197: 8124.084179 | BQ197: 8535.155729 | BR197: 8966.901978 | BS197: 9420.359084 | BT197: 9896.615059 | BU197: 10396.81237 | BV197: 10922.15065 | BW197: 11473.88957 | BX197: 12053.35184 | BY197: =BY177 -> 12661.92636 | BZ197: 13301.07151 | CA197: 13972.31867 | CB197: 14677.27584 | CC197: 15417.63147 | CD197: 16195.15848 | CE197: 17011.71854 | CF197: 17869.26641 | CG197: 18769.85469 | CH197: 19715.63865 | CI197: 20708.88142 | CJ197: 21751.95931 | CK197: 22847.36755 | CL197: 23997.72618 | CM197: 25205.78632 | CN197: 26474.43673 | CO197: 27806.71064 | CP197: 29205.79307 | CQ197: 30675.02834 | CR197: 32217.92805 | CS197: 33838.17949 | CT197: 35539.65438 | CU197: 37326.41811 | CV197: 39202.73941 | CW197: 41173.10057 | CX197: 43242.20804 | CY197: 45415.0037 | CZ197: 47696.67663 | DA197: 50092.67544 | DB197: 52608.72126 | DC197: 55250.82139 | DD197: 58025.28358 | DE197: 60938.73108 | DF197: 63998.11839
C198: Debt Service | R198: =R179+R180-R182+R178 -> 0 | S198: =S179+S180-S182+S178 -> 0 | T198: 623.2209675 | U198: 623.2209675 | V198: 623.2209675 | W198: 623.2209675 | X198: 623.2209675 | Y198: 623.2209675 | Z198: 623.2209675 | AA198: 623.2209675 | AB198: 623.2209675 | AC198: 623.2209675 | AD198: 623.2209675 | AE198: 623.2209675 | AF198: 623.2209675 | AG198: 623.2209675 | AH198: 623.2209675 | AI198: 623.2209675 | AJ198: 623.2209675 | AK198: 623.2209675 | AL198: 623.2209675 | AM198: 623.2209675 | AN198: 623.2209675 | AO198: 623.2209675 | AP198: 623.2209675 | AQ198: 623.2209675 | AR198: 623.2209675 | AS198: 0 | AT198: 0 | AU198: 0 | AV198: 0 | AW198: 0 | AX198: 0 | AY198: 0 | AZ198: 0 | BA198: 0 | BB198: 0 | BC198: 0 | BD198: 0 | BE198: 0 | BF198: 0 | BG198: 0 | BH198: 0 | BI198: 0 | BJ198: 0 | BK198: 0 | BL198: 0 | BM198: 0 | BN198: 0 | BO198: 0 | BP198: 0 | BQ198: 0 | BR198: 0 | BS198: 0 | BT198: 0 | BU198: 0 | BV198: 0 | BW198: 0 | BX198: 0 | BY198: 0 | BZ198: 0 | CA198: 0 | CB198: 0 | CC198: 0 | CD198: 0 | CE198: =CE179+CE180-CE182+CE178 -> 0 | CF198: 0 | CG198: 0 | CH198: 0 | CI198: 0 | CJ198: 0 | CK198: 0 | CL198: 0 | CM198: 0 | CN198: 0 | CO198: 0 | CP198: 0 | CQ198: 0 | CR198: 0 | CS198: 0 | CT198: 0 | CU198: 0 | CV198: 0 | CW198: 0 | CX198: 0 | CY198: 0 | CZ198: 0 | DA198: 0 | DB198: 0 | DC198: 0 | DD198: 0 | DE198: 0 | DF198: 0
C199: DSCR | I199: =MIN(R199:DF199) -> 1.103690232 | R199: =IF(R198,R197/R198) -> FALSE | S199: =IF(S198,S197/S198) -> FALSE | T199: 1.103690232 | U199: 1.194235823 | V199: 1.308574137 | W199: 1.398551353 | X199: 1.512286564 | Y199: 1.589589364 | Z199: 1.726713375 | AA199: 1.851431274 | AB199: 1.867445756 | AC199: 1.96728006 | AD199: 2.07316638 | AE199: 2.226031372 | AF199: 2.325656732 | AG199: 2.430221029 | AH199: 2.539963576 | AI199: 2.655135027 | AJ199: 2.77599789 | AK199: 2.902827079 | AL199: 3.035910478 | AM199: 3.175549533 | AN199: 3.322059873 | AO199: 3.475771949 | AP199: 3.637031713 | AQ199: 3.806201311 | AR199: 3.983659824 | AS199: FALSE | AT199: FALSE | AU199: FALSE | AV199: FALSE | AW199: FALSE | AX199: FALSE | AY199: FALSE | AZ199: FALSE | BA199: FALSE | BB199: FALSE | BC199: FALSE | BD199: FALSE | BE199: FALSE | BF199: FALSE | BG199: FALSE | BH199: FALSE | BI199: FALSE | BJ199: FALSE | BK199: FALSE | BL199: FALSE | BM199: FALSE | BN199: FALSE | BO199: FALSE | BP199: FALSE | BQ199: FALSE | BR199: FALSE | BS199: FALSE | BT199: FALSE | BU199: FALSE | BV199: FALSE | BW199: FALSE | BX199: FALSE | BY199: FALSE | BZ199: FALSE | CA199: FALSE | CB199: FALSE | CC199: FALSE | CD199: FALSE | CE199: =IF(CE198,CE197/CE198) -> FALSE | CF199: FALSE | CG199: FALSE | CH199: FALSE | CI199: FALSE | CJ199: FALSE | CK199: FALSE | CL199: FALSE | CM199: FALSE | CN199: FALSE | CO199: FALSE | CP199: FALSE | CQ199: FALSE | CR199: FALSE | CS199: FALSE | CT199: FALSE | CU199: FALSE | CV199: FALSE | CW199: FALSE | CX199: FALSE | CY199: FALSE | CZ199: FALSE | DA199: FALSE | DB199: FALSE | DC199: FALSE | DD199: FALSE | DE199: FALSE | DF199: FALSE
C201: PLCR | I201: =L131 -> 0.0725
C203: NPV | I203: =NPV(I201,R197:DF197) -> 25720.23524
C204: Loan | I204: =J100+J101+J102 -> 7262.757383
I205: =I203/I204 -> 3.54138709
C206: Debt/EBTDA | R206: =IF(R187,R127/R187) -> FALSE | S206: =IF(S187,S127/S187) -> FALSE | T206: 9.983699414 | U206: 8.849033361 | V206: 7.73035555 | W206: 6.964711329 | X206: 6.185602655 | Y206: 5.674549641 | Z206: 5.003882052 | AA206: 4.472390063 | AB206: 4.272075392 | AC206: 3.872817044 | AD206: 3.497012431 | AE206: 3.080460984 | AF206: 2.78202694 | AG206: 2.496145595 | AH206: 2.222100363 | AI206: 1.959213528 | AJ206: 1.706843897 | AK206: 1.464384599 | AL206: 1.231261039 | AM206: 1.006928974 | AN206: 0.7908727155 | AO206: 0.5826034451 | AP206: 0.3816576386 | AQ206: 0.187595585 | AR206: 0 | AS206: 0 | AT206: 0 | AU206: 0 | AV206: 0 | AW206: 0 | AX206: 0 | AY206: 0 | AZ206: 0 | BA206: 0 | BB206: 0 | BC206: 0 | BD206: 0 | BE206: 0 | BF206: 0 | BG206: 0 | BH206: 0 | BI206: 0 | BJ206: 0 | BK206: 0 | BL206: 0 | BM206: 0 | BN206: 0 | BO206: 0 | BP206: 0 | BQ206: 0 | BR206: 0 | BS206: 0 | BT206: 0 | BU206: 0 | BV206: 0 | BW206: 0 | BX206: 0 | BY206: 0 | BZ206: 0 | CA206: 0 | CB206: 0 | CC206: 0 | CD206: 0 | CE206: =IF(CE187,CE127/CE187) -> 0 | CF206: 0 | CG206: 0 | CH206: 0 | CI206: 0 | CJ206: 0 | CK206: 0 | CL206: 0 | CM206: 0 | CN206: 0 | CO206: 0 | CP206: 0 | CQ206: 0 | CR206: 0 | CS206: 0 | CT206: 0 | CU206: 0 | CV206: 0 | CW206: 0 | CX206: 0 | CY206: 0 | CZ206: 0 | DA206: 0 | DB206: 0 | DC206: 0 | DD206: 0 | DE206: 0 | DF206: 0

Sheet Cases
A2: Data from Cases
F3: 1995
D4: Junior Bank Debt | F4: 8000
D5: Senior Bank Debt | F5: =F6-F4 -> 333.3333333
D6: Total Debt | F6: =F4/0.96 -> 8333.333333
D8: 1987 IPO | E8: 770
D10: May 1994 Financing | F10: 10100
L11: Original | M11: Final | N11: Percent Difference
K12: Tunnels | L12: 1329 | M12: 2110 | N12: =M12/L12-1 -> 0.5876598947
D13: Junior Debt | E13: 0.96 | K13: Terminals | L13: 448 | M13: 553 | N13: 0.234375
K14: Fixed Equipment | L14: 688 | M14: 1200 | N14: 0.7441860465
D15: Suspension of Interest | E15: Sept 14 1995 | K15: Rolling Stock | L15: 245 | M15: 705 | N15: 1.87755102
K16: Subtotal | L16: =SUM(L11:L15) -> 2710 | M16: =SUM(M11:M15) -> 4568 | N16: 0.6856088561
D17: Junior Debt Trading | E17: 0.43 | F17: of Face Value | K17: Corporate and Inflation | L17: =642+469 -> 1111 | M17: =1128+1146+222+72+790 -> 3358 | N17: 2.02250225
K18: Subtotal | L18: =L16+L17 -> 3821 | M18: =M16+M17 -> 7926 | N18: 1.074326093
D19: Initial Concession | E19: 55 | F19: Years | K19: Financing Costs | L19: 500 | M19: 1500 | N19: 2
D20: 1993 | E20: 65 | K20: Total | L20: =L18+L19 -> 4321 | M20: =M18+M19 -> 9426 | N20: 1.181439482
D21: 1997 | E21: 99
D24: 1987 Construction Cost Estimate | F24: 2.7
D25: Estimated Completion | F25: 1990
D27: 1990 Construction Cost Estimate | F27: 4
D30: Toll Rate per Car Estimated in 1990 | F30: 64.5
D32: Average Realized in 1996 | F32: 34.4
D34: Minimum Paynmet of Railways | F34: 25
D36: Paymemt per Passenger | E36: 1996 | F36: 12.4
D37: Per ton of Freight | E37: =E36 -> 1996 | F37: 9
D39: Interest During Construction | F39: 615
D41: Number of Shares
E42: 1986 | F42: 26520
E43: 1987 | F43: 332391
E44: 1993 | F44: 538045
E45: 1996 | F45: 919533

Sheet EBITDA to Debt
D2: Rate | F2: 0.07
D4: Term | F4: 15
D6: Total Debt | F6: =F23*F13 -> 1000
H7: ="Ability to Pay Back Debt -- Debt Service Coverage -- with Different Terms at "&TEXT(F2,"0.00%")&" Interest Rate" -> Ability to Pay Back Debt -- Debt Service Coverage -- with Different Terms at 7.00% Interest Rate
D8: Interest | F8: =F6*F2 -> 70
J9: Debt/EBITDA
D10: Pmt | F10: =F6/F4 -> 66.66666667 | I10: =F17 -> 1.463414634 | J10: 2 | K10: =J10+2 -> 4 | L10: =K10+2 -> 6 | M10: 8 | N10: 10 | O10: 12 | P10: 14 | Q10: 16 | R10: 18 | S10: 20
H11: Term of Debt (Yrs) | I11: 50 | J11: 5.555555556 | K11: 2.777777778 | L11: 1.851851852 | M11: 1.388888889 | N11: 1.111111111 | O11: 0.9259259259 | P11: 0.7936507937 | Q11: 0.6944444444 | R11: 0.6172839506 | S11: 0.5555555556
I12: =I11-5 -> 45 | J12: 5.421686747 | K12: 2.710843373 | L12: 1.807228916 | M12: 1.355421687 | N12: 1.084337349 | O12: 0.9036144578 | P12: 0.7745266781 | Q12: 0.6777108434 | R12: 0.6024096386 | S12: 0.5421686747
D13: EBITDA | F13: 200 | I13: 40 | J13: 5.263157895 | K13: 2.631578947 | L13: 1.754385965 | M13: 1.315789474 | N13: 1.052631579 | O13: 0.8771929825 | P13: 0.7518796992 | Q13: 0.6578947368 | R13: 0.5847953216 | S13: 0.5263157895
D14: Interest | F14: =F8 -> 70 | I14: 35 | J14: 5.072463768 | K14: 2.536231884 | L14: 1.690821256 | M14: 1.268115942 | N14: 1.014492754 | O14: 0.845410628 | P14: 0.7246376812 | Q14: 0.634057971 | R14: 0.5636070853 | S14: 0.5072463768
D15: Pmt | F15: =F10 -> 66.66666667 | I15: 30 | J15: 4.838709677 | K15: 2.419354839 | L15: 1.612903226 | M15: 1.209677419 | N15: 0.9677419355 | O15: 0.8064516129 | P15: 0.6912442396 | Q15: 0.6048387097 | R15: 0.5376344086 | S15: 0.4838709677
D16: Remainder | F16: =F13-F14-F15 -> 63.33333333 | I16: 25 | J16: 4.545454545 | K16: 2.272727273 | L16: 1.515151515 | M16: 1.136363636 | N16: 0.9090909091 | O16: 0.7575757576 | P16: 0.6493506494 | Q16: 0.5681818182 | R16: 0.5050505051 | S16: 0.4545454545
D17: Coverage | F17: =F13/(F14+F15) -> 1.463414634 | I17: 20 | J17: 4.166666667 | K17: 2.083333333 | L17: 1.388888889 | M17: 1.041666667 | N17: 0.8333333333 | O17: 0.6944444444 | P17: 0.5952380952 | Q17: 0.5208333333 | R17: 0.462962963 | S17: 0.4166666667
I18: 15 | J18: 3.658536585 | K18: 1.829268293 | L18: 1.219512195 | M18: 0.9146341463 | N18: 0.7317073171 | O18: 0.6097560976 | P18: 0.5226480836 | Q18: 0.4573170732 | R18: 0.406504065 | S18: 0.3658536585
D19: Remainder | F19: =F13-F14 -> 130 | I19: 10 | J19: 2.941176471 | K19: 1.470588235 | L19: 0.9803921569 | M19: 0.7352941176 | N19: 0.5882352941 | O19: 0.4901960784 | P19: 0.4201680672 | Q19: 0.3676470588 | R19: 0.3267973856 | S19: 0.2941176471
I20: 5 | J20: 1.851851852 | K20: 0.9259259259 | L20: 0.6172839506 | M20: 0.462962963 | N20: 0.3703703704 | O20: 0.3086419753 | P20: 0.2645502646 | Q20: 0.2314814815 | R20: 0.2057613169 | S20: 0.1851851852
D23: Debt/EBITDA | F23: 5

Sheet Bozzana
C3: Misc Data
C5: IRR projected | E5: 0.18
C7: Original Assumptions | E7: 30 | F7: Million voyagers
E8: 15 | F8: Millions tons of freight
E10: 20 | F10: Trains in each direction each hour
C12: Actual | E12: 8 | F12: Million | H12: 3 | I12: Eurostar
H13: 5 | I13: Shuttle
F17: 7.3 | G17: Billion Francs for fist year
D20: Costs
D21: Expected | E21: 1.2 | F21: Billion
D22: Actual | E22: 2.3 | F22: Billion | H22: 2300000 | I22: 374000 | J22: =H22/I22 -> 6.14973262
C24: Last Prospectus in 1994
G25: Forecast | H25: Actual
D26: 1995 | E26: Shuttle Passengers | G26: 7700000 | H26: =G26*0.7 -> 5390000
D27: =D26 -> 1995 | E27: Eurostar | G27: 9200000 | H27: =G27*(1-0.7) -> 2760000
F28: Total | G28: =G26+G27 -> 16900000 | H28: =H26+H27 -> 8150000
D30: 1995 | E30: Revenues | G30: 5200000 | H30: =G30*0.45 -> 2340000
E32: GBP | G32: 525000 | H32: 300000
G34: =G30/G32 -> 9.904761905 | H34: =H30/H32 -> 7.8
G35: =H34 -> 7.8
G36: =G30/G35 -> 666666.6667

Sheet Sources and Uses of Funds
F3: 1988 | G3: =F3+1 -> 1989 | H3: 1990 | I3: 1991 | J3: 1992 | K3: 1993 | L3: 1994 | O3: =L3+1 -> 1995 | P3: =O3+1 -> 1996 | Q3: =P3+1 -> 1997 | R3: =Q3+1 -> 1998 | S3: =R3+1 -> 1999
C4: Turnover | F4: 1 | G4: 6 | H4: 5 | I4: 11 | J4: 8 | K4: 3 | L4: 31 | O4: 299 | P4: 448 | Q4: 456 | R4: 618 | S4: 627
C5: Capitalised Costs | F5: 54 | G5: 220 | H5: 506 | I5: 547 | J5: 781 | K5: 846 | L5: 716
C6: Deferred Expenses | F6: 0 | G6: 0 | H6: 0 | I6: 0 | J6: 11 | K6: 46 | L6: 51 | O6: 5 | P6: 35 | Q6: 75 | R6: 48 | S6: 27
C8: Operating Cost | F8: 82 | G8: 106 | H8: 246 | I8: 169 | J8: 177 | K8: 251 | L8: 402 | O8: 374 | P8: 379 | Q8: 341 | R8: 345 | S8: 321
C10: Depreciation | F10: 14 | G10: 54 | H10: 94 | I10: 92 | J10: 50 | K10: 47 | L10: 146 | O10: 130 | P10: 147 | Q10: 126 | R10: 137 | S10: 123
C12: Interest | F12: 41 | G12: 65 | H12: 171 | I12: 297 | J12: 575 | K12: 599 | L12: 637 | O12: 724 | P12: 642 | Q12: 675 | R12: 399 | S12: 304
R14: 279 | S14: 296
R16: =R12+R14 -> 678 | S16: =S12+S14 -> 600
C18: Issue of Capital | F18: 0 | G18: 0 | H18: 573 | I18: 3 | J18: 3 | K18: 10 | L18: 909 | O18: 56 | P18: 0 | Q18: 0 | R18: 0 | S18: 150
C20: Bank Loans | F20: 175 | G20: 887 | H20: 1278 | I20: 1140 | J20: 1604 | K20: 1672 | L20: 795 | O20: 345 | P20: -1 | Q20: 0 | R20: -8 | S20: 178
C22: Capital Expenditures | F22: 624 | G22: 1011 | H22: 1331 | I22: 1051 | J22: 1238 | K22: 843 | L22: 453 | O22: 66 | P22: 39 | Q22: 28 | R22: 57 | S22: 58
C24: Operating Cash Flow | F24: 31 | G24: 44 | H24: 165 | I24: -139 | J24: -108 | K24: -165 | L24: -333 | O24: 101 | P24: 115 | Q24: 201 | R24: 356 | S24: 315
C26: Interest | F26: 31 | G26: 38 | H26: 181 | I26: 328 | J26: 555 | K26: 670 | L26: 657 | O26: 657 | P26: 35 | Q26: 135 | R26: 210 | S26: 252
C28: Cash | F28: -387 | G28: -118 | H28: 504 | I28: -375 | J28: -294 | K28: 4 | L28: 261 | O28: -221 | P28: 40 | Q28: 33 | R28: 81 | S28: -23
B30: Eurotunnel Uses and Sources of Funds ₤ Millions
U31: Total
E32: 1987 | F32: =F3 -> 1988 | G32: 1989 | H32: 1990 | I32: 1991 | J32: 1992 | K32: 1993 | L32: 1994 | M32: Total | N32: Percent
B33: Uses | O33: =O3 -> 1995 | P33: =P3 -> 1996 | Q33: =Q3 -> 1997 | R33: =R3 -> 1998 | S33: =S3 -> 1999
C34: =C22 -> Capital Expenditures | E34: =1175-F34 -> 551 | F34: =F22 -> 624 | G34: =G22 -> 1011 | H34: 1331 | I34: 1051 | J34: 1238 | K34: 843 | L34: 453 | M34: =SUM(E34:L34) -> 7102 | N34: =M34/$M$37 -> 0.6527573529 | O34: 66 | P34: 39 | Q34: 28 | R34: 57 | S34: 58 | U34: =SUM(E34:S34) -> 14452.65276 | V34: =SUM(E34:L34) -> 7102
C35: Capitalised Costs | F35: =F5 -> 54 | G35: =G5 -> 220 | H35: 506 | I35: 547 | J35: 781 | K35: 846 | L35: 716 | M35: =SUM(E35:L35) -> 3670 | N35: =M35/$M$37 -> 0.3373161765 | O35: 0 | P35: 0 | Q35: 0 | R35: 0 | S35: 0 | U35: =SUM(E35:S35) -> 7340.337316 | V35: =SUM(E35:L35) -> 3670
C36: Deferred Expenses | F36: =F6 -> 0 | G36: =G6 -> 0 | H36: 0 | I36: 0 | J36: 11 | K36: 46 | L36: 51 | M36: =SUM(E36:L36) -> 108 | N36: =M36/$M$37 -> 0.009926470588 | O36: 5 | P36: 35 | Q36: 75 | R36: 48 | S36: 27 | U36: =SUM(E36:S36) -> 406.0099265 | V36: =SUM(E36:L36) -> 108
D37: Total | E37: =SUM(E34:E36) -> 551 | F37: =SUM(F34:F36) -> 678 | G37: =SUM(G34:G36) -> 1231 | H37: 1837 | I37: 1598 | J37: 2030 | K37: 1735 | L37: 1220 | M37: =SUM(E37:L37) -> 10880 | N37: =M37/$M$37 -> 1 | O37: 71 | P37: 74 | Q37: 103 | R37: 105 | S37: 85 | U37: 22199 | V37: =SUM(E37:L37) -> 10880
B39: Sources
C40: Bank Loans | E40: 2 | F40: =F20 -> 175 | G40: =G20 -> 887 | H40: 1278 | I40: 1140 | J40: 1604 | K40: 1672 | L40: 795 | M40: =SUM(E40:L40) -> 7553 | N40: =M40/($M$40+$M$41) -> 0.7764185855 | O40: 345 | P40: -1 | Q40: 0 | R40: -8 | S40: 178 | U40: =SUM(E40:S40) -> 15620.77642 | V40: =SUM(E40:L40) -> 7553
C41: Equity Issue | E41: 770 | F41: =F18 -> 0 | G41: =G18 -> 0 | H41: 573 | I41: 3 | J41: 3 | K41: 10 | L41: 816 | M41: =SUM(E41:L41) -> 2175 | N41: =M41/($M$40+$M$41) -> 0.2235814145 | O41: 56 | P41: 0 | Q41: 0 | R41: 0 | S41: 150 | U41: =SUM(E41:S41) -> 4556.223581 | V41: =SUM(E41:L41) -> 2175
C42: Turnover | E42: =E4 -> 0 | F42: =F4 -> 1 | G42: 6 | H42: 5 | I42: 11 | J42: 8 | K42: 3 | L42: 31 | M42: =SUM(E42:L42) -> 65 | O42: 299 | P42: 448 | Q42: 456 | R42: 618 | S42: 627 | U42: =SUM(E42:S42) -> 2578 | V42: =SUM(E42:L42) -> 65
C43: Other | E43: =E37-E40-E41-E42 -> -221 | F43: =F37-F40-F41-F42 -> 502 | G43: 338 | H43: -19 | I43: 444 | J43: 415 | K43: 50 | L43: -422 | M43: =SUM(E43:L43) -> 1087 | O43: -629 | U43: =SUM(U40:U42) -> 22755 | V43: =SUM(E43:L43) -> 1087
D44: Total | E44: =SUM(E40:E43) -> 551 | F44: 678 | G44: 1231 | H44: 1837 | I44: 1598 | J44: 2030 | K44: 1735 | L44: 1220 | M44: =SUM(E44:L44) -> 10880 | N44: =SUM(N40:N43) -> 1
U45: =U43-U37 -> 556 | V45: =SUM(V40:V43) -> 10880
M46: =M40+M43 -> 8640
D48: S-Curve | E48: =E34/$M$34 -> 0.07758377922 | F48: 0.08786257392 | G48: 0.1423542664 | H48: 0.1874119966 | I48: 0.1479864827 | J48: 0.1743170938 | K48: 0.118698958 | L48: 0.06378484934 | M48: 1
E49: =E48 -> 0.07758377922 | F49: =E49+F48 -> 0.1654463531 | G49: 0.3078006195 | H49: 0.4952126162 | I49: 0.6431990988 | J49: 0.8175161926 | K49: 0.9362151507 | L49: 1
E51: 0.1 | F51: =0.85/4 -> 0.2125 | G51: =0.85/4 -> 0.2125 | H51: =0.85/4 -> 0.2125 | I51: =0.85/4 -> 0.2125 | J51: 0.05 | M51: =SUM(E51:J51) -> 1

Sheet Revenue Forecast and Actual
B5: Eurotunnel Prospectus Revenue Forecats (GBP Millions)
C6: Prospectus Date
C7: November | D7: November | E7: May | F7: May | H7: Nov 87 vs | I7: Dif as % of
C8: 1987 | D8: 1990 | E8: 1994 | F8: 1997 | G8: Actual | H8: Actual | I8: 87 Proj
B9: 1993 | C9: 488 | D9: 393 | E9: 0 | F9: 0 | G9: 0
B10: 1994 | C10: 762 | D10: 764 | E10: 137 | F10: 0 | G10: 82
B11: 1995 | C11: 835 | D11: 833 | E11: 525 | F11: 0 | G11: 304 | H11: =C11-G11 -> 531 | I11: =H11/C11 -> 0.6359281437
B12: 1996 | C12: 908 | D12: 904 | E12: 737 | F12: 0 | G12: 483 | H12: =C12-G12 -> 425 | I12: =H12/C12 -> 0.468061674
B13: 1997 | C13: 986 | D13: 980 | E13: 829 | F13: 567 | G13: 531 | H13: =C13-G13 -> 455 | I13: =H13/C13 -> 0.4614604462
B14: 1998 | C14: 1072 | D14: 1070 | E14: 901 | F14: 649 | G14: 666 | H14: =C14-G14 -> 406 | I14: =H14/C14 -> 0.3787313433
B15: 1999 | C15: 1158 | D15: 1165 | E15: 993 | F15: 654 | G15: 654 | H15: =C15-G15 -> 504 | I15: =H15/C15 -> 0.4352331606
B24: Eurotunnel Shuttle Services | G24: Eurostar | H24: Rail Freight (SNCF/EWS)
B25: Trucks | C25: Estimated tonnes of road freight carried (in million)2 | D25: Cars | E25: Coaches | F25: Estimated passenger number | G25: Passengers | H25: Tonnes of rail freight
F26: (in million)3 | H26: (in million)
A27: 2001 | B27: 1197771 | C27: 15.6 | D27: 2529757 | E27: 75402 | F27: 9.3 | G27: 6947135 | H27: 2.4
A28: 2002 | B28: 1231100 | C28: 16 | D28: 2335625 | E28: 71911 | F28: 8.7 | G28: 6,602 ,817 | H28: 1.5
A29: 2003 | B29: 1,284 ,875 | C29: 16.7 | D29: 2278999 | E29: 71942 | F29: 8.5 | G29: 6,314 ,795 | H29: 1.7
A30: 2004 | B30: 1281207 | C30: 16.6 | D30: 2101323 | E30: 63467 | F30: 7.8 | G30: 7, 276 ,675 | H30: 1.9
A31: 2005 | B31: 1308786 | C31: 17 | D31: 2047166 | E31: 77267 | F31: 8.2 | G31: 7, 454 ,497 | H31: 1.6
A32: 2006 | B32: 1296269 | C32: 16,9 | D32: 2021543 | E32: 67201 | F32: 7,8 | G32: 7858337 | H32: 1,6
B37: Cars | D37: 2529757 | E37: 2335625 | F37: 2278999 | G37: 2101323 | H37: 2047166 | I37: 2021543
B38: Trucks | D38: 1197771 | E38: 1231100 | F38: 1,284 ,875 | G38: 1281207 | H38: 1308786 | I38: 1296269
D39: 6947135 | E39: 6,602 ,817 | F39: 6,314 ,795 | G39: 7, 276 ,675 | H39: 7454497 | I39: 7858337

Sheet Source of Historic Data
O22: 1158 | P22: 654 | Q22: =O22-P22 -> 504
O33: 508 | P33: =202 -> 202 | Q33: =O33-P33 -> 306
N39: -333
N40: 101
N41: 115
N42: 201
N43: 356
N44: 315 | O44: 935 | P44: 315 | Q44: =O44-P44 -> 620
B59: Bank Debt | C59: EIB | E59: Equity Financing
B60: 5000 | E60: 46
B61: 1800 | C61: 300 | E61: 206
B62: 693 | E62: 770
A63: 1999 | C63: 200 | E63: 566 | H63: Total Debt | J63: =B64 -> 7493
B64: =SUM(B60:B63) -> 7493 | E64: 816 | H64: Total Equity | J64: =E65 -> 2404
E65: =SUM(E59:E64) -> 2404 | H65: Total | J65: =J63+J64 -> 9897
H67: Debt to Capital | J67: =J63/J65 -> 0.7570981105
B69: 1987-11-01
B70: £ 5 billion raised through the world’s largest private-sector loan syndication (over 220 banks) and letter of credit facility.
B72: 1990-10-01
B73: £ 1.8 billion additional bank credit facilities agreed.
B75: 1994-05-01
B76: £ 693 million of Senior Debt committed.
B78: 2002-07-01
B79: £ 740 million in new Junior Debt financing raised to refinance Tier 1A debt and to finance a tender offer for subordinated debt (Resettable Advances and Stabilisation Advances).
B81: 2005-09-01
B83: Eurotunnel Board decides to convert the Resettable and Stabilisation Advances into bonds.
B85: 2006-03-01
B87: Eurotunnel Board decides to convert the Resettable and Stabilisation Advances into bonds.
B92: 1986-09-01
B93: ‘Equity One’ - Founding shareholders in the Channel Tunnel Group/France Manche (CTG/FM) subscribe initial equity of £46 million.
B95: 1986-10-01
B96: ‘Equity Two’ – a private institutional placing raises £206 million from large international investors.
B98: 1987-11-01
B99: ‘Equity Three’ – public floatation of the Group raises £770 million from private investors in Britain, France and several other countries.
B101: 1990-11-01
B102: New issue of capital (£566 million)
B104: 1994-05-01
B105: New issue of capital (£816 million)
B112: ¹ Nominal value combined @ £1= €1.459
B113: ² Excluding hedging charges and effective rate adjustments, combined @ £1 = €1.465
K114: =20/366 -> 0.05464480874
K115: =51/740 -> 0.06891891892
B116: ¹ Nominal value combined @ £1 = €1.459 . | K116: =147/3212 -> 0.04576587796
B117: ² Based on current interest rate forecasts. | K117: =16/464 -> 0.03448275862

Sheet Historic IS and BS
O25: =O26-O28 -> 504
O26: 1158
I28: =I32+I34 -> 49 | J28: 82 | K28: 304 | L28: 483 | M28: 531 | N28: 666 | O28: 654
D31: 1988 | E31: =D31+1 -> 1989 | F31: =E31+1 -> 1990 | G31: 1991 | H31: 1992 | I31: 1993 | J31: 1994 | K31: 1995 | L31: 1996 | M31: 1997 | N31: 1998 | O31: 1999
B32: Revenue | D32: 1 | E32: 6 | F32: 5 | G32: 11 | H32: 8 | I32: 3 | J32: 31 | K32: 299 | L32: 448 | M32: 456 | N32: 618 | O32: 627
B33: Capitalized | D33: 54 | E33: 220 | F33: 506 | G33: 547 | H33: 781 | I33: 846 | J33: 716 | W33: =SUM(D33:J33) -> 3670
B34: Deferred Expenses | H34: 11 | I34: 46 | J34: 51 | K34: 5 | L34: 35 | M34: 75 | N34: 48 | O34: 27
B35: Operating Costs | D35: 82 | E35: 106 | F35: 246 | G35: 169 | H35: 177 | I35: 251 | J35: 402 | K35: 374 | L35: 379 | M35: 341 | N35: 345 | O35: 321 | W35: =SUM(D35:J35) -> 1433 | X35: =W35+W33 -> 5103
B36: Depreciation | D36: 14 | E36: 54 | F36: 94 | G36: 92 | H36: 50 | I36: 47 | J36: 146 | K36: 130 | L36: 147 | M36: 126 | N36: 137 | O36: 123
B37: Interest | D37: -41 | E37: 65 | F37: 171 | G37: 297 | H37: 575 | I37: 599 | J37: 637 | K37: 724 | L37: 642 | M37: 675 | N37: 399 | O37: 304 | W37: =SUM(E37:J37) -> 2344
B39: EBITDA | D39: =D32-D35 -> -81 | E39: -100 | F39: -241 | G39: -158 | H39: -169 | I39: -248 | J39: -371 | K39: -75 | L39: 69 | M39: 115 | N39: 273 | O39: 306
D64: 1988 | E64: =D64+1 -> 1989 | F64: =E64+1 -> 1990 | G64: 1991 | H64: 1992 | I64: 1993 | J64: 1994 | K64: 1995 | L64: 1996 | M64: 1997 | N64: 1998 | O64: 1999
B65: Equity Issue | D65: 0 | E65: 0 | F65: 573 | G65: 3 | H65: 3 | I65: 10 | J65: 909 | K65: 56 | L65: 0 | M65: 0 | N65: 0 | O65: 0 | W65: =SUM(D65:O65) -> 1554
B66: Loans | D66: 175 | E66: 887 | F66: 1278 | G66: 1140 | H66: 1604 | I66: 1672 | J66: 795 | K66: 345 | L66: 0 | M66: 0 | N66: 0 | O66: 0 | W66: =SUM(D66:O66) -> 7896 | X66: =W66+W65 -> 9450
B68: Cap Exp | D68: 624 | E68: 1011 | F68: 1331 | G68: 1051 | H68: 1238 | I68: 843 | J68: 453 | K68: 66 | L68: 39 | M68: 28 | N68: 57 | O68: 58 | W68: =SUM(D68:O68) -> 6799
B69: Operating CF | D69: 31 | E69: 44 | F69: 165 | G69: -139 | H69: -108 | I69: -165 | J69: -333 | K69: 101 | L69: 115 | M69: 201 | N69: 356 | O69: 315 | W69: =SUM(D69:J69) -> -505 | X69: =X66-W69 -> 9955 | Y69: 135
Y70: =Y69/X69 -> 0.01356102461
B71: Interest | D71: -31 | E71: 38 | F71: 181 | G71: 328 | H71: 555 | I71: 670 | J71: 657 | K71: 35 | L71: 135 | M71: 210 | N71: 252 | Y71: =1/Y70 -> 73.74074074
D96: 1988 | E96: =D96+1 -> 1989 | F96: =E96+1 -> 1990 | G96: 1991 | H96: 1992 | I96: 1993 | J96: 1994 | K96: 1995 | L96: 1996 | M96: 1997 | N96: 1998 | O96: 1999 | P96: =O96+1 -> 2000 | Q96: 2001 | R96: 2002 | S96: 2003 | T96: 2004 | U96: 2005 | V96: 2006 | W96: 2007
B97: Fixed Assets | D97: 955 | E97: 1953 | F97: 3399 | G97: 4878 | H97: 6757 | I97: 8453 | J97: 9461 | K97: 9400 | L97: 9284 | M97: 9191 | N97: 9108 | O97: 9049 | P97: 9001 | Q97: 8964 | R97: 8832 | S97: 8829.9 | T97: 7424.8
B98: Current Assets | P98: 267 | Q98: 326 | R98: 946 | S98: 946 | T98: 842
B100: Loans | D100: 177 | E100: 1086 | F100: 2396 | G100: 3559 | H100: 5512 | I100: 7072 | J100: 8022 | K100: 8899 | L100: 8799 | M100: 8884 | N100: 8130 | O100: 6960 | P100: 7228 | Q100: 7297 | R100: 7308 | S100: 7307 | T100: 7098
B101: Equity | D101: 998 | E101: 997 | F101: 1587 | G101: 1556 | H101: 1241 | I101: 1367 | J101: 1740 | K101: 466 | L101: 494 | M101: 336 | N101: 1062 | O101: 2134 | P101: 1998 | Q101: 1954 | R101: 2419 | S101: 2419 | T101: 1099
B104: Cap Exp | D104: =D97 -> 955 | E104: =E97-D97 -> 998 | F104: 1446 | G104: 1479 | H104: 1879 | I104: 1696 | J104: 1008 | L104: =SUM(D104:J104) -> 9461
B106: Cap + IDC | D106: =D68+D71 -> 593 | E106: 1049 | F106: 1512 | G106: 1379 | H106: 1793 | I106: 1513 | J106: 1110
B108: Interest | D108: =D37 -> -41 | E108: 65 | F108: 171 | G108: 297 | H108: 575 | I108: 599 | J108: 637
B110: Rate | D110: =D108/D100 -> -0.2316384181 | E110: 0.05985267035 | F110: 0.07136894825 | G110: 0.08345040742 | H110: 0.104317852 | I110: 0.08470022624 | J110: 0.07940663176
D113: =D104/$L$104 -> 0.1009407039 | E113: 0.105485678 | F113: 0.1528379664 | G113: 0.1563259698 | H113: 0.1986047986 | I113: 0.1792622344 | J113: 0.1065426488
F115: =SUM(D113:F113) -> 0.3592643484
D117: =D97-C97 -> 955 | E117: 998 | F117: 1446 | G117: 1479 | H117: 1879 | I117: 1696 | J117: 1008

Sheet 2000 to 2005
E2: 2335 | F2: 2278 | G2: 2101
E3: 1231 | F3: 1284 | G3: 1281
E4: 6602 | F4: 6314 | G4: 7277
B6: EUROTUNNEL: SALES VOLUMES
C7: Year 2000 | D7: Year 2001 | E7: Year 2002 | F7: Year 2003 | G7: Year 2004 | H7: Year 2005 (Forecast)
B8: Cars | C8: 2 784 493 | D8: 2 529 757 | E8: 2 335 625 | F8: 2 278 999 | G8: 2 101 323 | H8: 2 143 350
B9: Coaches | C9: 79 460 | D9: 75 402 | E9: 71 911 | F9: 71 942 | G9: 63 467 | H9: 69 814
B10: Trucks | C10: 1 133 146 | D10: 1 197 771 | E10: 1 231 100 | F10: 1 284 875 | G10: 1 281 207 | H10: 1 319 643
B11: Eurostar (passengers) | C11: 7 130 417 | D11: 6 947 135 | E11: 6 602 817 | F11: 6 314 795 | G11: 7 276 675 | H11: 7 640 509
B12: Railfreight (tonnes) | C12: 2 947 388 | D12: 2 447 432 | E12: 1 463 580 | F12: 1 743 686 | G12: 1 889 175 | H12: 1 700 258
B16: BOOKYEAR | C16: TURNOVER | D16: EBIDTA | E16: EBIT | F16: INTEREST
B17: 2000 | C17: 977 130 000 | D17: 526 873 000 | E17: 367 689 000 | F17: 553 230 000
B18: 2001 | C18: 919 817 000 | D18: 487 047 000 | E18: 326 682 000 | F18: 555 169 000
B19: 2002 | C19: 914 143 000 | D19: 492 859 000 | E19: 325 824 000 | F19: 498 627 000
B20: 2003 | C20: 837 960 000 | D20: 421 828 000 | E20: 248 424 000 | F20: 515 868 000
B21: 2004 | C21: 813 883 000 | D21: 430 346 000 | E21: 255 588 000 | F21: 483 907 000
B22: 2005 (FORECAST) | C22: 830 160 660 | D22: 488 952 920 | E22: 320 699 760 | F22: 470 900 000
I25: -333000
I26: 101000
I27: 115000
I28: 201000
I29: 356000
I30: 315000
B31: =B17 -> 2000 | D31: =D17 -> 526 873 000 | E31: =F17 -> 553 230 000 | F31: 8899000 | G31: 526873 | H31: =F31/G31 -> 16.89021833 | I31: 553230
B32: =B18 -> 2001 | D32: =D18 -> 487 047 000 | E32: =F18 -> 555 169 000 | F32: 8899000 | G32: 487047 | H32: =F32/G32 -> 18.27133726 | I32: 555169
B33: =B19 -> 2002 | D33: =D19 -> 492 859 000 | E33: =F19 -> 498 627 000 | F33: 8899000 | G33: 492859 | H33: =F33/G33 -> 18.05587399 | I33: 489627
B34: =B20 -> 2003 | D34: =D20 -> 421 828 000 | E34: =F20 -> 515 868 000 | F34: 8899000 | G34: 421828 | H34: =F34/G34 -> 21.09627621 | I34: 515868
B35: =B21 -> 2004 | D35: =D21 -> 430 346 000 | E35: =F21 -> 483 907 000 | F35: 8899000 | G35: 430346 | H35: =F35/G35 -> 20.67870969 | I35: 483907
C39: 2006 | D39: 2007 | E39: 2008 | F39: 2009
B40: Revenue Business line Operations Shuttle Services | C40: 434 983 000 | D40: 443 683 000 | E40: 452 556 000 | F40: 461 607 120
B41: Revenue Business line Sale of Use of Track High Speed Rail Services Passenger Transport
C42: 228 221 966 | D42: 306 919 260 (2) | E42: 316 126 657 | F42: 325 610 450
B43: Revenue Business line Sale Use of Track Rail Service Goods Transport | C43: 75 000 000 | D43: 25 000 000 (3) | E43: 25 000 000 | F43: 50 000 000 (4)
B44: Revenue Non Core Business Activities | C44: 30 000 000 | D44: 30 000 000 | E44: 30 000 000 | F44: 30 000 000
B45: Financial Income | C45: 50 000 000 | D45: 50 000 000 | E45: 50 000 000 | F45: 50 000 000
B46: Available Cash from Sales and Financial Income | C46: 818 204 966 | D46: 855 602 260 | E46: 873 000 000 | F46: 917 217 570
B47: Costs of Operations inclusive Interest Payments on Loan Capital (5) | C47: 1 033 163 010 | D47: 1033 163 010 | E47: 1033 163 010 | F47: 1033163010
B48: Necessary Refinancing of Debt | C48: 5 800 000 | D48: 52 400 000 | E48: 99 200 000 | F48: 231 100 100
B49: Total Financing needs | C49: 220 758 044 | D49: 229 960 750 | E49: 259 363 010 | F49: 347 055 540
C54: 434983000 | D54: 443683000 | E54: 452556000 | F54: 461607120
C55: 228221966 | D55: 306919260 | E55: 316126657 | F55: 325610450
C56: 75000000 | D56: 25000000 | E56: 25000000 | F56: 50000000
C57: 30000000 | D57: 30000000 | E57: 30000000 | F57: 30000000
C59: =SUM(C54:C57) -> 768204966 | D59: =SUM(D54:D57) -> 805602260 | E59: =SUM(E54:E57) -> 823682657 | F59: =SUM(F54:F57) -> 867217570

Sheet Revenue Forecasts
U7: 10 | V7: 0.07 | W7: 9000 | X7: =PMT(V7,U7,,-W7) -> 651.3975245
W9: =V7*W7 -> 630
Q17: 1995 | R17: =Q17+1 -> 1996 | S17: =R17+1 -> 1997 | T17: =S17+1 -> 1998 | U17: =T17+1 -> 1999
Q18: 299 | R18: 448 | S18: 456 | T18: 618 | U18: 627
O20: 1993 | P20: =O20+1 -> 1994 | Q20: 1995 | R20: 1996 | S20: 1997 | T20: 1998 | U20: 1999 | V20: 2000 | W20: 2001 | X20: 2002 | Y20: 2003 | Z20: 2004 | AA20: 2005 | AB20: 2006 | AC20: 2007 | AD20: 2008 | AE20: 2009
N21: 1987 Forecast | O21: 488 | P21: 790 | Q21: 820 | R21: 900 | S21: 1000 | T21: 1080 | U21: 1180 | V21: 1250 | W21: 1370 | X21: 1480 | Y21: 1500 | Z21: =Y21*1.06 -> 1590 | AA21: =Z21*1.06 -> 1685.4 | AB21: =AA21*1.08 -> 1820.232
Q22: =Q21/P21-1 -> 0.03797468354 | R22: 0.09756097561 | S22: 0.1111111111 | T22: 0.08 | U22: 0.09259259259 | V22: 0.0593220339 | W22: 0.096 | X22: 0.0802919708 | Y22: 0.01351351351
N24: Actual | O24: 0 | P24: 5 | Q24: 205 | R24: 400 | S24: 550 | T24: 630 | U24: 620 | V24: 610 | W24: 600 | X24: 598 | Y24: 590
N26: Actual | O26: 0 | P26: 82 | Q26: 304 | R26: 483 | S26: 531 | T26: 666 | U26: 654
N28: 1987 Forecast | O28: 488 | P28: 762 | Q28: 835 | R28: 908 | S28: 986 | T28: 1072 | U28: 1158
O30: =O20 -> 1993 | P30: =P20 -> 1994 | Q30: =Q20 -> 1995 | R30: =R20 -> 1996 | S30: 1997 | T30: 1998 | U30: 1999 | V30: 2000 | W30: 2001 | X30: 2002 | Y30: 2003 | Z30: 2004 | AA30: 2005 | AB30: 2006 | AC30: 2007 | AD30: 2008 | AE30: 2009
N31: Revenues - Annual Reports | Q31: =Q26 -> 304 | R31: =R26 -> 483 | S31: 509 | T31: 641 | U31: 539 | V31: 599 | W31: 564 | X31: 581 | Y31: 584 | Z31: 538 | AA31: 541 | AB31: 568 | AC31: 526 | AD31: 537 | AE31: 555
N32: Projected | O32: =O21 -> 488 | P32: =P21 -> 790 | Q32: =Q21 -> 820 | R32: =R21 -> 900 | S32: 1000 | T32: 1080 | U32: 1180 | V32: 1250 | W32: 1370 | X32: 1480 | Y32: 1500 | Z32: 1590 | AA32: 1685.4 | AB32: 1820.232
R34: =R20 -> 1996 | S34: 1997 | T34: 1998 | U34: 1999 | V34: 2000 | W34: 2001 | X34: 2002 | Y34: 2003 | Z34: 2004 | AA34: 2005 | AB34: 2006
N35: Operating Costs | S35: =S39+S38-S37 -> 233 | T35: =T39+T38-T37 -> 201 | U35: 212 | V35: 186.6 | W35: 138.6 | X35: 129 | Y35: 125 | Z35: 146 | AA35: 126 | AB35: =AB36-AB37 -> 118
N36: Total | S36: =S37+S35 -> 353 | T36: =T37+T35 -> 321 | U36: =U37+U35 -> 332 | V36: 392 | W36: 381 | X36: 386 | Y36: 414 | AB36: =150+83 -> 233
N37: Depreciation | S37: 120 | T37: 120 | U37: 120 | V37: 115.4 | W37: 115.4 | X37: 119 | Y37: 124 | Z37: 120 | AA37: 114 | AB37: 115
N38: Staff | S38: 88 | T38: 86 | U38: 92 | V38: 95 | W38: 95 | X38: 102 | Y38: 105 | Z38: 104 | AA38: 83 | AB38: 98
N39: Other Operating Expenses | S39: 265 | T39: 235 | U39: 240 | V39: 207 | W39: 159 | X39: 146 | Y39: 144 | Z39: 162 | AA39: 157 | AB39: =150+115 -> 265
N40: Cash Operating Expense | S40: =S38+S39-S37 -> 233 | T40: 201 | U40: 212 | V40: 186.6 | W40: 138.6 | X40: 129 | Y40: 125 | Z40: 146 | AA40: 126 | AB40: 248
N42: Operating Profit (EBIT) | S42: 51 | T42: 174 | U42: 203 | V42: 208 | W42: 188 | X42: =X31-X35-X37 -> 333 | Y42: =Y31-Y35-Y37 -> 335 | Z42: =Z31-Z35-Z37 -> 272 | AA42: =AA31-AA35-AA37 -> 301 | AB42: =AB31-AB35-AB37 -> 335
S43: =S31-S37-S35 -> 156 | T43: 320 | U43: 207 | V43: 297 | W43: 310 | X43: =X31-X37-X35 -> 333 | Y43: 335 | Z43: 272 | AA43: 301 | AB43: 335
S45: =S30 -> 1997 | T45: 1998 | U45: 1999 | V45: 2000 | W45: 2001 | X45: 2002 | Y45: 2003 | Z45: 2004 | AA45: 2005 | AB45: 2006
R46: EBITDA | S46: =S37+S43 -> 276 | T46: =T37+T43 -> 440 | U46: 327 | V46: 412.4 | W46: 425.4 | X46: 452 | Y46: 459 | Z46: 392 | AA46: 415 | AB46: 450
R47: Debt | S47: 8333 | T47: 8333 | U47: 8333 | V47: 8333 | W47: 8333 | X47: 8333 | Y47: 8333 | Z47: 8333 | AA47: 8333 | AB47: 8333
R48: Debt/EBITDA | S48: =S47/S46 -> 30.19202899 | T48: 18.93863636 | U48: 25.48318043 | V48: 20.20611057 | W48: 19.58862247 | X48: 18.43584071 | Y48: 18.1546841 | Z48: 21.25765306 | AA48: 20.07951807 | AB48: 18.51777778
S52: 1997 | T52: =S52+1 -> 1998 | U52: 1999 | V52: 2000 | W52: 2001 | X52: 2002 | Y52: 2003 | Z52: 2004 | AA52: 2005 | AB52: 2006
R53: Truck Traffic | S53: 255 | T53: 705 | U53: 839 | V53: 1133 | W53: 1197 | X53: 1231 | Y53: 1284 | Z53: 1281 | AA53: 1308.786 | AB53: 1308.786
R54: Car Traffic | S54: 2139 | T54: 3351 | U54: 3260 | V54: 2784 | W54: 2530 | X54: 2335 | Y54: 2278 | Z54: 2101 | AA54: 2047 | AB54: 2021
R55: Eurostar | S55: 6004 | T55: 6308 | U55: 6593 | V55: 7130 | W55: 6947 | X55: 6602 | Y55: 6314 | Z55: 7277 | AA55: 7454.497 | AB55: 7858.337
R56: Per Passenger | S56: 12.4
S57: =S55*S56 -> 74449.6
S60: 2.52 | T60: =S60 -> 2.52 | U60: =T60 -> 2.52 | V60: 2.52 | W60: 2.52 | X60: 2.52 | Y60: 2.52 | Z60: 2.52 | AA60: 2.52 | AB60: 2.52
R61: Car Traffic | S61: =S60*S54 -> 5390.28 | T61: =T60*T54 -> 8444.52 | U61: 8215.2 | V61: 7015.68 | W61: 6375.6 | X61: 5884.2 | Y61: 5740.56 | Z61: 5294.52 | AA61: 5158.44 | AB61: 5092.92
R62: Eurostar | S62: =S55 -> 6004 | T62: =T55 -> 6308 | U62: 6593 | V62: 7130 | W62: 6947 | X62: 6602 | Y62: 6314 | Z62: 7277 | AA62: 7454.497 | AB62: 7858.337
P64: =P20 -> 1994 | Q64: =Q20 -> 1995 | R64: 1996 | S64: 1997 | T64: 1998 | U64: 1999 | V64: 2000 | W64: 2001 | X64: 2002 | Y64: 2003 | Z64: 2004 | AA64: 2005 | AB64: 2006
O65: Actual | S65: =S61+S62 -> 11394.28 | T65: 14752.52 | U65: 14808.2 | V65: 14145.68 | W65: 13322.6 | X65: 12486.2 | Y65: 12054.56 | Z65: 12571.52 | AA65: 12612.937 | AB65: 12951.257
O66: Projected | P66: 30000 | Q66: =P66*1.03 -> 30900 | R66: =Q66*1.03 -> 31827 | S66: 32781.81 | T66: 33765.2643 | U66: 34778.22223 | V66: 35821.5689 | W66: 36896.21596 | X66: 38003.10244 | Y66: 39143.19551 | Z66: 40317.49138 | AA66: 41527.01612 | AB66: 42772.82661
V73: Eurotunnel Prospectus Revenue Forecats (GBP Millions)
W74: Prospectus Date
W75: November | X75: November | Y75: May | Z75: May | AB75: Nov 87 vs | AC75: Dif as % of
W76: 1987 | X76: 1990 | Y76: 1994 | Z76: 1997 | AA76: Actual | AB76: Actual | AC76: 87 Proj
V77: 1993 | W77: 488 | X77: 393 | Y77: 0 | Z77: 0 | AA77: 0
V78: 1994 | W78: 762 | X78: 764 | Y78: 137 | Z78: 0 | AA78: 82
V79: 1995 | W79: 835 | X79: 833 | Y79: 525 | Z79: 0 | AA79: 304 | AB79: =W79-AA79 -> 531 | AC79: =AB79/W79 -> 0.6359281437
V80: 1996 | W80: 908 | X80: 904 | Y80: 737 | Z80: 0 | AA80: 483 | AB80: =W80-AA80 -> 425 | AC80: =AB80/W80 -> 0.468061674
V81: 1997 | W81: 986 | X81: 980 | Y81: 829 | Z81: 567 | AA81: 531 | AB81: =W81-AA81 -> 455 | AC81: =AB81/W81 -> 0.4614604462
V82: 1998 | W82: 1072 | X82: 1070 | Y82: 901 | Z82: 649 | AA82: 666 | AB82: =W82-AA82 -> 406 | AC82: =AB82/W82 -> 0.3787313433
V83: 1999 | W83: 1158 | X83: 1165 | Y83: 993 | Z83: 654 | AA83: 654 | AB83: =W83-AA83 -> 504 | AC83: =AB83/W83 -> 0.4352331606

Sheet Share Price

Sheet Sheet3
B5: Eurotunnel Prospectus Revenue Forecats (GBP Millions)
C6: Prospectus Date
C7: November | D7: November | E7: May | F7: May | H7: Nov 87 vs | I7: Dif as % of
C8: 1987 | D8: 1990 | E8: 1994 | F8: 1997 | G8: Actual | H8: Actual | I8: 87 Proj
B9: 1993 | C9: 488 | D9: 393 | E9: 0 | F9: 0 | G9: 0
B10: 1994 | C10: 762 | D10: 764 | E10: 137 | F10: 0 | G10: 82
B11: 1995 | C11: 835 | D11: 833 | E11: 525 | F11: 0 | G11: 304 | H11: =C11-G11 -> 531 | I11: =H11/C11 -> 0.6359281437
B12: 1996 | C12: 908 | D12: 904 | E12: 737 | F12: 0 | G12: 483 | H12: =C12-G12 -> 425 | I12: =H12/C12 -> 0.468061674
B13: 1997 | C13: 986 | D13: 980 | E13: 829 | F13: 567 | G13: 531 | H13: =C13-G13 -> 455 | I13: =H13/C13 -> 0.4614604462
B14: 1998 | C14: 1072 | D14: 1070 | E14: 901 | F14: 649 | G14: 666 | H14: =C14-G14 -> 406 | I14: =H14/C14 -> 0.3787313433
B15: 1999 | C15: 1158 | D15: 1165 | E15: 993 | F15: 654 | G15: 654 | H15: =C15-G15 -> 504 | I15: =H15/C15 -> 0.4352331606
C20: 2 | G20: 1
C21: =(C15/OFFSET(C15,-C20,0))^(1/C20)-1 -> 0.08371684063 | G21: =(G15/OFFSET(G15,-G20,0))^(1/G20)-1 -> -0.01801801802
C24: 1994 | D24: =C24+1 -> 1995 | E24: =D24+1 -> 1996 | F24: =E24+1 -> 1997 | G24: =F24+1 -> 1998 | H24: =G24+1 -> 1999
C26: =TRANSPOSE(C10:C15) -> 762 | D26: 835 | E26: 908 | F26: 986 | G26: 1072 | H26: 1158
C28: =TRANSPOSE(G10:G15) -> 82 | D28: 304 | E28: 483 | F28: 531 | G28: 666 | H28: 654
C30: =C26-C28 -> 680 | D30: 531 | E30: 425 | F30: 455 | G30: 406 | H30: 504
C33: ='Historic IS and BS'!J35 -> 402 | D33: ='Historic IS and BS'!K35 -> 374 | E33: ='Historic IS and BS'!L35 -> 379 | F33: ='Historic IS and BS'!M35 -> 341 | G33: ='Historic IS and BS'!N35 -> 345 | H33: ='Historic IS and BS'!O35 -> 321

Sheet Sheet4
B12: DSCR Targets
B14: Infrastructure | D14: 1.5
B15: Power | D15: 1.4
B16: LNG | D16: 1.7 - 2+
B17: Oil and Gas | D17: 1.7
B18: Mining | D18: 1.6
B19: Telecoms | D19: 2
